{"text_format":"1","workbook":"xlsx","n_sheets":12,"sheets":["PRINCIPAL","CLASIFICACIÓN DE CIUDAD","Hoja1","PARÁMETROS","C.GRANDE","C.MEDIANA","C.PEQUEÑA","GRAFICAS C.GRANDE","GRAFICAS C.MEDIANA","GRAFICAS C.PEQUEÑA","TABLA INTERPRETACIÓN POTENCIAL","DESCRIPCION INDICADORES"],"not_rendered":{"charts":12,"images":69,"macros":1,"external_links":0,"defined_names":38,"comments":0,"pivot_tables":3},"unopened":[],"bounds":{"document_bytes":16777216,"sheet_cells":100000,"rows_first":2000,"rows_last":500,"rows_between":2000,"halvings":0,"cell_chars":16384,"cell_head_chars":4096},"cells_cut":0,"cells_raw":0,"read":"whole","date_system":"1900"}

{"sheet":"PRINCIPAL","index":0,"n_rows":22,"n_cols":5,"rows_kept":22,"cut":false,"hidden":false,"merged":[]}
[]
[]
[]
[]
[]
["t"]
[]
[null,null,null,null,"APLICATIVO PARA LA CALIFICACIÓN DEL POTENCIAL SOSTENIBLE DE UNA CIUDAD"]
[]
[null,null,null,null,"Este aplicativo hace parte de la Guía Metodológica para calificar el potencial de sostenibilidad"]
[null,null,null,null,"de ciudades en Colombia. A continuación llene los espacios requeridos para calificar su ciudad."]
[]
[null,null,null,null,"NOMBRE DEL DEPARTAMENTO"]
[null,null,null,null,"Caldas"]
[]
[null,null,null,null,"NOMBRE DE SU CIUDAD O UNIDAD TERRITORIAL"]
[null,null,null,null,"Manizales"]
[]
[null,null,null,null,"TIPO DE CIUDAD O UNIDAD TERRITORIAL"]
[null,null,null,null,{"$f":"IFERROR(IF(E17=\"\",\"\",VLOOKUP(E17,'CLASIFICACIÓN DE CIUDAD'!B2:D1134,3,FALSE)),\"\")","v":"Grande"}]
[]
[null,null,null,null,"ESCOJA EL TAMAÑO DE LA CIUDAD PARA CALIFICAR EL POTENCIAL DE SOSTENIBILIDAD"]

{"sheet":"CLASIFICACIÓN DE CIUDAD","index":1,"n_rows":1134,"n_cols":4,"rows_kept":1134,"cut":false,"hidden":false,"merged":[]}
["DEPARTAMENTO","UNIDAD TERRITORIAL","Dato Numérico","tipo de ciudad"]
["Amazonas","Amazonas (Departamento)",53.18,{"$f":"+IF(C2<=8.4,\"Grande\",IF(C2<=24.6,\"Mediana\",\"Pequeña\"))","v":"Pequeña"}]
["Amazonas","Leticia",46.19,"Pequeña"]
["Amazonas","Puerto Nariño",73.27,"Pequeña"]
["Antioquia","Abejorral",45.83,"Pequeña"]
["Antioquia","Abriaquí",53.02,"Pequeña"]
["Antioquia","Alejandría",46.41,"Pequeña"]
["Antioquia","Amagá",14.18,"Mediana"]
["Antioquia","Amalfi",43.08,"Pequeña"]
["Antioquia","Andes",40.880000000000003,"Pequeña"]
["Antioquia","Angelópolis",21.28,"Mediana"]
["Antioquia","Angostura",69.02,"Pequeña"]
["Antioquia","Anorí",48.89,"Pequeña"]
["Antioquia","Antioquia (Departamento)",19.88,"Mediana"]
["Antioquia","Anzá",66.83,"Pequeña"]
["Antioquia","Apartadó",14.86,"Mediana"]
["Antioquia","Arboletes",67.31,"Pequeña"]
["Antioquia","Argelia",56.86,"Pequeña"]
["Antioquia","Armenia Antioquia",44.47,"Pequeña"]
["Antioquia","Barbosa Antioquia",29.47,"Pequeña"]
["Antioquia","Bello",7.77,"Grande"]
["Antioquia","Belmira",59.08,"Pequeña"]
["Antioquia","Betania",46.83,"Pequeña"]
["Antioquia","Betulia Antioquia",53.35,"Pequeña"]
["Antioquia","Briceño",64.84,"Pequeña"]
["Antioquia","Buriticá",67.790000000000006,"Pequeña"]
["Antioquia","Cáceres",51.88,"Pequeña"]
["Antioquia","Caicedo",69.73,"Pequeña"]
["Antioquia","Caldas Antioquia",10.92,"Mediana"]
["Antioquia","Campamento",68.489999999999995,"Pequeña"]
["Antioquia","Cañasgordas",66.3,"Pequeña"]
["Antioquia","Caracolí",31.27,"Pequeña"]
["Antioquia","Caramanta",34.630000000000003,"Pequeña"]
["Antioquia","Carepa",27.6,"Pequeña"]
["Antioquia","Carolina",12.32,"Mediana"]
["Antioquia","Caucasia",37.799999999999997,"Pequeña"]
["Antioquia","Chigorodó",45.41,"Pequeña"]
["Antioquia","Cisneros",27.24,"Pequeña"]
["Antioquia","Ciudad Bolívar",35.1,"Pequeña"]
["Antioquia","Cocorná",60.49,"Pequeña"]
["Antioquia","Concepción",57.47,"Pequeña"]
["Antioquia","Concordia",47.47,"Pequeña"]
["Antioquia","Copacabana",7.41,"Grande"]
["Antioquia","Dabeiba",42.84,"Pequeña"]
["Antioquia","Don Matías",27.4,"Pequeña"]
["Antioquia","Ebéjico",48.03,"Pequeña"]
["Antioquia","El Bagre",60.17,"Pequeña"]
["Antioquia","El Carmen de Viboral",16.87,"Mediana"]
["Antioquia","El Santuario",16.260000000000002,"Mediana"]
["Antioquia","Entrerrios",30.54,"Pequeña"]
["Antioquia","Envigado",5.38,"Grande"]
["Antioquia","Fredonia",25.52,"Pequeña"]
["Antioquia","Frontino",36.51,"Pequeña"]
["Antioquia","Giraldo",42.7,"Pequeña"]
["Antioquia","Girardota",20.65,"Mediana"]
["Antioquia","Gómez Plata",41.39,"Pequeña"]
["Antioquia","Granada Antioquia",35.71,"Pequeña"]
["Antioquia","Guadalupe Antioquia",68.59,"Pequeña"]
["Antioquia","Guarne",26.67,"Pequeña"]
["Antioquia","Guatapé",22,"Mediana"]
["Antioquia","Heliconia",28.28,"Pequeña"]
["Antioquia","Hispania",29.95,"Pequeña"]
["Antioquia","Itagüí",6.37,"Grande"]
["Antioquia","Ituango",63.1,"Pequeña"]
["Antioquia","Jardín",40.28,"Pequeña"]
["Antioquia","Jericó",31.23,"Pequeña"]
["Antioquia","La Ceja",9.4600000000000009,"Mediana"]
["Antioquia","La Estrella",8.6,"Mediana"]
["Antioquia","La Pintada",26.01,"Pequeña"]
["Antioquia","La Unión",23.6,"Mediana"]
["Antioquia","Liborina",46.57,"Pequeña"]
["Antioquia","Maceo",45.69,"Pequeña"]
["Antioquia","Marinilla",14.93,"Mediana"]
["Antioquia","Medellín",7.27,"Grande"]
["Antioquia","Montebello",48.06,"Pequeña"]
["Antioquia","Murindó",59.51,"Pequeña"]
["Antioquia","Mutatá",47.29,"Pequeña"]
["Antioquia","Nariño",56.84,"Pequeña"]
["Antioquia","Nechí",78.19,"Pequeña"]
["Antioquia","Necoclí",68.239999999999995,"Pequeña"]
["Antioquia","Olaya",30.67,"Pequeña"]
["Antioquia","Peñol",21.38,"Mediana"]
["Antioquia","Peque",73.23,"Pequeña"]
["Antioquia","Pueblorrico",42.47,"Pequeña"]
["Antioquia","Puerto Berrío",33.56,"Pequeña"]
["Antioquia","Puerto Nare",26.73,"Pequeña"]
["Antioquia","Puerto Triunfo",21.58,"Mediana"]
["Antioquia","Remedios",57.93,"Pequeña"]
["Antioquia","Retiro",19.68,"Mediana"]
["Antioquia","Rionegro",7.1,"Grande"]
["Antioquia","Sabanalarga Antioquia",78.02,"Pequeña"]
["Antioquia","Sabaneta",22,"Mediana"]
["Antioquia","Salgar",47.37,"Pequeña"]
["Antioquia","San Andrés de Cuerquía",49.91,"Pequeña"]
["Antioquia","San Carlos",30.76,"Pequeña"]
["Antioquia","San Francisco Antioquia",55.15,"Pequeña"]
["Antioquia","San Jerónimo",31.98,"Pequeña"]
["Antioquia","San José de La Montaña",41.67,"Pequeña"]
["Antioquia","San Juan de Urabá",69.63,"Pequeña"]
["Antioquia","San Luis",44.88,"Pequeña"]
["Antioquia","San Pedro de Los Milagros",27.5,"Pequeña"]
["Antioquia","San Pedro de Urabá",70.73,"Pequeña"]
["Antioquia","San Rafael",45.24,"Pequeña"]
["Antioquia","San Roque",48.58,"Pequeña"]
["Antioquia","San Vicente",50.59,"Pequeña"]
["Antioquia","Santa Bárbara Antioquia",30.14,"Pequeña"]
["Antioquia","Santa Rosa de Osos",37.49,"Pequeña"]
["Antioquia","Santafé de Antioquia",36.85,"Pequeña"]
["Antioquia","Santo Domingo",44.1,"Pequeña"]
["Antioquia","Segovia",61.69,"Pequeña"]
["Antioquia","Sonsón",40,"Pequeña"]
["Antioquia","Sopetrán",45.51,"Pequeña"]
["Antioquia","Támesis",34.01,"Pequeña"]
["Antioquia","Tarazá",45.16,"Pequeña"]
["Antioquia","Tarso",38.4,"Pequeña"]
["Antioquia","Titiribí",18.010000000000002,"Mediana"]
["Antioquia","Toledo Antioquia",60.08,"Pequeña"]
["Antioquia","Turbo",69.45,"Pequeña"]
["Antioquia","Uramita",77.05,"Pequeña"]
["Antioquia","Urrao",41.08,"Pequeña"]
["Antioquia","Valdivia",59.23,"Pequeña"]
["Antioquia","Valparaíso",26.23,"Pequeña"]
["Antioquia","Vegachí",37.33,"Pequeña"]
["Antioquia","Venecia",17.760000000000002,"Mediana"]
["Antioquia","Vigía del Fuerte",93.45,"Pequeña"]
["Antioquia","Yalí",49.1,"Pequeña"]
["Antioquia","Yarumal",19.09,"Mediana"]
["Antioquia","Yolombó",75.83,"Pequeña"]
["Antioquia","Yondó",57.8,"Pequeña"]
["Antioquia","Zaragoza",54.96,"Pequeña"]
["Arauca","Arauca (Departamento)",32.049999999999997,"Pequeña"]
["Arauca","Arauca",24.09,"Mediana"]
["Arauca","Arauquita",23.73,"Mediana"]
["Arauca","Cravo Norte",58.02,"Pequeña"]
["Arauca","Fortul",44.27,"Pequeña"]
["Arauca","Puerto Rondón",41.28,"Pequeña"]
["Arauca","Saravena",41.64,"Pequeña"]
["Arauca","Tame",38.01,"Pequeña"]
["Atlántico","Atlántico (Departamento)",25.86,"Pequeña"]
["Atlántico","Baranoa",77.819999999999993,"Pequeña"]
["Atlántico","Barranquilla",12.28,"Mediana"]
["Atlántico","Campo de La Cruz",80.92,"Pequeña"]
["Atlántico","Candelaria Atlántico",78.17,"Pequeña"]
["Atlántico","Galapa",84.12,"Pequeña"]
["Atlántico","Juan de Acosta",71.92,"Pequeña"]
["Atlántico","Luruaco",68.89,"Pequeña"]
["Atlántico","Malambo",33.18,"Pequeña"]
["Atlántico","Manatí",93.64,"Pequeña"]
["Atlántico","Palmar de Varela",92.93,"Pequeña"]
["Atlántico","Piojó",80.75,"Pequeña"]
["Atlántico","Polonuevo",85.89,"Pequeña"]
["Atlántico","Ponedera",74.180000000000007,"Pequeña"]
["Atlántico","Puerto Colombia",24.36,"Mediana"]
["Atlántico","Repelón",73.22,"Pequeña"]
["Atlántico","Sabanagrande",21.53,"Mediana"]
["Atlántico","Sabanalarga",48.24,"Pequeña"]
["Atlántico","Santa Lucía",77.89,"Pequeña"]
["Atlántico","Santo Tomás",49.91,"Pequeña"]
["Atlántico","Soledad",23.02,"Mediana"]
["Atlántico","Suan",91.87,"Pequeña"]
["Atlántico","Tubará",72.92,"Pequeña"]
["Atlántico","Usiacurí",91.55,"Pequeña"]
["Bogotá","Bogotá",4.51,"Grande"]
["Bolívar","Achí",65.900000000000006,"Pequeña"]
["Bolívar","Altos del Rosario",64.739999999999995,"Pequeña"]
["Bolívar","Arenal",83.24,"Pequeña"]
["Bolívar","Arjona",74.680000000000007,"Pequeña"]
["Bolívar","Arroyohondo",72.47,"Pequeña"]
["Bolívar","Barranco de Loba",73.489999999999995,"Pequeña"]
["Bolívar","Bolívar (Departamento)",46.04,"Pequeña"]
["Bolívar","Calamar",76.260000000000005,"Pequeña"]
["Bolívar","Cantagallo",57.2,"Pequeña"]
["Bolívar","Cartagena",24.58,"Mediana"]
["Bolívar","Cicuco",72.67,"Pequeña"]
["Bolívar","Clemencia",71.31,"Pequeña"]
["Bolívar","Córdoba",62.01,"Pequeña"]
["Bolívar","El Carmen de Bolívar",84.38,"Pequeña"]
["Bolívar","El Guamo",76.22,"Pequeña"]
["Bolívar","El Peñón Bolívar",70.73,"Pequeña"]
["Bolívar","Hatillo de Loba",63.22,"Pequeña"]
["Bolívar","Magangué",53.04,"Pequeña"]
["Bolívar","Mahates",54.15,"Pequeña"]
["Bolívar","Margarita",75.91,"Pequeña"]
["Bolívar","María La Baja",62.2,"Pequeña"]
["Bolívar","Mompós",47.5,"Pequeña"]
["Bolívar","Montecristo",33,"Pequeña"]
["Bolívar","Morales",54.36,"Pequeña"]
["Bolívar","Norosí",33,"Pequeña"]
["Bolívar","Pinillos",59.7,"Pequeña"]
["Bolívar","Regidor",64.709999999999994,"Pequeña"]
["Bolívar","Río Viejo",57.14,"Pequeña"]
["Bolívar","San Cristóbal",74.73,"Pequeña"]
["Bolívar","San Estanislao",73.42,"Pequeña"]
["Bolívar","San Fernando",65.22,"Pequeña"]
["Bolívar","San Jacinto",89.43,"Pequeña"]
["Bolívar","San Jacinto del Cauca",33,"Pequeña"]
["Bolívar","San Juan Nepomuceno",93.84,"Pequeña"]
["Bolívar","San Martín de Loba",64.900000000000006,"Pequeña"]
["Bolívar","San Pablo Bolívar",53.45,"Pequeña"]
["Bolívar","Santa Catalina",63.3,"Pequeña"]
["Bolívar","Santa Rosa",91.3,"Pequeña"]
["Bolívar","Santa Rosa del Sur",45.78,"Pequeña"]
["Bolívar","Simití",76.59,"Pequeña"]
["Bolívar","Soplaviento",80.84,"Pequeña"]
["Bolívar","Talaigua Nuevo",76.67,"Pequeña"]
["Bolívar","Tiquisio",62.5,"Pequeña"]
["Bolívar","Turbaco",79.48,"Pequeña"]
["Bolívar","Turbaná",65.78,"Pequeña"]
["Bolívar","Villanueva Bolívar",86.4,"Pequeña"]
["Bolívar","Zambrano",88.35,"Pequeña"]
["Boyacá","Almeida",47.61,"Pequeña"]
["Boyacá","Aquitania",57.06,"Pequeña"]
["Boyacá","Arcabuco",41.06,"Pequeña"]
["Boyacá","Belén",29.98,"Pequeña"]
["Boyacá","Berbeo",43.06,"Pequeña"]
["Boyacá","Betéitiva",75.599999999999994,"Pequeña"]
["Boyacá","Boavita",61.68,"Pequeña"]
["Boyacá","Boyacá (Departamento)",33.46,"Pequeña"]
["Boyacá","Boyacá",67.47,"Pequeña"]
["Boyacá","Briceño Boyacá",47.99,"Pequeña"]
["Boyacá","Buenavista",60.71,"Pequeña"]
["Boyacá","Busbanzá",44.39,"Pequeña"]
["Boyacá","Caldas Boyacá",50.3,"Pequeña"]
["Boyacá","Campohermoso",65.290000000000006,"Pequeña"]
["Boyacá","Cerinza",39.130000000000003,"Pequeña"]
["Boyacá","Chinavita",43.17,"Pequeña"]
["Boyacá","Chiquinquirá",9.9499999999999993,"Mediana"]
["Boyacá","Chíquiza",78.63,"Pequeña"]
["Boyacá","Chiscas",65.02,"Pequeña"]
["Boyacá","Chita",79.760000000000005,"Pequeña"]
["Boyacá","Chitaraque",60.39,"Pequeña"]
["Boyacá","Chivatá",43.35,"Pequeña"]
["Boyacá","Chivor",58.61,"Pequeña"]
["Boyacá","Ciénega Boyacá",66.89,"Pequeña"]
["Boyacá","Cómbita",60.09,"Pequeña"]
["Boyacá","Coper",68.37,"Pequeña"]
["Boyacá","Corrales",32.840000000000003,"Pequeña"]
["Boyacá","Covarachía",81.39,"Pequeña"]
["Boyacá","Cubará",21.85,"Mediana"]
["Boyacá","Cucaita",60.3,"Pequeña"]
["Boyacá","Cuítiva",58.7,"Pequeña"]
["Boyacá","Duitama",7.15,"Grande"]
["Boyacá","El Cocuy",52.35,"Pequeña"]
["Boyacá","El Espino",59.38,"Pequeña"]
["Boyacá","Firavitoba",33.33,"Pequeña"]
["Boyacá","Floresta",42.05,"Pequeña"]
["Boyacá","Gachantivá",76.69,"Pequeña"]
["Boyacá","Gámeza",53.68,"Pequeña"]
["Boyacá","Garagoa",24.46,"Mediana"]
["Boyacá","Guacamayas",64.56,"Pequeña"]
["Boyacá","Guateque",25.92,"Pequeña"]
["Boyacá","Guayatá",55.67,"Pequeña"]
["Boyacá","Güicán",46.07,"Pequeña"]
["Boyacá","Iza",27.49,"Pequeña"]
["Boyacá","Jenesano",45.13,"Pequeña"]
["Boyacá","Jericó Boyacá",71.599999999999994,"Pequeña"]
["Boyacá","La Capilla",41.81,{"$f":"+IF(C257<=8.4,\"Grande\",IF(C257<=24.6,\"Mediana\",\"Pequeña\"))","v":"Pequeña"}]
["Boyacá","La Uvita",50.82,"Pequeña"]
["Boyacá","La Victoria Boyacá",37.409999999999997,"Pequeña"]
["Boyacá","Labranzagrande",82.56,"Pequeña"]
["Boyacá","Macanal",54.83,"Pequeña"]
["Boyacá","Maripí",65.8,"Pequeña"]
["Boyacá","Miraflores",24.5,"Mediana"]
["Boyacá","Mongua",65.13,"Pequeña"]
["Boyacá","Monguí",29.45,"Pequeña"]
["Boyacá","Moniquirá",34.409999999999997,"Pequeña"]
["Boyacá","Motavita",73,"Pequeña"]
["Boyacá","Muzo",43.66,"Pequeña"]
["Boyacá","Nobsa",22,"Mediana"]
["Boyacá","Nuevo Colón",53.06,"Pequeña"]
["Boyacá","Oicatá",56.66,"Pequeña"]
["Boyacá","Otanche",56.04,"Pequeña"]
["Boyacá","Pachavita",54.22,"Pequeña"]
["Boyacá","Páez Boyacá",49.84,"Pequeña"]
["Boyacá","Paipa",17,"Mediana"]
["Boyacá","Pajarito",51.54,"Pequeña"]
["Boyacá","Panqueba",51.17,"Pequeña"]
["Boyacá","Pauna",67.650000000000006,"Pequeña"]
["Boyacá","Paya",79.8,"Pequeña"]
["Boyacá","Paz de Río",31.84,"Pequeña"]
["Boyacá","Pesca",60.69,"Pequeña"]
["Boyacá","Pisba",84.31,"Pequeña"]
["Boyacá","Puerto Boyacá",30.13,"Pequeña"]
["Boyacá","Quípama",66.010000000000005,"Pequeña"]
["Boyacá","Ramiriquí",48.95,"Pequeña"]
["Boyacá","Ráquira",65.44,"Pequeña"]
["Boyacá","Rondón",55.89,"Pequeña"]
["Boyacá","Saboyá",59.17,"Pequeña"]
["Boyacá","Sáchica",51.55,"Pequeña"]
["Boyacá","Samacá",42.25,"Pequeña"]
["Boyacá","San Eduardo",43.69,"Pequeña"]
["Boyacá","San José de Pare",55.84,"Pequeña"]
["Boyacá","San Luis de Gaceno",48.01,"Pequeña"]
["Boyacá","San Mateo",56.02,"Pequeña"]
["Boyacá","San Miguel de Sema",40.47,"Pequeña"]
["Boyacá","San Pablo de Borbur",73.47,"Pequeña"]
["Boyacá","Santa María",43.01,"Pequeña"]
["Boyacá","Santa Rosa de Viterbo",18.2,"Mediana"]
["Boyacá","Santa Sofía",45.88,"Pequeña"]
["Boyacá","Santana",42.47,"Pequeña"]
["Boyacá","Sativanorte",59.81,"Pequeña"]
["Boyacá","Sativasur",52.96,"Pequeña"]
["Boyacá","Siachoque",61.9,"Pequeña"]
["Boyacá","Soatá",35.729999999999997,"Pequeña"]
["Boyacá","Socha",30.65,"Pequeña"]
["Boyacá","Socotá",72.58,"Pequeña"]
["Boyacá","Sogamoso",11.55,"Mediana"]
["Boyacá","Somondoco",47.48,"Pequeña"]
["Boyacá","Sora",79.81,"Pequeña"]
["Boyacá","Soracá",57.91,"Pequeña"]
["Boyacá","Sotaquirá",57.06,"Pequeña"]
["Boyacá","Susacón",66.67,"Pequeña"]
["Boyacá","Sutamarchán",59.64,"Pequeña"]
["Boyacá","Sutatenza",66.180000000000007,"Pequeña"]
["Boyacá","Tasco",44.44,"Pequeña"]
["Boyacá","Tenza",42.66,"Pequeña"]
["Boyacá","Tibaná",62.05,"Pequeña"]
["Boyacá","Tibasosa",13.76,"Mediana"]
["Boyacá","Tinjacá",58.73,"Pequeña"]
["Boyacá","Tipacoque",67.13,"Pequeña"]
["Boyacá","Toca",51.6,"Pequeña"]
["Boyacá","Togüí",54.54,"Pequeña"]
["Boyacá","Tópaga",44.78,"Pequeña"]
["Boyacá","Tota",75.12,"Pequeña"]
["Boyacá","Tunja",8.3699999999999992,"Grande"]
["Boyacá","Tununguá",29.68,"Pequeña"]
["Boyacá","Turmequé",55.41,"Pequeña"]
["Boyacá","Tuta",43.39,"Pequeña"]
["Boyacá","Tutazá",51.44,"Pequeña"]
["Boyacá","Umbita",65.58,"Pequeña"]
["Boyacá","Ventaquemada",40.9,"Pequeña"]
["Boyacá","Villa de Leyva",21.71,"Mediana"]
["Boyacá","Viracachá",62.43,"Pequeña"]
["Boyacá","Zetaquira",43.55,"Pequeña"]
["Caldas","Aguadas",29.06,"Pequeña"]
["Caldas","Anserma",24.31,"Mediana"]
["Caldas","Aranzazu",23.44,"Mediana"]
["Caldas","Belalcázar",29.05,"Pequeña"]
["Caldas","Caldas (Departamento)",15.46,"Mediana"]
["Caldas","Chinchiná",8.41,"Mediana"]
["Caldas","Filadelfia",27.76,"Pequeña"]
["Caldas","La Dorada",12.47,"Mediana"]
["Caldas","La Merced",38.42,"Pequeña"]
["Caldas","Manizales",5.41,"Grande"]
["Caldas","Manzanares",37.86,"Pequeña"]
["Caldas","Marmato",51.46,"Pequeña"]
["Caldas","Marquetalia",44.01,"Pequeña"]
["Caldas","Marulanda",25.98,"Pequeña"]
["Caldas","Neira",19.55,"Mediana"]
["Caldas","Norcasia",32.78,"Pequeña"]
["Caldas","Pácora",24.34,"Mediana"]
["Caldas","Palestina",17.32,"Mediana"]
["Caldas","Pensilvania",46.19,"Pequeña"]
["Caldas","Riosucio",17.45,"Mediana"]
["Caldas","Risaralda",34.17,"Pequeña"]
["Caldas","Salamina",20.73,"Mediana"]
["Caldas","Samaná",47.14,"Pequeña"]
["Caldas","San José",33.56,"Pequeña"]
["Caldas","Supía",23.07,"Mediana"]
["Caldas","Victoria",29,"Pequeña"]
["Caldas","Villamaría",9.91,"Mediana"]
["Caldas","Viterbo",9.01,"Mediana"]
["Caquetá","Albania",46.88,"Pequeña"]
["Caquetá","Belén de Los Andaquíes",53.3,"Pequeña"]
["Caquetá","Caquetá (Departamento)",42.09,"Pequeña"]
["Caquetá","Cartagena del Chairá",64.83,"Pequeña"]
["Caquetá","Curillo",49.61,"Pequeña"]
["Caquetá","El Doncello",36.43,"Pequeña"]
["Caquetá","El Paujil",53.52,"Pequeña"]
["Caquetá","Florencia",25.54,"Pequeña"]
["Caquetá","La Montañita",76.17,"Pequeña"]
["Caquetá","Milán",82.68,"Pequeña"]
["Caquetá","Morelia",50.66,"Pequeña"]
["Caquetá","Puerto Rico Caquetá",37.729999999999997,"Pequeña"]
["Caquetá","San José del Fragua",50.81,"Pequeña"]
["Caquetá","San Vicente del Caguán",41.91,"Pequeña"]
["Caquetá","Solano",79.180000000000007,"Pequeña"]
["Caquetá","Solita",73.31,"Pequeña"]
["Caquetá","Valparaíso Caquetá",66.7,"Pequeña"]
["Casanare","Aguazul",18.72,"Mediana"]
["Casanare","Casanare (Departamento)",31.88,"Pequeña"]
["Casanare","Chámeza",46.7,"Pequeña"]
["Casanare","Hato Corozal",65.489999999999995,"Pequeña"]
["Casanare","La Salina",62.93,"Pequeña"]
["Casanare","Maní",78.290000000000006,"Pequeña"]
["Casanare","Monterrey",24.87,"Pequeña"]
["Casanare","Nunchía",65.19,"Pequeña"]
["Casanare","Orocué",56.99,"Pequeña"]
["Casanare","Paz de Ariporo",48.55,"Pequeña"]
["Casanare","Pore",61.98,"Pequeña"]
["Casanare","Recetor",73.239999999999995,"Pequeña"]
["Casanare","Sabanalarga Casanare",33.6,"Pequeña"]
["Casanare","Sácama",39.18,"Pequeña"]
["Casanare","San Luis de Palenque",70.099999999999994,"Pequeña"]
["Casanare","Támara",63.39,"Pequeña"]
["Casanare","Tauramena",19.21,"Mediana"]
["Casanare","Trinidad",69.010000000000005,"Pequeña"]
["Casanare","Villanueva",19.899999999999999,"Mediana"]
["Casanare","Yopal",15.76,"Mediana"]
["Cauca","Almaguer",85.36,"Pequeña"]
["Cauca","Argelia Cauca",22,"Mediana"]
["Cauca","Balboa Cauca",64.37,"Pequeña"]
["Cauca","Bolívar Cauca",67.14,"Pequeña"]
["Cauca","Buenos Aires",66.61,"Pequeña"]
["Cauca","Cajibío",66.459999999999994,"Pequeña"]
["Cauca","Caldono",70.58,"Pequeña"]
["Cauca","Caloto",45.06,"Pequeña"]
["Cauca","Cauca (Departamento)",43.5,"Pequeña"]
["Cauca","Corinto",42.57,"Pequeña"]
["Cauca","El Tambo",65.290000000000006,"Pequeña"]
["Cauca","Florencia Cauca",53.03,"Pequeña"]
["Cauca","Guachené",33,"Pequeña"]
["Cauca","Guapi",85.45,"Pequeña"]
["Cauca","Inzá",76.959999999999994,"Pequeña"]
["Cauca","Jambaló",80.06,"Pequeña"]
["Cauca","La Sierra",58.51,"Pequeña"]
["Cauca","La Vega Cauca",58.95,"Pequeña"]
["Cauca","López",56.12,"Pequeña"]
["Cauca","Mercaderes",67.61,"Pequeña"]
["Cauca","Miranda",37.57,"Pequeña"]
["Cauca","Morales Cauca",60.52,"Pequeña"]
["Cauca","Padilla",24.81,"Pequeña"]
["Cauca","Paéz",59.22,"Pequeña"]
["Cauca","Patía",34.29,"Pequeña"]
["Cauca","Piamonte",33,"Pequeña"]
["Cauca","Piendamó",28.85,"Pequeña"]
["Cauca","Popayán",9.11,"Mediana"]
["Cauca","Puerto Tejada",15.93,"Mediana"]
["Cauca","Puracé",60.85,"Pequeña"]
["Cauca","Rosas",66.66,"Pequeña"]
["Cauca","San Sebastián",74.88,"Pequeña"]
["Cauca","Santa Rosa Cauca",71.22,"Pequeña"]
["Cauca","Santander de Quilichao",27.16,"Pequeña"]
["Cauca","Silvia",63.01,"Pequeña"]
["Cauca","Sotará",78.44,"Pequeña"]
["Cauca","Suárez Cauca",59.11,"Pequeña"]
["Cauca","Sucre Cauca",75.44,"Pequeña"]
["Cauca","Timbío",23.03,"Mediana"]
["Cauca","Timbiquí",83.96,"Pequeña"]
["Cauca","Toribío",66.7,"Pequeña"]
["Cauca","Totoró",75.86,"Pequeña"]
["Cauca","Villa Rica",26.89,"Pequeña"]
["Cesar","Aguachica",39.869999999999997,"Pequeña"]
["Cesar","Agustín Codazzi",39.369999999999997,"Pequeña"]
["Cesar","Astrea",52.29,"Pequeña"]
["Cesar","Becerril",48.11,"Pequeña"]
["Cesar","Bosconia",38.76,"Pequeña"]
["Cesar","Cesar (Departamento)",39.32,"Pequeña"]
["Cesar","Chimichagua",64.23,"Pequeña"]
["Cesar","Chiriguaná",48.48,"Pequeña"]
["Cesar","Curumaní",46.63,"Pequeña"]
["Cesar","El Copey",66.78,"Pequeña"]
["Cesar","El Paso",64.94,"Pequeña"]
["Cesar","Gamarra",65.709999999999994,"Pequeña"]
["Cesar","González",74.75,"Pequeña"]
["Cesar","La Gloria",57.14,"Pequeña"]
["Cesar","La Jagua de Ibirico",39.31,"Pequeña"]
["Cesar","La Paz Cesar",39.47,"Pequeña"]
["Cesar","Manaure Cesar",59.43,"Pequeña"]
["Cesar","Pailitas",43.84,"Pequeña"]
["Cesar","Pelaya",75.69,"Pequeña"]
["Cesar","Pueblo Bello",78.91,"Pequeña"]
["Cesar","Río de Oro",50.46,"Pequeña"]
["Cesar","San Alberto",24.75,"Pequeña"]
["Cesar","San Diego",40.409999999999997,"Pequeña"]
["Cesar","San Martín Cesar",37.619999999999997,"Pequeña"]
["Cesar","Tamalameque",56.06,"Pequeña"]
["Cesar","Valledupar",25.16,"Pequeña"]
["Chocó","Acandí",63.89,"Pequeña"]
["Chocó","Alto Baudó",62.27,"Pequeña"]
["Chocó","Atrato",33,"Pequeña"]
["Chocó","Bagadó",82.09,"Pequeña"]
["Chocó","Bahía Solano",56.28,"Pequeña"]
["Chocó","Bajo Baudó",78.34,"Pequeña"]
["Chocó","Bojayá",87.41,"Pequeña"]
["Chocó","Carmen del Darién",83.42,"Pequeña"]
["Chocó","Cértegui",83.54,"Pequeña"]
["Chocó","Chocó (Departamento)",80.33,"Pequeña"]
["Chocó","Condoto",76.040000000000006,"Pequeña"]
["Chocó","El Cantón del San Pablo",81.319999999999993,"Pequeña"]
["Chocó","El Carmen de Atrato",44.05,"Pequeña"]
["Chocó","El Litoral del San Juan",33,"Pequeña"]
["Chocó","Istmina",91.94,"Pequeña"]
["Chocó","Juradó",97.63,"Pequeña"]
["Chocó","Lloró",92.21,"Pequeña"]
["Chocó","Medio Atrato",33,"Pequeña"]
["Chocó","Medio Baudó",73.8,"Pequeña"]
["Chocó","Medio San Juan",85.5,"Pequeña"]
["Chocó","Nóvita",93.62,"Pequeña"]
["Chocó","Nuquí",57.18,"Pequeña"]
["Chocó","Quibdó",83.08,"Pequeña"]
["Chocó","Río Iró",77.61,"Pequeña"]
["Chocó","Río Quito",93.22,"Pequeña"]
["Chocó","Riosucio Chocó",91.66,"Pequeña"]
["Chocó","San José del Palmar",41.47,"Pequeña"]
["Chocó","Sipí",71.33,"Pequeña"]
["Chocó","Tadó",90.09,"Pequeña"]
["Chocó","Unguía",73.34,"Pequeña"]
["Chocó","Unión Panamericana",85.9,"Pequeña"]
["Córdoba","Ayapel",66.73,"Pequeña"]
["Córdoba","Buenavista Córdoba",50.44,"Pequeña"]
["Córdoba","Canalete",90.43,"Pequeña"]
["Córdoba","Cereté",46.08,"Pequeña"]
["Córdoba","Chimá",71.23,"Pequeña"]
["Córdoba","Chinú",27.58,"Pequeña"]
["Córdoba","Ciénaga de Oro",56.79,"Pequeña"]
["Córdoba","Córdoba (Departamento)",58.58,"Pequeña"]
["Córdoba","Cotorra",64.489999999999995,"Pequeña"]
["Córdoba","La Apartada",78.2,"Pequeña"]
["Córdoba","Lorica",51.64,"Pequeña"]
["Córdoba","Los Córdobas",79.02,"Pequeña"]
["Córdoba","Momil",76.77,{"$f":"+IF(C512<=8.4,\"Grande\",IF(C512<=24.6,\"Mediana\",\"Pequeña\"))","v":"Pequeña"}]
["Córdoba","Montelíbano",58.19,"Pequeña"]
["Córdoba","Montería",62.25,"Pequeña"]
["Córdoba","Moñitos",65.05,"Pequeña"]
["Córdoba","Planeta Rica",56.5,"Pequeña"]
["Córdoba","Pueblo Nuevo",59.67,"Pequeña"]
["Córdoba","Puerto Escondido",75.510000000000005,"Pequeña"]
["Córdoba","Puerto Libertador",60.72,"Pequeña"]
["Córdoba","Purísima",85.79,"Pequeña"]
["Córdoba","Sahagún",37.659999999999997,"Pequeña"]
["Córdoba","San Andrés Sotavento",47.82,"Pequeña"]
["Córdoba","San Antero",50.1,"Pequeña"]
["Córdoba","San Bernardo del Viento",60.7,"Pequeña"]
["Córdoba","San Carlos Córdoba",62.36,"Pequeña"]
["Córdoba","San José de Ure",33,"Pequeña"]
["Córdoba","San Pelayo",64.05,"Pequeña"]
["Córdoba","Tierralta",69.37,"Pequeña"]
["Córdoba","Tuchín",33,"Pequeña"]
["Córdoba","Valencia",76.84,"Pequeña"]
["Cundinamarca","Agua de Dios",20.56,"Mediana"]
["Cundinamarca","Albán",32.200000000000003,"Pequeña"]
["Cundinamarca","Anapoima",22.19,"Mediana"]
["Cundinamarca","Anolaima",31.6,"Pequeña"]
["Cundinamarca","Apulo",34.97,"Pequeña"]
["Cundinamarca","Arbeláez",33.03,"Pequeña"]
["Cundinamarca","Beltrán",39.659999999999997,"Pequeña"]
["Cundinamarca","Bituima",45.85,"Pequeña"]
["Cundinamarca","Bojacá",11.55,"Mediana"]
["Cundinamarca","Cabrera",59.64,"Pequeña"]
["Cundinamarca","Cachipay",23.21,"Mediana"]
["Cundinamarca","Cajicá",4.8,"Grande"]
["Cundinamarca","Caparrapí",65.02,"Pequeña"]
["Cundinamarca","Cáqueza",50.61,"Pequeña"]
["Cundinamarca","Carmen de Carupa",46.27,"Pequeña"]
["Cundinamarca","Chaguaní",54.36,"Pequeña"]
["Cundinamarca","Chía",5.51,"Grande"]
["Cundinamarca","Chipaque",49,"Pequeña"]
["Cundinamarca","Choachí",36.68,"Pequeña"]
["Cundinamarca","Chocontá",35.15,"Pequeña"]
["Cundinamarca","Cogua",12.13,"Mediana"]
["Cundinamarca","Cota",5.85,"Grande"]
["Cundinamarca","Cucunubá",43.96,"Pequeña"]
["Cundinamarca","Cundinamarca (Departamento)",21.14,"Mediana"]
["Cundinamarca","El Colegio",16.02,"Mediana"]
["Cundinamarca","El Peñón",41.97,"Pequeña"]
["Cundinamarca","El Rosal",22,"Mediana"]
["Cundinamarca","Facatativá",22,"Mediana"]
["Cundinamarca","Fómeque",35.630000000000003,"Pequeña"]
["Cundinamarca","Fosca",64.64,"Pequeña"]
["Cundinamarca","Funza",4.1399999999999997,"Grande"]
["Cundinamarca","Fúquene",27.2,"Pequeña"]
["Cundinamarca","Fusagasugá",10.63,"Mediana"]
["Cundinamarca","Gachalá",60.24,"Pequeña"]
["Cundinamarca","Gachancipá",9.08,"Mediana"]
["Cundinamarca","Gachetá",62.29,"Pequeña"]
["Cundinamarca","Gama",67.98,"Pequeña"]
["Cundinamarca","Girardot",7.54,"Grande"]
["Cundinamarca","Granada Cundinamarca",20.399999999999999,"Mediana"]
["Cundinamarca","Guachetá",32.29,"Pequeña"]
["Cundinamarca","Guaduas",29.56,"Pequeña"]
["Cundinamarca","Guasca",21.05,"Mediana"]
["Cundinamarca","Guataquí",40.700000000000003,"Pequeña"]
["Cundinamarca","Guatavita",32.85,"Pequeña"]
["Cundinamarca","Guayabal de Síquima",35.729999999999997,"Pequeña"]
["Cundinamarca","Guayabetal",59.66,"Pequeña"]
["Cundinamarca","Gutiérrez",66.150000000000006,"Pequeña"]
["Cundinamarca","Jerusalén",69.17,"Pequeña"]
["Cundinamarca","Junín",60.01,"Pequeña"]
["Cundinamarca","La Calera",22.4,"Mediana"]
["Cundinamarca","La Mesa",18.239999999999998,"Mediana"]
["Cundinamarca","La Palma",40.65,"Pequeña"]
["Cundinamarca","La Peña",66.37,"Pequeña"]
["Cundinamarca","La Vega",32.85,"Pequeña"]
["Cundinamarca","Lenguazaque",46.63,"Pequeña"]
["Cundinamarca","Machetá",57.35,"Pequeña"]
["Cundinamarca","Madrid",3.32,"Grande"]
["Cundinamarca","Manta",49.93,"Pequeña"]
["Cundinamarca","Medina",53.61,"Pequeña"]
["Cundinamarca","Mosquera",7.16,"Grande"]
["Cundinamarca","Nariño Cundinamarca",36.729999999999997,"Pequeña"]
["Cundinamarca","Nemocón",15.01,"Mediana"]
["Cundinamarca","Nilo",21.89,"Mediana"]
["Cundinamarca","Nimaima",26.8,"Pequeña"]
["Cundinamarca","Nocaima",45.58,"Pequeña"]
["Cundinamarca","Pacho",38.119999999999997,"Pequeña"]
["Cundinamarca","Paime",69.95,"Pequeña"]
["Cundinamarca","Pandi",42.31,"Pequeña"]
["Cundinamarca","Paratebueno",42.69,"Pequeña"]
["Cundinamarca","Pasca",37.21,"Pequeña"]
["Cundinamarca","Puerto Salgar",20.96,"Mediana"]
["Cundinamarca","Pulí",67.92,"Pequeña"]
["Cundinamarca","Quebradanegra",49.77,"Pequeña"]
["Cundinamarca","Quetame",63.17,"Pequeña"]
["Cundinamarca","Quipile",58.07,"Pequeña"]
["Cundinamarca","Ricaurte",24.57,"Mediana"]
["Cundinamarca","San Antonio del Tequendama",34.11,"Pequeña"]
["Cundinamarca","San Bernardo",55.37,"Pequeña"]
["Cundinamarca","San Cayetano",73.3,"Pequeña"]
["Cundinamarca","San Francisco",30.32,"Pequeña"]
["Cundinamarca","San Juan de Río Seco",37.43,"Pequeña"]
["Cundinamarca","Sasaima",42.88,"Pequeña"]
["Cundinamarca","Sesquilé",23.55,"Mediana"]
["Cundinamarca","Sibaté",22,"Mediana"]
["Cundinamarca","Silvania",41.46,"Pequeña"]
["Cundinamarca","Simijaca",17.93,"Mediana"]
["Cundinamarca","Soacha",18.38,"Mediana"]
["Cundinamarca","Sopó",6.01,"Grande"]
["Cundinamarca","Subachoque",12.27,"Mediana"]
["Cundinamarca","Suesca",22.24,"Mediana"]
["Cundinamarca","Supatá",36.57,"Pequeña"]
["Cundinamarca","Susa",29.66,"Pequeña"]
["Cundinamarca","Sutatausa",34.229999999999997,"Pequeña"]
["Cundinamarca","Tabio",10.76,"Mediana"]
["Cundinamarca","Tausa",37.090000000000003,"Pequeña"]
["Cundinamarca","Tena",19.77,"Mediana"]
["Cundinamarca","Tenjo",12.89,"Mediana"]
["Cundinamarca","Tibacuy",44.03,"Pequeña"]
["Cundinamarca","Tibirita",50.15,"Pequeña"]
["Cundinamarca","Tocaima",28.83,"Pequeña"]
["Cundinamarca","Tocancipá",9.59,"Mediana"]
["Cundinamarca","Topaipí",34.630000000000003,"Pequeña"]
["Cundinamarca","Ubalá",67.08,"Pequeña"]
["Cundinamarca","Ubaque",52.73,"Pequeña"]
["Cundinamarca","Une",32.74,"Pequeña"]
["Cundinamarca","Útica",44.87,"Pequeña"]
["Cundinamarca","Venecia Cundinamarca",42.81,"Pequeña"]
["Cundinamarca","Vergara",51.73,"Pequeña"]
["Cundinamarca","Vianí",33.159999999999997,"Pequeña"]
["Cundinamarca","Villa de San Diego de Ubate",18.559999999999999,"Mediana"]
["Cundinamarca","Villagómez",60.55,"Pequeña"]
["Cundinamarca","Villapinzón",31.8,"Pequeña"]
["Cundinamarca","Villeta",18.46,"Mediana"]
["Cundinamarca","Viotá",41.64,"Pequeña"]
["Cundinamarca","Yacopí",53.76,"Pequeña"]
["Cundinamarca","Zipacón",28.99,"Pequeña"]
["Cundinamarca","Zipaquirá",6.89,"Grande"]
["Guainía","Guainía",74.739999999999995,"Pequeña"]
["Guainía","Inírida",72.38,"Pequeña"]
["Guaviare","Calamar Guaviare",63.66,"Pequeña"]
["Guaviare","El Retorno",11.2,"Mediana"]
["Guaviare","Guaviare (Departamento)",58.52,"Pequeña"]
["Guaviare","Miraflores Guaviare",89.14,"Pequeña"]
["Guaviare","San José del Guaviare",58.46,"Pequeña"]
["Huila","Acevedo",87.96,"Pequeña"]
["Huila","Agrado",45.92,"Pequeña"]
["Huila","Aipe",28.95,"Pequeña"]
["Huila","Algeciras",35.68,"Pequeña"]
["Huila","Altamira",30.57,"Pequeña"]
["Huila","Baraya",27.6,"Pequeña"]
["Huila","Campoalegre",21.39,"Mediana"]
["Huila","Colombia",72.819999999999993,"Pequeña"]
["Huila","Elías",46.16,"Pequeña"]
["Huila","Garzón",29.23,"Pequeña"]
["Huila","Gigante",27.56,"Pequeña"]
["Huila","Guadalupe Huila",40.71,"Pequeña"]
["Huila","Hobo",28.87,"Pequeña"]
["Huila","Huila (Departamento)",27.94,"Pequeña"]
["Huila","Iquira",44.79,"Pequeña"]
["Huila","Isnos",47.05,"Pequeña"]
["Huila","La Argentina",50.27,"Pequeña"]
["Huila","La Plata",37.729999999999997,"Pequeña"]
["Huila","Nátaga",52.87,"Pequeña"]
["Huila","Neiva",8.9700000000000006,"Mediana"]
["Huila","Oporapa",60.23,"Pequeña"]
["Huila","Paicol",52.83,"Pequeña"]
["Huila","Palermo",30.04,"Pequeña"]
["Huila","Palestina Huila",60.27,"Pequeña"]
["Huila","Pital",52.97,"Pequeña"]
["Huila","Pitalito",22.93,"Mediana"]
["Huila","Rivera",24.45,"Mediana"]
["Huila","Saladoblanco",49.64,"Pequeña"]
["Huila","San Agustín",44.05,"Pequeña"]
["Huila","Santa María Huila",62.44,"Pequeña"]
["Huila","Suaza",51.65,"Pequeña"]
["Huila","Tarqui",49.25,"Pequeña"]
["Huila","Tello",54.74,"Pequeña"]
["Huila","Teruel",36.049999999999997,"Pequeña"]
["Huila","Tesalia",24.27,"Mediana"]
["Huila","Timaná",39.31,"Pequeña"]
["Huila","Villavieja",44.59,"Pequeña"]
["Huila","Yaguará",12,"Mediana"]
["La Guajira","Albania La Guajira",62.04,"Pequeña"]
["La Guajira","Barrancas",47.11,"Pequeña"]
["La Guajira","Dibulla",63.22,"Pequeña"]
["La Guajira","Distracción",56.42,"Pequeña"]
["La Guajira","El Molino",53.01,"Pequeña"]
["La Guajira","Fonseca",45.9,"Pequeña"]
["La Guajira","Hatonuevo",44.91,"Pequeña"]
["La Guajira","La Guajira (Departamento)",52.36,"Pequeña"]
["La Guajira","La Jagua del Pilar",51.89,"Pequeña"]
["La Guajira","Maicao",61.17,"Pequeña"]
["La Guajira","Manaure",52.15,"Pequeña"]
["La Guajira","Riohacha",38.47,"Pequeña"]
["La Guajira","San Juan del Cesar",47.14,"Pequeña"]
["La Guajira","Uribia",74.849999999999994,"Pequeña"]
["La Guajira","Urumita",49.38,"Pequeña"]
["La Guajira","Villanueva La Guajira",45.37,"Pequeña"]
["Magdalena","Algarrobo",70.28,"Pequeña"]
["Magdalena","Aracataca",61.86,"Pequeña"]
["Magdalena","Ariguaní",80.48,"Pequeña"]
["Magdalena","Cerro San Antonio",80.13,"Pequeña"]
["Magdalena","Chibolo",68.16,"Pequeña"]
["Magdalena","Ciénaga",50.02,"Pequeña"]
["Magdalena","Concordia Magdalena",66.12,"Pequeña"]
["Magdalena","El Banco",61.46,"Pequeña"]
["Magdalena","El Piñón",65.760000000000005,"Pequeña"]
["Magdalena","El Retén",75.34,"Pequeña"]
["Magdalena","Fundación",56.29,"Pequeña"]
["Magdalena","Guamal Magdalena",62.28,"Pequeña"]
["Magdalena","Magdalena (Departamento)",49.75,"Pequeña"]
["Magdalena","Nueva Granada",76.5,"Pequeña"]
["Magdalena","Pedraza",66.33,"Pequeña"]
["Magdalena","Pijiño del Carmen",68.150000000000006,"Pequeña"]
["Magdalena","Pivijay",69.08,"Pequeña"]
["Magdalena","Plato",60.86,"Pequeña"]
["Magdalena","Puebloviejo",57.36,"Pequeña"]
["Magdalena","Remolino",75.650000000000006,"Pequeña"]
["Magdalena","Sabanas de San Ángel",66.209999999999994,"Pequeña"]
["Magdalena","Salamina Magdalena",58.19,"Pequeña"]
["Magdalena","San Sebastián de Buenavista",65.900000000000006,"Pequeña"]
["Magdalena","San Zenón",71.19,"Pequeña"]
["Magdalena","Santa Ana",51.16,"Pequeña"]
["Magdalena","Santa Bárbara de Pinto",75.86,"Pequeña"]
["Magdalena","Santa Marta",30.48,"Pequeña"]
["Magdalena","Sitionuevo",77.31,"Pequeña"]
["Magdalena","Tenerife",73.25,"Pequeña"]
["Magdalena","Zapayán",73.88,"Pequeña"]
["Magdalena","Zona Bananera",40.46,"Pequeña"]
["Meta","Acacías",10.79,"Mediana"]
["Meta","Barranca de Upía",38.82,"Pequeña"]
["Meta","Cabuyaro",45.11,"Pequeña"]
["Meta","Castilla La Nueva",9.7100000000000009,"Mediana"]
["Meta","Cubarral",28.82,"Pequeña"]
["Meta","Cumaral",11.46,"Mediana"]
["Meta","El Calvario",54.67,"Pequeña"]
["Meta","El Castillo",53.76,"Pequeña"]
["Meta","El Dorado",25.31,"Pequeña"]
["Meta","Fuente de Oro",33.67,"Pequeña"]
["Meta","Granada",61.08,"Pequeña"]
["Meta","Guamal",15.35,"Mediana"]
["Meta","La Macarena",50.14,"Pequeña"]
["Meta","Lejanías",39.549999999999997,"Pequeña"]
["Meta","Mapiripán",22,"Mediana"]
["Meta","Mesetas",41.45,"Pequeña"]
["Meta","Meta (Departamento)",23.03,"Mediana"]
["Meta","Puerto Concordia",44.69,"Pequeña"]
["Meta","Puerto Gaitán",28.31,"Pequeña"]
["Meta","Puerto Lleras",82.06,"Pequeña"]
["Meta","Puerto López",24.53,"Mediana"]
["Meta","Puerto Rico",50.37,"Pequeña"]
["Meta","Restrepo",16.05,"Mediana"]
["Meta","San Carlos de Guaroa",23.13,"Mediana"]
["Meta","San Juan de Arama",42.79,"Pequeña"]
["Meta","San Juanito",52.45,"Pequeña"]
["Meta","San Martín",18.55,"Mediana"]
["Meta","Uribe",73.45,{"$f":"+IF(C767<=8.4,\"Grande\",IF(C767<=24.6,\"Mediana\",\"Pequeña\"))","v":"Pequeña"}]
["Meta","Villavicencio",13.98,"Mediana"]
["Meta","Vistahermosa",49.75,"Pequeña"]
["Nariño","Albán Nariño",44.3,"Pequeña"]
["Nariño","Aldana",45.35,"Pequeña"]
["Nariño","Ancuyá",45.69,"Pequeña"]
["Nariño","Arboleda",77,"Pequeña"]
["Nariño","Barbacoas",72.459999999999994,"Pequeña"]
["Nariño","Belén Nariño",23.79,"Mediana"]
["Nariño","Buesaco",61.2,"Pequeña"]
["Nariño","Chachagüí",47.57,"Pequeña"]
["Nariño","Colón Nariño",56.27,"Pequeña"]
["Nariño","Consacá",52.2,"Pequeña"]
["Nariño","Contadero",67.86,"Pequeña"]
["Nariño","Córdoba Nariño",76.900000000000006,"Pequeña"]
["Nariño","Cuaspud",69,"Pequeña"]
["Nariño","Cumbal",55.09,"Pequeña"]
["Nariño","Cumbitara",51.87,"Pequeña"]
["Nariño","El Charco",90.55,"Pequeña"]
["Nariño","El Peñol",61.22,"Pequeña"]
["Nariño","El Rosario",66.569999999999993,"Pequeña"]
["Nariño","El Tablón de Gómez",54.15,"Pequeña"]
["Nariño","El Tambo Nariño",45.87,"Pequeña"]
["Nariño","Francisco Pizarro",91.85,"Pequeña"]
["Nariño","Funes",63.35,"Pequeña"]
["Nariño","Guachucal",45.46,"Pequeña"]
["Nariño","Guaitarilla",53.7,"Pequeña"]
["Nariño","Gualmatán",47.92,"Pequeña"]
["Nariño","Iles",58.96,"Pequeña"]
["Nariño","Imués",58.75,"Pequeña"]
["Nariño","Ipiales",28.49,"Pequeña"]
["Nariño","La Cruz",60.71,"Pequeña"]
["Nariño","La Florida",43.38,"Pequeña"]
["Nariño","La Llanada",36.200000000000003,"Pequeña"]
["Nariño","La Tola",93.22,"Pequeña"]
["Nariño","La Unión Nariño",38.380000000000003,"Pequeña"]
["Nariño","Leiva",66.91,"Pequeña"]
["Nariño","Linares",51.8,"Pequeña"]
["Nariño","Los Andes",56.34,"Pequeña"]
["Nariño","Magüi",80.569999999999993,"Pequeña"]
["Nariño","Mallama",74.09,"Pequeña"]
["Nariño","Mosquera Nariño",89.56,"Pequeña"]
["Nariño","Nariño",44.59,"Pequeña"]
["Nariño","Nariño (Departamento)",32.33,"Pequeña"]
["Nariño","Olaya Herrera",83.43,"Pequeña"]
["Nariño","Ospina",60.02,"Pequeña"]
["Nariño","Pasto",12.64,"Mediana"]
["Nariño","Policarpa",45.45,"Pequeña"]
["Nariño","Potosí",51.87,"Pequeña"]
["Nariño","Providencia Nariño",58.23,"Pequeña"]
["Nariño","Puerres",52.38,"Pequeña"]
["Nariño","Pupiales",55.93,"Pequeña"]
["Nariño","Ricaurte Nariño",43.82,"Pequeña"]
["Nariño","Roberto Payán",79.900000000000006,"Pequeña"]
["Nariño","Samaniego",56.47,"Pequeña"]
["Nariño","San Andrés de Tumaco",76.37,"Pequeña"]
["Nariño","San Bernardo Nariño",48.3,"Pequeña"]
["Nariño","San Lorenzo",57.17,"Pequeña"]
["Nariño","San Pablo",30.36,"Pequeña"]
["Nariño","San Pedro de Cartago",57.65,"Pequeña"]
["Nariño","Sandoná",31.06,"Pequeña"]
["Nariño","Santa Bárbara",22,"Mediana"]
["Nariño","Santacruz",54.75,"Pequeña"]
["Nariño","Sapuyes",39.5,"Pequeña"]
["Nariño","Taminango",52.68,"Pequeña"]
["Nariño","Tangua",54.03,"Pequeña"]
["Nariño","Túquerres",42.74,"Pequeña"]
["Nariño","Yacuanquer",59.3,"Pequeña"]
["Norte de Santander","Ábrego",43.65,"Pequeña"]
["Norte de Santander","Arboledas",58.72,"Pequeña"]
["Norte de Santander","Bochalema",31.02,"Pequeña"]
["Norte de Santander","Bucarasica",80.7,"Pequeña"]
["Norte de Santander","Cachirá",64.069999999999993,"Pequeña"]
["Norte de Santander","Cácota",68.34,"Pequeña"]
["Norte de Santander","Chinácota",30.04,"Pequeña"]
["Norte de Santander","Chitagá",52.68,"Pequeña"]
["Norte de Santander","Convención",53.99,"Pequeña"]
["Norte de Santander","Cúcuta",15.9,"Mediana"]
["Norte de Santander","Cucutilla",62.27,"Pequeña"]
["Norte de Santander","Durania",46.51,"Pequeña"]
["Norte de Santander","El Carmen",64.11,"Pequeña"]
["Norte de Santander","El Tarra",65.760000000000005,"Pequeña"]
["Norte de Santander","El Zulia",45.39,"Pequeña"]
["Norte de Santander","Gramalote",38.11,"Pequeña"]
["Norte de Santander","Hacarí",83.73,"Pequeña"]
["Norte de Santander","Herrán",47.14,"Pequeña"]
["Norte de Santander","La Esperanza",55.27,"Pequeña"]
["Norte de Santander","La Playa",64.95,"Pequeña"]
["Norte de Santander","Labateca",46.6,"Pequeña"]
["Norte de Santander","Los Patios",14.05,"Mediana"]
["Norte de Santander","Lourdes",44.76,"Pequeña"]
["Norte de Santander","Mutiscua",68.760000000000005,"Pequeña"]
["Norte de Santander","Norte de Santander (Departamento)",26.58,"Pequeña"]
["Norte de Santander","Ocaña",23.05,"Mediana"]
["Norte de Santander","Pamplona",9.25,"Mediana"]
["Norte de Santander","Pamplonita",61.89,"Pequeña"]
["Norte de Santander","Puerto Santander",23.46,"Mediana"]
["Norte de Santander","Ragonvalia",56.58,"Pequeña"]
["Norte de Santander","Salazar",49.43,"Pequeña"]
["Norte de Santander","San Calixto",80.62,"Pequeña"]
["Norte de Santander","San Cayetano Norte de Santander",36.71,"Pequeña"]
["Norte de Santander","Santiago",37.22,"Pequeña"]
["Norte de Santander","Sardinata",52.28,"Pequeña"]
["Norte de Santander","Silos",52.54,"Pequeña"]
["Norte de Santander","Teorama",76.16,"Pequeña"]
["Norte de Santander","Tibú",50.35,"Pequeña"]
["Norte de Santander","Toledo",49.92,"Pequeña"]
["Norte de Santander","Villa Caro",63.23,"Pequeña"]
["Norte de Santander","Villa del Rosario",25.16,"Pequeña"]
["Putumayo","Colón",33.11,"Pequeña"]
["Putumayo","Mocoa",32.07,"Pequeña"]
["Putumayo","Orito",75.14,"Pequeña"]
["Putumayo","Puerto Asís",76.66,"Pequeña"]
["Putumayo","Puerto Caicedo",67.650000000000006,"Pequeña"]
["Putumayo","Puerto Guzmán",54.9,"Pequeña"]
["Putumayo","Puerto Leguízamo",40.33,"Pequeña"]
["Putumayo","Putumayo (Departamento)",63,"Pequeña"]
["Putumayo","San Francisco Putumayo",42.02,"Pequeña"]
["Putumayo","San Miguel Putumayo",91.72,"Pequeña"]
["Putumayo","Santiago Putumayo",56,"Pequeña"]
["Putumayo","Sibundoy",30.45,"Pequeña"]
["Putumayo","Valle del Guamuez",78.38,"Pequeña"]
["Putumayo","Villagarzón",56.32,"Pequeña"]
["Quindío","Armenia",4.53,"Grande"]
["Quindío","Buenavista Quindío",33.049999999999997,"Pequeña"]
["Quindío","Calarcá",8.11,"Grande"]
["Quindío","Circasia",22,"Mediana"]
["Quindío","Córdoba Quindío",19.239999999999998,"Mediana"]
["Quindío","Filandia",22,"Mediana"]
["Quindío","Génova",30.12,"Pequeña"]
["Quindío","La Tebaida",22,"Mediana"]
["Quindío","Montenegro",22,"Mediana"]
["Quindío","Pijao",33.46,"Pequeña"]
["Quindío","Quimbaya",8.9600000000000009,"Mediana"]
["Quindío","Quindío (Departamento)",6.89,"Grande"]
["Quindío","Salento",19.100000000000001,"Mediana"]
["Risaralda","Apía",29.29,"Pequeña"]
["Risaralda","Balboa",34.82,"Pequeña"]
["Risaralda","Belén de Umbría",28.59,"Pequeña"]
["Risaralda","Dosquebradas",22,"Mediana"]
["Risaralda","Guática",28.16,"Pequeña"]
["Risaralda","La Celia",45.81,"Pequeña"]
["Risaralda","La Virginia",22,"Mediana"]
["Risaralda","Marsella",27.98,"Pequeña"]
["Risaralda","Mistrató",28.81,"Pequeña"]
["Risaralda","Pereira",6.38,"Grande"]
["Risaralda","Pueblo Rico",43.75,"Pequeña"]
["Risaralda","Quinchía",36.869999999999997,"Pequeña"]
["Risaralda","Risaralda (Departamento)",11.15,"Mediana"]
["Risaralda","Santa Rosa de Cabal",12.14,"Mediana"]
["Risaralda","Santuario",20.399999999999999,"Mediana"]
["San Andrés y Providencia","Providencia",61.6,"Pequeña"]
["San Andrés y Providencia","San Andrés y Providencia",70.95,"Pequeña"]
["Santander","Aguada",55.09,"Pequeña"]
["Santander","Albania Santander",56.7,"Pequeña"]
["Santander","Aratoca",51.59,"Pequeña"]
["Santander","Barbosa",11.16,"Mediana"]
["Santander","Barichara",31.6,"Pequeña"]
["Santander","Barrancabermeja",20.69,"Mediana"]
["Santander","Betulia",63.04,"Pequeña"]
["Santander","Bolívar",56.29,"Pequeña"]
["Santander","Bucaramanga",4.92,"Grande"]
["Santander","Cabrera Santander",53.32,"Pequeña"]
["Santander","California",49.87,"Pequeña"]
["Santander","Capitanejo",46.4,"Pequeña"]
["Santander","Carcasí",72.98,"Pequeña"]
["Santander","Cepitá",81.260000000000005,"Pequeña"]
["Santander","Cerrito",52.49,"Pequeña"]
["Santander","Charalá",27.45,"Pequeña"]
["Santander","Charta",47.32,"Pequeña"]
["Santander","Chima",54.31,"Pequeña"]
["Santander","Chipatá",50.64,"Pequeña"]
["Santander","Cimitarra",39.47,"Pequeña"]
["Santander","Concepción Santander",44.89,"Pequeña"]
["Santander","Confines",27.97,"Pequeña"]
["Santander","Contratación",46.23,"Pequeña"]
["Santander","Coromoro",67.53,"Pequeña"]
["Santander","Curití",34.86,"Pequeña"]
["Santander","El Carmen de Chucurí",56.7,"Pequeña"]
["Santander","El Guacamayo",60.24,"Pequeña"]
["Santander","El Peñón Santander",70.38,"Pequeña"]
["Santander","El Playón",47.67,"Pequeña"]
["Santander","Encino",48.25,"Pequeña"]
["Santander","Enciso",49.19,"Pequeña"]
["Santander","Florián",57.32,"Pequeña"]
["Santander","Floridablanca",22,"Mediana"]
["Santander","Galán",52.86,"Pequeña"]
["Santander","Gámbita",71.459999999999994,"Pequeña"]
["Santander","Girón",11.41,"Mediana"]
["Santander","Guaca",55.97,"Pequeña"]
["Santander","Guadalupe",58.6,"Pequeña"]
["Santander","Guapotá",23.7,"Mediana"]
["Santander","Guavatá",47.56,"Pequeña"]
["Santander","Güepsa",30.5,"Pequeña"]
["Santander","Hato",53.02,"Pequeña"]
["Santander","Jesús María",46.33,"Pequeña"]
["Santander","Jordán",70.31,"Pequeña"]
["Santander","La Belleza",54.62,"Pequeña"]
["Santander","La Paz",57.13,"Pequeña"]
["Santander","Landázuri",54.55,"Pequeña"]
["Santander","Lebrija",28.62,"Pequeña"]
["Santander","Los Santos",52.38,"Pequeña"]
["Santander","Macaravita",81.16,"Pequeña"]
["Santander","Málaga",19.559999999999999,"Mediana"]
["Santander","Matanza",63.97,"Pequeña"]
["Santander","Mogotes",48.84,"Pequeña"]
["Santander","Molagavita",80.67,"Pequeña"]
["Santander","Ocamonte",29.32,"Pequeña"]
["Santander","Oiba",53.33,"Pequeña"]
["Santander","Onzaga",71.760000000000005,"Pequeña"]
["Santander","Palmar",45.72,"Pequeña"]
["Santander","Palmas del Socorro",31.46,"Pequeña"]
["Santander","Páramo",26.28,"Pequeña"]
["Santander","Piedecuesta",14.99,"Mediana"]
["Santander","Pinchote",24.76,"Pequeña"]
["Santander","Puente Nacional",44.01,"Pequeña"]
["Santander","Puerto Parra",41.31,"Pequeña"]
["Santander","Puerto Wilches",36.700000000000003,"Pequeña"]
["Santander","Rionegro Santander",41.53,"Pequeña"]
["Santander","Sabana de Torres",36.19,"Pequeña"]
["Santander","San Andrés",37.21,"Pequeña"]
["Santander","San Benito",56.52,"Pequeña"]
["Santander","San Gil",10.16,"Mediana"]
["Santander","San Joaquín",54.85,"Pequeña"]
["Santander","San José de Miranda",66.989999999999995,"Pequeña"]
["Santander","San Miguel",65.239999999999995,"Pequeña"]
["Santander","San Vicente de Chucurí",36,"Pequeña"]
["Santander","Santa Bárbara Santander",63.28,"Pequeña"]
["Santander","Santa Helena del Opón",65.05,"Pequeña"]
["Santander","Santander (Departamento)",20.61,"Mediana"]
["Santander","Simacota",61.2,"Pequeña"]
["Santander","Socorro",9.01,"Mediana"]
["Santander","Suaita",46.76,"Pequeña"]
["Santander","Sucre Santander",53.07,"Pequeña"]
["Santander","Suratá",64.180000000000007,"Pequeña"]
["Santander","Tona",73.37,"Pequeña"]
["Santander","Valle de San José",27.47,"Pequeña"]
["Santander","Vélez",35.51,"Pequeña"]
["Santander","Vetas",42.74,"Pequeña"]
["Santander","Villanueva Santander",31.76,"Pequeña"]
["Santander","Zapatoca",24.87,"Pequeña"]
["Sucre","Buenavista Sucre",50.36,"Pequeña"]
["Sucre","Caimito",68.61,"Pequeña"]
["Sucre","Chalán",95.07,"Pequeña"]
["Sucre","Colosó",81.89,"Pequeña"]
["Sucre","Corozal",31.71,"Pequeña"]
["Sucre","Coveñas",37.340000000000003,"Pequeña"]
["Sucre","El Roble",62.08,"Pequeña"]
["Sucre","Galeras",59.97,"Pequeña"]
["Sucre","Guaranda",65.61,"Pequeña"]
["Sucre","La Unión Sucre",54.63,"Pequeña"]
["Sucre","Los Palmitos",49.36,"Pequeña"]
["Sucre","Majagual",68.61,"Pequeña"]
["Sucre","Morroa",40.93,"Pequeña"]
["Sucre","Ovejas",54.66,"Pequeña"]
["Sucre","Palmito",46.87,{"$f":"+IF(C1022<=8.4,\"Grande\",IF(C1022<=24.6,\"Mediana\",\"Pequeña\"))","v":"Pequeña"}]
["Sucre","Sampués",46.68,"Pequeña"]
["Sucre","San Benito Abad",58.34,"Pequeña"]
["Sucre","San Juan de Betulia",42.07,"Pequeña"]
["Sucre","San Luis de Sincé",31.36,"Pequeña"]
["Sucre","San Marcos",66.83,"Pequeña"]
["Sucre","San Onofre",61.91,"Pequeña"]
["Sucre","San Pedro Sucre",69.099999999999994,"Pequeña"]
["Sucre","Santiago de Tolú",48.16,"Pequeña"]
["Sucre","Sincelejo",26.93,"Pequeña"]
["Sucre","Sucre (Departamento)",44.83,"Pequeña"]
["Sucre","Sucre",58.7,"Pequeña"]
["Sucre","Tolú Viejo",42.2,"Pequeña"]
["Tolima","Alpujarra",46.07,"Pequeña"]
["Tolima","Alvarado",50.49,"Pequeña"]
["Tolima","Ambalema",25.46,"Pequeña"]
["Tolima","Anzoátegui",65.14,"Pequeña"]
["Tolima","Armero",19,"Mediana"]
["Tolima","Ataco",65.87,"Pequeña"]
["Tolima","Cajamarca",32.74,"Pequeña"]
["Tolima","Carmen de Apicalá",13.64,"Mediana"]
["Tolima","Casabianca",47.48,"Pequeña"]
["Tolima","Chaparral",42.65,"Pequeña"]
["Tolima","Coello",46.3,"Pequeña"]
["Tolima","Coyaima",54.82,"Pequeña"]
["Tolima","Cunday",48.59,"Pequeña"]
["Tolima","Dolores",36.799999999999997,"Pequeña"]
["Tolima","Espinal",14.53,"Mediana"]
["Tolima","Falan",47.33,"Pequeña"]
["Tolima","Flandes",10.23,"Mediana"]
["Tolima","Fresno",34.94,"Pequeña"]
["Tolima","Guamo",38.409999999999997,"Pequeña"]
["Tolima","Herveo",39.79,"Pequeña"]
["Tolima","Honda",10.119999999999999,"Mediana"]
["Tolima","Ibagué",9.1300000000000008,"Mediana"]
["Tolima","Icononzo",43.71,"Pequeña"]
["Tolima","Lérida",12.84,"Mediana"]
["Tolima","Líbano",30.09,"Pequeña"]
["Tolima","Melgar",22.04,"Mediana"]
["Tolima","Murillo",60.07,"Pequeña"]
["Tolima","Natagaima",42.87,"Pequeña"]
["Tolima","Ortega",58.33,"Pequeña"]
["Tolima","Palocabildo",44.2,"Pequeña"]
["Tolima","Piedras",28.12,"Pequeña"]
["Tolima","Planadas",58.32,"Pequeña"]
["Tolima","Prado",43.16,"Pequeña"]
["Tolima","Purificación",27.9,"Pequeña"]
["Tolima","Rioblanco",67.91,"Pequeña"]
["Tolima","Roncesvalles",59.46,"Pequeña"]
["Tolima","Rovira",55.01,"Pequeña"]
["Tolima","Saldaña",28.4,"Pequeña"]
["Tolima","San Antonio",57.45,"Pequeña"]
["Tolima","San Luis Tolima",47.16,"Pequeña"]
["Tolima","San Sebastián de Mariquita",23.88,"Mediana"]
["Tolima","Santa Isabel",55.42,"Pequeña"]
["Tolima","Suárez",46.36,"Pequeña"]
["Tolima","Tolima (Departamento)",25.74,"Pequeña"]
["Tolima","Valle de San Juan",46.7,"Pequeña"]
["Tolima","Venadillo",30.06,"Pequeña"]
["Tolima","Villahermosa",56.73,"Pequeña"]
["Tolima","Villarrica",45.64,"Pequeña"]
["Valle del Cauca","Alcalá",22,"Mediana"]
["Valle del Cauca","Andalucía",10.19,"Mediana"]
["Valle del Cauca","Ansermanuevo",27.95,"Pequeña"]
["Valle del Cauca","Argelia Valle del Cauca",35.49,"Pequeña"]
["Valle del Cauca","Bolívar Valle del Cauca",34.64,"Pequeña"]
["Valle del Cauca","Buenaventura",43.24,"Pequeña"]
["Valle del Cauca","Bugalagrande",10.68,"Mediana"]
["Valle del Cauca","Caicedonia",11.2,"Mediana"]
["Valle del Cauca","Cali",5.72,"Grande"]
["Valle del Cauca","Calima",19.39,"Mediana"]
["Valle del Cauca","Candelaria",9.17,"Mediana"]
["Valle del Cauca","Cartago",4.37,"Grande"]
["Valle del Cauca","Dagua",26.68,"Pequeña"]
["Valle del Cauca","El Águila",39.79,"Pequeña"]
["Valle del Cauca","El Cairo",26.98,"Pequeña"]
["Valle del Cauca","El Cerrito",22,"Mediana"]
["Valle del Cauca","El Dovio",25.05,"Pequeña"]
["Valle del Cauca","Florida",11.59,"Mediana"]
["Valle del Cauca","Ginebra",18.29,"Mediana"]
["Valle del Cauca","Guacarí",10.35,"Mediana"]
["Valle del Cauca","Guadalajara de Buga",22,"Mediana"]
["Valle del Cauca","Jamundí",10.61,"Mediana"]
["Valle del Cauca","La Cumbre",20.66,"Mediana"]
["Valle del Cauca","La Unión Valle del Cauca",14.93,"Mediana"]
["Valle del Cauca","La Victoria",9.7799999999999994,"Mediana"]
["Valle del Cauca","Obando",21.35,"Mediana"]
["Valle del Cauca","Palmira",4.8600000000000003,"Grande"]
["Valle del Cauca","Pradera",9.4,"Mediana"]
["Valle del Cauca","Restrepo Valle del Cauca",17.04,"Mediana"]
["Valle del Cauca","Riofrío",21.08,"Mediana"]
["Valle del Cauca","Roldanillo",11.44,"Mediana"]
["Valle del Cauca","San Pedro",10.88,"Mediana"]
["Valle del Cauca","Sevilla",17.440000000000001,"Mediana"]
["Valle del Cauca","Toro",29.81,"Pequeña"]
["Valle del Cauca","Trujillo",31.65,"Pequeña"]
["Valle del Cauca","Tuluá",6.66,"Grande"]
["Valle del Cauca","Ulloa",12.82,"Mediana"]
["Valle del Cauca","Valle del Cauca (Departamento)",10.4,"Mediana"]
["Valle del Cauca","Versalles",44.79,"Pequeña"]
["Valle del Cauca","Vijes",20.25,"Mediana"]
["Valle del Cauca","Yotoco",21.58,"Mediana"]
["Valle del Cauca","Yumbo",12.34,"Mediana"]
["Valle del Cauca","Zarzal",22,"Mediana"]
["Vaupés","Carurú",35.450000000000003,"Pequeña"]
["Vaupés","Mitú",38.299999999999997,"Pequeña"]
["Vaupés","Taraira",39.380000000000003,"Pequeña"]
["Vaupés","Vaupés (Departamento)",40.32,"Pequeña"]
["Vichada","Cumaribo",52.89,"Pequeña"]
["Vichada","La Primavera",33,"Pequeña"]
["Vichada","Puerto Carreño",73.34,"Pequeña"]
["Vichada","Santa Rosalía",80.650000000000006,"Pequeña"]
["Vichada","Vichada (Departamento)",63.14,"Pequeña"]

{"sheet":"Hoja1","index":2,"n_rows":127,"n_cols":35,"rows_kept":127,"cut":false,"hidden":false,"merged":[]}
["DEPARTAMENTO",null,"Amazonas","Antioquia","Arauca","Atlántico","Bogotá","Bolívar","Boyacá","Caldas","Caquetá","Casanare","Cauca","Cesar","Chocó","Córdoba","Cundinamarca","Guainía","Guaviare","Huila","La Guajira","Magdalena","Meta","Nariño","Norte de Santander","Putumayo","Quindío","Risaralda","San Andrés y Providencia","Santander","Sucre","Tolima","Valle del Cauca","Vaupés","Vichada"]
["Amazonas",null,"Amazonas (Departamento)","Antioquia (Departamento)","Arauca (Departamento)","Atlántico (Departamento)","Bogotá","Bolívar (Departamento)","Boyacá (Departamento)","Caldas (Departamento)","Caquetá (Departamento)","Casanare (Departamento)","Cauca (Departamento)","Cesar (Departamento)","Chocó (Departamento)","Córdoba (Departamento)","Cundinamarca (Departamento)","Guainía (Departamento)","Guaviare (Departamento)","Huila (Departamento)","La Guajira (Departamento)","Magdalena (Departamento)","Meta (Departamento)","Nariño (Departamento)","Norte de Santander (Departamento)","Putumayo (Departamento)","Quindío (Departamento)","Risaralda (Departamento)","San Andrés","Santander (Departamento)","Sucre (Departamento)","Tolima (Departamento)","Valle del Cauca (Departamento)","Vaupés (Departamento)","Vichada (Departamento)"]
["Antioquia",null,"Leticia","Medellín","Arauca","Barranquilla",null,"Cartagena","Tunja","Manizales","Florencia","Yopal","Popayán","Valledupar","Quibdó","Montería","Agua de Dios","Inírida","El Retorno","Neiva","Riohacha","Santa Marta","Villavicencio","Pasto","Cúcuta","Mocoa","Armenia","Pereira","Providencia","Bucaramanga","Sincelejo","Ibagué","Cali","Mitú","Puerto Carreño"]
["Arauca",null,"Puerto Nariño","Abejorral","Arauquita","Baranoa",null,"Achí","Almeida","Aguadas","Albania","Aguazul","Almaguer","Aguachica","Acandí","Ayapel","Albán",null,"Miraflores","Acevedo","Albania","Algarrobo","Acacías","Albán","Ábrego","Colón","Buenavista","Apía",null,"Aguada","Buenavista","Alpujarra","Alcalá","Carurú","La Primavera"]
["Atlántico",null,null,"Abriaquí","Cravo Norte","Campo de La Cruz",null,"Altos del Rosario","Aquitania","Anserma","Belén de Los Andaquíes","Chámeza","Argelia","Agustín Codazzi","Alto Baudó","Buenavista","Anapoima",null,"San José del Guaviare","Agrado","Barrancas","Aracataca","Barranca de Upía","Aldana","Arboledas","Orito","Calarcá","Balboa",null,"Albania","Caimito","Alvarado","Andalucía","Taraira","Santa Rosalía"]
["Bogotá",null,null,"Alejandría","Fortul","Candelaria",null,"Arenal","Arcabuco","Aranzazu","Cartagena del Chairá","Hato Corozal","Balboa","Astrea","Atrato","Canalete","Anolaima",null,"Calamar","Aipe","Dibulla","Ariguaní","Cabuyaro","Ancuyá","Bochalema","Puerto Asís","Circasia","Belén de Umbría",null,"Aratoca","Colosó","Ambalema","Ansermanuevo",null,"Cumaribo"]
["Bolívar",null,null,"Amagá","Puerto Rondón","Galapa",null,"Arjona","Belén","Belalcázar","Curillo","La Salina","Bolívar","Becerril","Bagadó","Cereté","Arbeláez",null,null,"Algeciras","Distracción","Cerro San Antonio","Castilla La Nueva","Arboleda","Bucarasica","Puerto Caicedo","Córdoba","Dosquebradas",null,"Barbosa","Corozal","Anzoátegui","Argelia"]
["Boyacá",null,null,"Amalfi","Saravena","Juan de Acosta",null,"Arroyohondo","Berbeo","Chinchiná","El Doncello","Maní","Buenos Aires","Bosconia","Bahía Solano","Chimá","Beltrán",null,null,"Altamira","El Molino","Chibolo","Cubarral","Barbacoas","Cácota","Puerto Guzmán","Filandia","Guática",null,"Barichara","Coveñas","Armero","Bolívar"]
["Caldas",null,null,"Andes","Tame","Luruaco",null,"Barranco de Loba","Betéitiva","Filadelfia","El Paujil","Monterrey","Cajibío","Chimichagua","Bajo Baudó","Chinú","Bituima",null,null,"Baraya","Fonseca","Ciénaga","Cumaral","Belén","Cachirá","Puerto Leguízamo","Génova","La Celia",null,"Barrancabermeja","Chalán","Ataco","Buenaventura"]
["Caquetá",null,null,"Angelópolis",null,"Malambo",null,"Calamar","Boavita","La Dorada","La Montañita","Nunchía","Caldono","Chiriguaná","Bojayá","Ciénaga de Oro","Bojacá",null,null,"Campoalegre","Hatonuevo","Concordia","El Calvario","Buesaco","Chinácota","Sibundoy","La Tebaida","La Virginia",null,"Betulia","El Roble","Cajamarca","Guadalajara de Buga"]
["Casanare",null,null,"Angostura",null,"Manatí",null,"Cantagallo","Boyacá","La Merced","Milán","Orocué","Caloto","Curumaní","El Cantón del San Pablo","Cotorra","Cabrera",null,null,"Colombia","La Jagua del Pilar","El Banco","El Castillo","Colón","Chitagá","San Francisco","Montenegro","Marsella",null,"Bolívar","Galeras","Carmen de Apicalá","Bugalagrande"]
["Cauca",null,null,"Anorí",null,"Palmar de Varela",null,"Cicuco","Briceño","Manzanares","Morelia","Paz de Ariporo","Corinto","El Copey","Carmen del Darién","La Apartada","Cachipay",null,null,"Elías","Maicao","El Piñón","El Dorado","Consacá","Convención","San Miguel","Pijao","Mistrató",null,"Cabrera","Guaranda","Casabianca","Caicedonia"]
["Cesar",null,null,"Santafé de Antioquia",null,"Piojó",null,"Córdoba","Buenavista","Marmato","Puerto Rico","Pore","El Tambo","El Paso","Cértegui","Lorica","Cajicá",null,null,"Garzón","Manaure","El Retén","Fuente de Oro","Contadero","Cucutilla","Santiago","Quimbaya","Pueblo Rico",null,"California","La Unión","Chaparral","Calima"]
["Chocó",null,null,"Anzá",null,"Polonuevo",null,"Clemencia","Busbanzá","Marquetalia","San José del Fragua","Recetor","Florencia","Gamarra","Condoto","Los Córdobas","Caparrapí",null,null,"Gigante","San Juan del Cesar","Fundación","Granada","Córdoba","Durania","Valle del Guamuez","Salento","Quinchía",null,"Capitanejo","Los Palmitos","Coello","Candelaria"]
["Córdoba",null,null,"Apartadó",null,"Ponedera",null,"El Carmen de Bolívar","Caldas","Marulanda","San Vicente del Caguán","Sabanalarga","Guachené","González","El Carmen de Atrato","Momil","Cáqueza",null,null,"Guadalupe","Uribia","Guamal","Guamal","Cuaspud","El Carmen","Villagarzón",null,"Santa Rosa de Cabal",null,"Carcasí","Majagual","Coyaima","Cartago"]
["Cundinamarca",null,null,"Arboletes",null,"Puerto Colombia",null,"El Guamo","Campohermoso","Neira","Solano","Sácama","Guapi","La Gloria","El Litoral del San Juan","Montelíbano","Carmen de Carupa",null,null,"Hobo","Urumita","Nueva Granada","Mapiripán","Cumbal","El Tarra",null,null,"Santuario",null,"Cepitá","Morroa","Cunday","Dagua"]
["Guainía",null,null,"Argelia",null,"Repelón",null,"El Peñón","Cerinza","Norcasia","Solita","San Luis de Palenque","Inzá","La Jagua de Ibirico","Istmina","Moñitos","Chaguaní",null,null,"Iquira","Villanueva","Pedraza","Mesetas","Cumbitara","El Zulia",null,null,null,null,"Cerrito","Ovejas","Dolores","El Águila"]
["Guaviare",null,null,"Armenia",null,"Sabanagrande",null,"Hatillo de Loba","Chinavita","Pácora","Valparaíso","Támara","Jambaló","Manaure","Juradó","Planeta Rica","Chía",null,null,"Isnos",null,"Pijiño del Carmen","La Macarena","Chachagüí","Gramalote",null,null,null,null,"Charalá","Palmito","Espinal","El Cairo"]
["Huila",null,null,"Barbosa",null,"Sabanalarga",null,"Magangué","Chiquinquirá","Palestina",null,"Tauramena","La Sierra","Pailitas","Lloró","Pueblo Nuevo","Chipaque",null,null,"La Argentina",null,"Pivijay","Uribe","El Charco","Hacarí",null,null,null,null,"Charta","Sampués","Falan","El Cerrito"]
["La Guajira",null,null,"Belmira",null,"Santa Lucía",null,"Mahates","Chiscas","Pensilvania",null,"Trinidad","La Vega","Pelaya","Medio Atrato","Puerto Escondido","Choachí",null,null,"La Plata",null,"Plato","Lejanías","El Peñol","Herrán",null,null,null,null,"Chima","San Benito Abad","Flandes","El Dovio"]
["Magdalena",null,null,"Bello",null,"Santo Tomás",null,"Margarita","Chita","Riosucio",null,"Villanueva","López","Pueblo Bello","Medio Baudó","Puerto Libertador","Chocontá",null,null,"Nátaga",null,"Puebloviejo","Puerto Concordia","El Rosario","Labateca",null,null,null,null,"Chipatá","San Juan de Betulia","Fresno","Florida"]
["Meta",null,null,"Betania",null,"Soledad",null,"María La Baja","Chitaraque","Risaralda",null,null,"Mercaderes","Río de Oro","Medio San Juan","Purísima","Cogua",null,null,"Oporapa",null,"Remolino","Puerto Gaitán","El Tablón de Gómez","La Esperanza",null,null,null,null,"Cimitarra","San Marcos","Guamo","Ginebra"]
["Nariño",null,null,"Betulia",null,"Suan",null,"Montecristo","Chivatá","Salamina",null,null,"Miranda","La Paz","Nóvita","Sahagún","Cota",null,null,"Paicol",null,"Sabanas de San Ángel","Puerto López","El Tambo","La Playa",null,null,null,null,"Concepción","San Onofre","Herveo","Guacarí"]
["Norte_de_Santander",null,null,"Ciudad Bolívar",null,"Tubará",null,"Mompós","Ciénega","Samaná",null,null,"Morales","San Alberto","Nuquí","San Andrés Sotavento","Cucunubá",null,null,"Palermo",null,"Salamina","Puerto Lleras","Funes","Los Patios",null,null,null,null,"Confines","San Pedro","Honda","Jamundí"]
["Putumayo",null,null,"Briceño",null,"Usiacurí",null,"Morales","Cómbita","San José",null,null,"Padilla","San Diego","Río Iró","San Antero","El Colegio",null,null,"Palestina",null,"San Sebastián de Buenavista","Puerto Rico","Guachucal","Lourdes",null,null,null,null,"Contratación","San Luis de Sincé","Icononzo","La Cumbre"]
["Quindío",null,null,"Buriticá",null,null,null,"Norosí","Coper","Supía",null,null,"Paéz","San Martín","Río Quito","San Bernardo del Viento","El Peñón",null,null,"Pital",null,"San Zenón","Restrepo","Guaitarilla","Mutiscua",null,null,null,null,"Coromoro","Sucre","Lérida","La Unión"]
["Risaralda",null,null,"Cáceres",null,null,null,"Pinillos","Corrales","Victoria",null,null,"Patía","Tamalameque","Riosucio","San Carlos","El Rosal",null,null,"Pitalito",null,"Santa Ana","San Carlos de Guaroa","Gualmatán","Ocaña",null,null,null,null,"Curití","Santiago de Tolú","Líbano","La Victoria"]
["San_Andrés_y_Providencia",null,null,"Caicedo",null,null,null,"Regidor","Covarachía","Villamaría",null,null,"Piamonte",null,"San José del Palmar","San José de Ure","Facatativá",null,null,"Rivera",null,"Santa Bárbara de Pinto","San Juan de Arama","Iles","Pamplona",null,null,null,null,"El Carmen de Chucurí","Tolú Viejo","San Sebastián de Mariquita","Obando"]
["Santander",null,null,"Caldas",null,null,null,"Río Viejo","Cubará","Viterbo",null,null,"Piendamó",null,"Sipí","San Pelayo","Fómeque",null,null,"Saladoblanco",null,"Sitionuevo","San Juanito","Imués","Pamplonita",null,null,null,null,"El Guacamayo",null,"Melgar","Palmira"]
["Sucre",null,null,"Campamento",null,null,null,"San Cristóbal","Cucaita",null,null,null,"Puerto Tejada",null,"Tadó","Tierralta","Fosca",null,null,"San Agustín",null,"Tenerife","San Martín","Ipiales","Puerto Santander",null,null,null,null,"El Peñón",null,"Murillo","Pradera"]
["Tolima",null,null,"Cañasgordas",null,null,null,"San Estanislao","Cuítiva",null,null,null,"Puracé",null,"Unguía","Tuchín","Funza",null,null,"Santa María",null,"Zapayán","Vistahermosa","La Cruz","Ragonvalia",null,null,null,null,"El Playón",null,"Natagaima","Restrepo"]
["Valle_del_Cauca",null,null,"Caracolí",null,null,null,"San Fernando","Chíquiza",null,null,null,"Rosas",null,"Unión Panamericana","Valencia","Fúquene",null,null,"Suaza",null,"Zona Bananera",null,"La Florida","Salazar",null,null,null,null,"Encino",null,"Ortega","Riofrío"]
["Vaupés",null,null,"Caramanta",null,null,null,"San Jacinto","Chivor",null,null,null,"San Sebastián",null,null,null,"Fusagasugá",null,null,"Tarqui",null,null,null,"La Llanada","San Calixto",null,null,null,null,"Enciso",null,"Palocabildo","Roldanillo"]
["Vichada",null,null,"Carepa",null,null,null,"San Jacinto del Cauca","Duitama",null,null,null,"Santander de Quilichao",null,null,null,"Gachalá",null,null,"Tesalia",null,null,null,"La Tola","San Cayetano",null,null,null,null,"Florián",null,"Piedras","San Pedro"]
[null,null,null,"El Carmen de Viboral",null,null,null,"San Juan Nepomuceno","El Cocuy",null,null,null,"Santa Rosa",null,null,null,"Gachancipá",null,null,"Tello",null,null,null,"La Unión","Santiago",null,null,null,null,"Floridablanca",null,"Planadas","Sevilla"]
[null,null,null,"Carolina",null,null,null,"San Martín de Loba","El Espino",null,null,null,"Silvia",null,null,null,"Gachetá",null,null,"Teruel",null,null,null,"Leiva","Sardinata",null,null,null,null,"Galán",null,"Prado","Toro"]
[null,null,null,"Caucasia",null,null,null,"San Pablo","Firavitoba",null,null,null,"Sotará",null,null,null,"Gama",null,null,"Timaná",null,null,null,"Linares","Silos",null,null,null,null,"Gámbita",null,"Purificación","Trujillo"]
[null,null,null,"Chigorodó",null,null,null,"Santa Catalina","Floresta",null,null,null,"Suárez",null,null,null,"Girardot",null,null,"Villavieja",null,null,null,"Los Andes","Teorama",null,null,null,null,"Girón",null,"Rioblanco","Tuluá"]
[null,null,null,"Cisneros",null,null,null,"Santa Rosa","Gachantivá",null,null,null,"Sucre",null,null,null,"Granada",null,null,"Yaguará",null,null,null,"Magüi","Tibú",null,null,null,null,"Guaca",null,"Roncesvalles","Ulloa"]
[null,null,null,"Cocorná",null,null,null,"Santa Rosa del Sur","Gámeza",null,null,null,"Timbío",null,null,null,"Guachetá",null,null,null,null,null,null,"Mallama","Toledo",null,null,null,null,"Guadalupe",null,"Rovira","Versalles"]
[null,null,null,"Concepción",null,null,null,"Simití","Garagoa",null,null,null,"Timbiquí",null,null,null,"Guaduas",null,null,null,null,null,null,"Mosquera","Villa Caro",null,null,null,null,"Guapotá",null,"Saldaña","Vijes"]
[null,null,null,"Concordia",null,null,null,"Soplaviento","Guacamayas",null,null,null,"Toribío",null,null,null,"Guasca",null,null,null,null,null,null,"Nariño","Villa del Rosario",null,null,null,null,"Guavatá",null,"San Antonio","Yotoco"]
[null,null,null,"Copacabana",null,null,null,"Talaigua Nuevo","Guateque",null,null,null,"Totoró",null,null,null,"Guataquí",null,null,null,null,null,null,"Olaya Herrera",null,null,null,null,null,"Güepsa",null,"San Luis","Yumbo"]
[null,null,null,"Dabeiba",null,null,null,"Tiquisio","Guayatá",null,null,null,"Villa Rica",null,null,null,"Guatavita",null,null,null,null,null,null,"Ospina",null,null,null,null,null,"Hato",null,"Santa Isabel","Zarzal"]
[null,null,null,"Don Matías",null,null,null,"Turbaco","Güicán",null,null,null,null,null,null,null,"Guayabal de Síquima",null,null,null,null,null,null,"Francisco Pizarro",null,null,null,null,null,"Jesús María",null,"Suárez"]
[null,null,null,"Ebéjico",null,null,null,"Turbaná","Iza",null,null,null,null,null,null,null,"Guayabetal",null,null,null,null,null,null,"Policarpa",null,null,null,null,null,"Jordán",null,"Valle de San Juan"]
[null,null,null,"El Bagre",null,null,null,"Villanueva","Jenesano",null,null,null,null,null,null,null,"Gutiérrez",null,null,null,null,null,null,"Potosí",null,null,null,null,null,"La Belleza",null,"Venadillo"]
[null,null,null,"Entrerrios",null,null,null,"Zambrano","Jericó",null,null,null,null,null,null,null,"Jerusalén",null,null,null,null,null,null,"Providencia",null,null,null,null,null,"Landázuri",null,"Villahermosa"]
[null,null,null,"Envigado",null,null,null,null,"Labranzagrande",null,null,null,null,null,null,null,"Junín",null,null,null,null,null,null,"Puerres",null,null,null,null,null,"La Paz",null,"Villarrica"]
[null,null,null,"Fredonia",null,null,null,null,"La Capilla",null,null,null,null,null,null,null,"La Calera",null,null,null,null,null,null,"Pupiales",null,null,null,null,null,"Lebrija"]
[null,null,null,"Frontino",null,null,null,null,"La Victoria",null,null,null,null,null,null,null,"La Mesa",null,null,null,null,null,null,"Ricaurte",null,null,null,null,null,"Los Santos"]
[null,null,null,"Giraldo",null,null,null,null,"La Uvita",null,null,null,null,null,null,null,"La Palma",null,null,null,null,null,null,"Roberto Payán",null,null,null,null,null,"Macaravita"]
[null,null,null,"Girardota",null,null,null,null,"Villa de Leyva",null,null,null,null,null,null,null,"La Peña",null,null,null,null,null,null,"Samaniego",null,null,null,null,null,"Málaga"]
[null,null,null,"Gómez Plata",null,null,null,null,"Macanal",null,null,null,null,null,null,null,"La Vega",null,null,null,null,null,null,"Sandoná",null,null,null,null,null,"Matanza"]
[null,null,null,"Granada",null,null,null,null,"Maripí",null,null,null,null,null,null,null,"Lenguazaque",null,null,null,null,null,null,"San Bernardo",null,null,null,null,null,"Mogotes"]
[null,null,null,"Guadalupe",null,null,null,null,"Miraflores",null,null,null,null,null,null,null,"Machetá",null,null,null,null,null,null,"San Lorenzo",null,null,null,null,null,"Molagavita"]
[null,null,null,"Guarne",null,null,null,null,"Mongua",null,null,null,null,null,null,null,"Madrid",null,null,null,null,null,null,"San Pablo",null,null,null,null,null,"Ocamonte"]
[null,null,null,"Guatapé",null,null,null,null,"Monguí",null,null,null,null,null,null,null,"Manta",null,null,null,null,null,null,"San Pedro de Cartago",null,null,null,null,null,"Oiba"]
[null,null,null,"Heliconia",null,null,null,null,"Moniquirá",null,null,null,null,null,null,null,"Medina",null,null,null,null,null,null,"Santa Bárbara",null,null,null,null,null,"Onzaga"]
[null,null,null,"Hispania",null,null,null,null,"Motavita",null,null,null,null,null,null,null,"Mosquera",null,null,null,null,null,null,"Santacruz",null,null,null,null,null,"Palmar"]
[null,null,null,"Itagüí",null,null,null,null,"Muzo",null,null,null,null,null,null,null,"Nariño",null,null,null,null,null,null,"Sapuyes",null,null,null,null,null,"Palmas del Socorro"]
[null,null,null,"Ituango",null,null,null,null,"Nobsa",null,null,null,null,null,null,null,"Nemocón",null,null,null,null,null,null,"Taminango",null,null,null,null,null,"Páramo"]
[null,null,null,"Jardín",null,null,null,null,"Nuevo Colón",null,null,null,null,null,null,null,"Nilo",null,null,null,null,null,null,"Tangua",null,null,null,null,null,"Piedecuesta"]
[null,null,null,"Jericó",null,null,null,null,"Oicatá",null,null,null,null,null,null,null,"Nimaima",null,null,null,null,null,null,"San Andrés de Tumaco",null,null,null,null,null,"Pinchote"]
[null,null,null,"La Ceja",null,null,null,null,"Otanche",null,null,null,null,null,null,null,"Nocaima",null,null,null,null,null,null,"Túquerres",null,null,null,null,null,"Puente Nacional"]
[null,null,null,"La Estrella",null,null,null,null,"Pachavita",null,null,null,null,null,null,null,"Venecia",null,null,null,null,null,null,"Yacuanquer",null,null,null,null,null,"Puerto Parra"]
[null,null,null,"La Pintada",null,null,null,null,"Páez",null,null,null,null,null,null,null,"Pacho",null,null,null,null,null,null,null,null,null,null,null,null,"Puerto Wilches"]
[null,null,null,"La Unión",null,null,null,null,"Paipa",null,null,null,null,null,null,null,"Paime",null,null,null,null,null,null,null,null,null,null,null,null,"Rionegro"]
[null,null,null,"Liborina",null,null,null,null,"Pajarito",null,null,null,null,null,null,null,"Pandi",null,null,null,null,null,null,null,null,null,null,null,null,"Sabana de Torres"]
[null,null,null,"Maceo",null,null,null,null,"Panqueba",null,null,null,null,null,null,null,"Paratebueno",null,null,null,null,null,null,null,null,null,null,null,null,"San Andrés"]
[null,null,null,"Marinilla",null,null,null,null,"Pauna",null,null,null,null,null,null,null,"Pasca",null,null,null,null,null,null,null,null,null,null,null,null,"San Benito"]
[null,null,null,"Montebello",null,null,null,null,"Paya",null,null,null,null,null,null,null,"Puerto Salgar",null,null,null,null,null,null,null,null,null,null,null,null,"San Gil"]
[null,null,null,"Murindó",null,null,null,null,"Paz de Río",null,null,null,null,null,null,null,"Pulí",null,null,null,null,null,null,null,null,null,null,null,null,"San Joaquín"]
[null,null,null,"Mutatá",null,null,null,null,"Pesca",null,null,null,null,null,null,null,"Quebradanegra",null,null,null,null,null,null,null,null,null,null,null,null,"San José de Miranda"]
[null,null,null,"Nariño",null,null,null,null,"Pisba",null,null,null,null,null,null,null,"Quetame",null,null,null,null,null,null,null,null,null,null,null,null,"San Miguel"]
[null,null,null,"Necoclí",null,null,null,null,"Puerto Boyacá",null,null,null,null,null,null,null,"Quipile",null,null,null,null,null,null,null,null,null,null,null,null,"San Vicente de Chucurí"]
[null,null,null,"Nechí",null,null,null,null,"Quípama",null,null,null,null,null,null,null,"Apulo",null,null,null,null,null,null,null,null,null,null,null,null,"Santa Bárbara"]
[null,null,null,"Olaya",null,null,null,null,"Ramiriquí",null,null,null,null,null,null,null,"Ricaurte",null,null,null,null,null,null,null,null,null,null,null,null,"Santa Helena del Opón"]
[null,null,null,"Peñol",null,null,null,null,"Ráquira",null,null,null,null,null,null,null,"San Antonio del Tequendama",null,null,null,null,null,null,null,null,null,null,null,null,"Simacota"]
[null,null,null,"Peque",null,null,null,null,"Rondón",null,null,null,null,null,null,null,"San Bernardo",null,null,null,null,null,null,null,null,null,null,null,null,"Socorro"]
[null,null,null,"Pueblorrico",null,null,null,null,"Saboyá",null,null,null,null,null,null,null,"San Cayetano",null,null,null,null,null,null,null,null,null,null,null,null,"Suaita"]
[null,null,null,"Puerto Berrío",null,null,null,null,"Sáchica",null,null,null,null,null,null,null,"San Francisco",null,null,null,null,null,null,null,null,null,null,null,null,"Sucre"]
[null,null,null,"Puerto Nare",null,null,null,null,"Samacá",null,null,null,null,null,null,null,"San Juan de Río Seco",null,null,null,null,null,null,null,null,null,null,null,null,"Suratá"]
[null,null,null,"Puerto Triunfo",null,null,null,null,"San Eduardo",null,null,null,null,null,null,null,"Sasaima",null,null,null,null,null,null,null,null,null,null,null,null,"Tona"]
[null,null,null,"Remedios",null,null,null,null,"San José de Pare",null,null,null,null,null,null,null,"Sesquilé",null,null,null,null,null,null,null,null,null,null,null,null,"Valle de San José"]
[null,null,null,"Retiro",null,null,null,null,"San Luis de Gaceno",null,null,null,null,null,null,null,"Sibaté",null,null,null,null,null,null,null,null,null,null,null,null,"Vélez"]
[null,null,null,"Rionegro",null,null,null,null,"San Mateo",null,null,null,null,null,null,null,"Silvania",null,null,null,null,null,null,null,null,null,null,null,null,"Vetas"]
[null,null,null,"Sabanalarga",null,null,null,null,"San Miguel de Sema",null,null,null,null,null,null,null,"Simijaca",null,null,null,null,null,null,null,null,null,null,null,null,"Villanueva"]
[null,null,null,"Sabaneta",null,null,null,null,"San Pablo de Borbur",null,null,null,null,null,null,null,"Soacha",null,null,null,null,null,null,null,null,null,null,null,null,"Zapatoca"]
[null,null,null,"Salgar",null,null,null,null,"Santana",null,null,null,null,null,null,null,"Sopó"]
[null,null,null,"San Andrés de Cuerquía",null,null,null,null,"Santa María",null,null,null,null,null,null,null,"Subachoque"]
[null,null,null,"San Carlos",null,null,null,null,"Santa Rosa de Viterbo",null,null,null,null,null,null,null,"Suesca"]
[null,null,null,"San Francisco",null,null,null,null,"Santa Sofía",null,null,null,null,null,null,null,"Supatá"]
[null,null,null,"San Jerónimo",null,null,null,null,"Sativanorte",null,null,null,null,null,null,null,"Susa"]
[null,null,null,"San José de La Montaña",null,null,null,null,"Sativasur",null,null,null,null,null,null,null,"Sutatausa"]
[null,null,null,"San Juan de Urabá",null,null,null,null,"Siachoque",null,null,null,null,null,null,null,"Tabio"]
[null,null,null,"San Luis",null,null,null,null,"Soatá",null,null,null,null,null,null,null,"Tausa"]
[null,null,null,"San Pedro de Los Milagros",null,null,null,null,"Socotá",null,null,null,null,null,null,null,"Tena"]
[null,null,null,"San Pedro de Urabá",null,null,null,null,"Socha",null,null,null,null,null,null,null,"Tenjo"]
[null,null,null,"San Rafael",null,null,null,null,"Sogamoso",null,null,null,null,null,null,null,"Tibacuy"]
[null,null,null,"San Roque",null,null,null,null,"Somondoco",null,null,null,null,null,null,null,"Tibirita"]
[null,null,null,"San Vicente",null,null,null,null,"Sora",null,null,null,null,null,null,null,"Tocaima"]
[null,null,null,"Santa Bárbara",null,null,null,null,"Sotaquirá",null,null,null,null,null,null,null,"Tocancipá"]
[null,null,null,"Santa Rosa de Osos",null,null,null,null,"Soracá",null,null,null,null,null,null,null,"Topaipí"]
[null,null,null,"Santo Domingo",null,null,null,null,"Susacón",null,null,null,null,null,null,null,"Ubalá"]
[null,null,null,"El Santuario",null,null,null,null,"Sutamarchán",null,null,null,null,null,null,null,"Ubaque"]
[null,null,null,"Segovia",null,null,null,null,"Sutatenza",null,null,null,null,null,null,null,"Villa de San Diego de Ubate"]
[null,null,null,"Sonsón",null,null,null,null,"Tasco",null,null,null,null,null,null,null,"Une"]
[null,null,null,"Sopetrán",null,null,null,null,"Tenza",null,null,null,null,null,null,null,"Útica"]
[null,null,null,"Támesis",null,null,null,null,"Tibaná",null,null,null,null,null,null,null,"Vergara"]
[null,null,null,"Tarazá",null,null,null,null,"Tibasosa",null,null,null,null,null,null,null,"Vianí"]
[null,null,null,"Tarso",null,null,null,null,"Tinjacá",null,null,null,null,null,null,null,"Villagómez"]
[null,null,null,"Titiribí",null,null,null,null,"Tipacoque",null,null,null,null,null,null,null,"Villapinzón"]
[null,null,null,"Toledo",null,null,null,null,"Toca",null,null,null,null,null,null,null,"Villeta"]
[null,null,null,"Turbo",null,null,null,null,"Togüí",null,null,null,null,null,null,null,"Viotá"]
[null,null,null,"Uramita",null,null,null,null,"Tópaga",null,null,null,null,null,null,null,"Yacopí"]
[null,null,null,"Urrao",null,null,null,null,"Tota",null,null,null,null,null,null,null,"Zipacón"]
[null,null,null,"Valdivia",null,null,null,null,"Tununguá",null,null,null,null,null,null,null,"Zipaquirá"]
[null,null,null,"Valparaíso",null,null,null,null,"Turmequé"]
[null,null,null,"Vegachí",null,null,null,null,"Tuta"]
[null,null,null,"Venecia",null,null,null,null,"Tutazá"]
[null,null,null,"Vigía del Fuerte",null,null,null,null,"Umbita"]
[null,null,null,"Yalí",null,null,null,null,"Ventaquemada"]
[null,null,null,"Yarumal",null,null,null,null,"Viracachá"]
[null,null,null,"Yolombó",null,null,null,null,"Zetaquira"]
[null,null,null,"Yondó"]
[null,null,null,"Zaragoza"]

{"sheet":"PARÁMETROS","index":3,"n_rows":45,"n_cols":7,"rows_kept":45,"cut":false,"hidden":false,"merged":[]}
[null,"INDICADOR"]
[null,"Déficit cualitativo de vivienda",null,"No posee norma y política de construcción sostenible",null,"Más del 50% de la malla vial en categoría Mala y Muy mala",0]
[null,"Déficit cuantitativo de vivienda",null,"Si posee norma y política de construcción sostenible",null,"Más del 50% de la malla vial en categoría mala y regular",0.3]
[null,"¿El municipio cuenta con política y norma de construcción sostenible?",null,null,null,"Más del 50% de la malla vial en categoría Regular",0.5]
[null,"Proporción de edificaciones que se han construido desde 2017 implementando los parametros y lineamientos de construccion sostenible que establece la \"Guía para el ahorro de agua y energía en edificaciones\" según la Resolución 0549 de 2015",null,null,null,"Más del 50% de la malla vial en categoría regular y buena",0.8]
[null,"Proporción de personas que participan activamente en asociaciones comunitarias que trabajan en el acceso a vivienda y servicios básicos adecuados ",null,null,null,"Más del 50% de la malla vial en categoría Buena y Muy buena",1]
[null,"Índice de asequibilidad"]
[null,"Tasa General de Mortalidad por Accidentes de Tránsito terrestre (TGMA)",null,"No se encuentran articuladas las redes de participación",null,"Menos del 80% de la población con acceso a al menos 1 equipamiento básico",0]
[null,"Porcentaje de vehículos de transporte público con equipo de transporte accesible",null,"Si se encuentran articuladas las redes de participación",null,"Mas del 80% de la población con acceso a al menos 1 equipamiento básico",0.3]
[null,"Porcentaje de vehículos de transporte masivo con equipo de transporte accesible",null,null,null,"Mas del 80% de la población con acceso a 2 equipamientos básicos",0.5]
[null,"Porcentaje de longitud de infraestructura vial para sistemas masivos",null,null,null,"Mas del 80% de la población con acceso a 3 equipamientos básicos",0.8]
[null,"Proporción de vehículos adquiridos para el Sistema de Transporte Masivo que sean eléctricos o de cero emisiones contaminantes",null,null,null,"Mas del 80% de la población con acceso a 4 o mas equipamientos básicos",1]
[null,"Estado de la red vial (teniendo en cuenta lineamientos de MinTransporte e Invías)"]
[null,"Proporción de personas que son integrantes activas en asociaciones comunitarias que participan en la gestión del transporte público sostenible",null,"No la reconoce",null,"No cuenta con PGIRS actualizado"]
[null,"Porcentaje de personas que participan activamente en asociaciones comunitarias para la planificación y gestión del territorio (JAC , junta de acueducto, cabildos indígenas, minorías étnicas, consejos regionales, consejo de planeación, agremiaciones, sindicatos, etc.)",null,"Si la reconoce",null,"Si cuenta con PGIRS actualizado"]
[null,"¿Están articuladas las redes de participación para la planificación y gestión del territorio?"]
[null,"Proporción de la población con acceso a equipamientos básicos o colectivos (educación, salud, cultura y deportes)",null,"No la reconoce",null,"No posee organizaciones públicas y privadas que trabajan por el cumplimiento de las metas del ODS 11"]
[null,"Proporción de personas que participan activamente en asociaciones comunitarias para la urbanización inclusiva y seguridad ",null,"Si la reconoce",null,"Si posee organizaciones públicas y privadas que trabajan por el cumplimiento de las metas del ODS 11"]
[null,"Espacio público efectivo (DADEP)"]
[null,"Cantidad de personas víctimas de secuestro, minas antipersona, desplazamiento forzado y otras producto del conlicto armado"]
[null,"Proporción de personas víctimas de violencia física o acoso sexual ",null,"Grande"]
[null,"Proporción de personas que participan activamente en asociaciones comunitarias que trabajan para lograr el acceso a zonas verdes y espacios públicos seguros, inclusivos y accesibles",null,"Mediana"]
[null,"Proporción de elementos del patrimonio cultural que se encuentre en óptimas condiciones",null,"Pequeña"]
[null,"¿Reconoce la estructura ecológica principal (EEP) y esta se encuentra bajo una figura de protección o aprovechamiento racional?"]
[null,"Proporción de personas que participan activamente en asociaciones comunitarias que trabajan en la conservación de patrimonio cultural y natural"]
[null,"Número de afectados por desastres",null,"No existen propuestas de la comunidad tenidas en cuenta en la formulación de proyectos"]
[null,"Número de muertes por desastres",null,"Si existen propuestas de la comunidad tenidas en cuenta en la formulación de proyectos"]
[null,"Índice municipal de riesgo de desastres ajustado por capacidades"]
[null,"Proporción de personas que participan activamente en asociaciones comunitarias que trabajan en lograr la reducción de muertes y pérdidas económicas por desastres"]
[null,"Concentración media anual de material particulado PM10"]
[null,"Concentración media anual de material particulado PM2,5"]
[null,"Concentración media anual de material particulado SO2"]
[null,"Concentración media anual de material particulado NO2"]
[null,"¿Cuenta con PGIRS actualizado?"]
[null,"Porcentaje de la población que cuenta con recolección regular de residuos sólidos"]
[null,"Porcentaje de residuos que se reciclan, se aprovechan energéticamente o se compostan"]
[null,"Porcentaje de reducción en la generación de residuos sólidos en el municipio"]
[null,"Proporción de personas que participan activamente en asociaciones comunitarias que trabajan en la reducción impacto ambiental negativo en calidad del aire y gestión de residuos "]
[null,"¿Incorpora en el POT, PDM y demás instrumentos de planeación y administración compromisos claros de mitigación y adaptación al Cambio Climático relacionadas a las INDC de Colombia?"]
[null,"¿Posee el municipio Plan de Gestión del Riesgo de Desastres Naturales (PGRDN) actualizado y ha respondido este a las condiciones de vulnerabilidad del municipio?"]
[null,"Proporción de personas que participan activamente en asociaciones comunitarias que trabajan en la reducción riesgo de desastres, mitigación y adaptación al cambio climático"]
[null,"Índice de Desarrollo Metropolitano (CEPAL, calculado y analizado en relación a las 18 áreas metropolitanas del país)"]
[null,"Solvencia y sostenibilidad del desempeño fiscal"]
[null,"Proporción de personas que participan activamente en asociaciones comunitarias que trabajan para el apoyo de vínculos para desarrollo nacional y regional "]
[null,"¿Están articuladas las redes de participación para la gestión pública del territorio?"]

{"sheet":"C.GRANDE","index":4,"n_rows":53,"n_cols":8,"rows_kept":53,"cut":false,"hidden":false,"merged":[]}
[null,"APLICATIVO PARA LA CALIFICACIÓN DEL POTENCIAL SOSTENIBLE DE UNA CIUDAD"]
[null,null,"CIUDAD GRANDE","RESULTADO","INTERPRETACIÓN"]
[null,null,"Potencial Sostenible",{"$f":"+IF(COUNT('C.GRANDE'!$E$11:$E$53)=0,\"\",SUM(F:F))","v":0.74476315789473724},{"$f":"+IF(D3=\"\",\"\",IF(D3=0%,\"Muy malo\",IF(D3<=30%,\"Malo\",IF(D3<=50%,\"Regular\",IF(D3<=80%,\"Bueno\",\"Muy bueno\")))))","v":"Bueno"}]
[null,null,"Potencial Social",{"$f":"+IF(COUNT(E11:E30)=0,\"\",(SUMIF('C.GRANDE'!$C$11:$C$53,\"Social\",'C.GRANDE'!$F$11:$F$53))/40%)","v":0.95500000000000007},"Muy bueno"]
[null,null,"Potencial Ambiental",{"$f":"+IF(COUNT(E31:E49)=0,\"\",(SUMIF('C.GRANDE'!$C$11:$C$53,\"Ambiental\",'C.GRANDE'!$F$11:$F$53))/30%)","v":0.88421052631578922},"Muy bueno"]
[null,null,"Potencial Económico",{"$f":"+IF(COUNT(E50:E53)=0,\"\",(SUMIF('C.GRANDE'!$C$11:$C$53,\"Económica\",'C.GRANDE'!$F$11:$F$53))/30%)","v":0.32500000000000001},"Regular"]
[]
[null,"IMPORTANTE: Introduzca los valores en las celdas de color gris correspondientes al encabezado llamado RESULTADO para los valores de cada uno de los indicadores. Para información de cada indicador haga click en cada campo del encabezado de DESCRIPCIÓN DEL INDICADOR.","CIUDAD",{"$f":"+IF(PRINCIPAL!E20=\"Grande\",PRINCIPAL!E20,\"\")","v":"Grande"},"Haga click aquí para ver la tabla de interpretación de los potenciales"]
[]
[null,"INDICADOR","DIMENSIÓN","RESULTADO","CALIFICACIÓN","PONDERACIÓN","INTERPRETACIÓN","DESCRIPCIÓN DEL INDICADOR"]
[null,"Déficit cualitativo de vivienda","Social",0.12509999999999999,{"$f":"+IF(D11=\"\",\"\",IF(D11>=30%,0,IF(D11>=20%,0.3,IF(D11>=10%,0.5,IF(D11>=7%,0.8,1)))))","v":0.5},{"$f":"+IF('C.GRANDE'!$D11=\"\",\"\",IF('C.GRANDE'!$C11=\"Social\",'C.GRANDE'!$E11*0.4/20,IF('C.GRANDE'!$C11=\"Ambiental\",'C.GRANDE'!$E11*0.3/19,IF('C.GRANDE'!$C11=\"Económica\",'C.GRANDE'!$E11*0.3/4,\"\"))))","v":0.01},{"$f":"+IF(D11=\"\",\"\",IF(E11=0,\"Muy malo\",IF(E11=0.3,\"Malo\",IF(E11=0.5,\"Regular\",IF(E11=0.8,\"Bueno\",\"Muy bueno\")))))","v":"Regular"},"'DESCRIPCION INDICADORES'!C10"]
[null,"Déficit cuantitativo de vivienda","Social",3.7900000000000003E-2,{"$f":"+IF(D12=\"\",\"\",IF(D12>=9.1%,0,IF(D12>6.9%,0.3,IF(D12>4.8%,0.5,IF(D12>2.7%,0.8,1)))))","v":0.8},{"$f":"+IF('C.GRANDE'!$D12=\"\",\"\",IF('C.GRANDE'!$C12=\"Social\",'C.GRANDE'!$E12*0.4/20,IF('C.GRANDE'!$C12=\"Ambiental\",'C.GRANDE'!$E12*0.3/19,IF('C.GRANDE'!$C12=\"Económica\",'C.GRANDE'!$E12*0.3/4,\"\"))))","v":1.6000000000000004E-2},{"$f":"+IF(E12=\"\",\"\",IF(E12=0,\"Muy malo\",IF(E12=0.3,\"Malo\",IF(E12=0.5,\"Regular\",IF(E12=0.8,\"Bueno\",\"Muy bueno\")))))","v":"Bueno"},"CLICK AQUÍ"]
[null,"¿El municipio cuenta con política y norma de construcción sostenible?","Social","Si posee norma y política de construcción sostenible",{"$f":"+IF(D13=\"\",\"\",IF(D13=\"No posee norma y política de construcción sostenible\",0,1))","v":1},{"$f":"+IF('C.GRANDE'!$D13=\"\",\"\",IF('C.GRANDE'!$C13=\"Social\",'C.GRANDE'!$E13*0.4/20,IF('C.GRANDE'!$C13=\"Ambiental\",'C.GRANDE'!$E13*0.3/19,IF('C.GRANDE'!$C13=\"Económica\",'C.GRANDE'!$E13*0.3/4,\"\"))))","v":0.02},{"$f":"+IF(E13=\"\",\"\",IF(E13=0,\"Muy malo\",\"Muy bueno\"))","v":"Muy bueno"},"CLICK AQUÍ"]
[null,"Proporción de edificaciones que se han construido desde 2017 implementando los parametros y lineamientos de construccion sostenible que establece la \"Guía para el ahorro de agua y energía en edificaciones\" según la Resolución 0549 de 2015","Social",0.8,{"$f":"+IF(D14=\"\",\"\",IF(D14<60%,0,IF(D14<70%,0.3,IF(D14<80%,0.5,IF(D14<=90%,0.8,1)))))","v":0.8},{"$f":"+IF('C.GRANDE'!$D14=\"\",\"\",IF('C.GRANDE'!$C14=\"Social\",'C.GRANDE'!$E14*0.4/20,IF('C.GRANDE'!$C14=\"Ambiental\",'C.GRANDE'!$E14*0.3/19,IF('C.GRANDE'!$C14=\"Económica\",'C.GRANDE'!$E14*0.3/4,\"\"))))","v":1.6000000000000004E-2},{"$f":"+IF(E14=\"\",\"\",IF(E14=0,\"Muy malo\",IF(E14=0.3,\"Malo\",IF(E14=0.5,\"Regular\",IF(E14=0.8,\"Bueno\",\"Muy bueno\")))))","v":"Bueno"},"CLICK AQUÍ"]
[null,"¿La participación comunitaria expresada en propuestas viables es tenida en cuenta en la formulación de proyectos que mejoren el acceso a vivienda y servicios básicos adecuados?","Social","Si existen propuestas de la comunidad tenidas en cuenta en la formulación de proyectos",{"$f":"+IF(D15=\"\",\"\",IF(D15=\"No existen propuestas de la comunidad tenidas en cuenta en la formulación de proyectos\",0,1))","v":1},{"$f":"+IF('C.GRANDE'!$D15=\"\",\"\",IF('C.GRANDE'!$C15=\"Social\",'C.GRANDE'!$E15*0.4/20,IF('C.GRANDE'!$C15=\"Ambiental\",'C.GRANDE'!$E15*0.3/19,IF('C.GRANDE'!$C15=\"Económica\",'C.GRANDE'!$E15*0.3/4,\"\"))))","v":0.02},"Muy bueno","CLICK AQUÍ"]
[null,"Índice de asequibilidad","Social",0.01,{"$f":"+IF(D16=\"\",\"\",IF(D16>30%,0,IF(D16>=24%,0.3,IF(D16>=17%,0.5,IF(D16>10%,0.8,1)))))","v":1},{"$f":"+IF('C.GRANDE'!$D16=\"\",\"\",IF('C.GRANDE'!$C16=\"Social\",'C.GRANDE'!$E16*0.4/20,IF('C.GRANDE'!$C16=\"Ambiental\",'C.GRANDE'!$E16*0.3/19,IF('C.GRANDE'!$C16=\"Económica\",'C.GRANDE'!$E16*0.3/4,\"\"))))","v":0.02},"Muy bueno","CLICK AQUÍ"]
[null,"Tasa General de Mortalidad por Accidentes de Tránsito terrestre (TGMA)","Social",1,{"$f":"+IF(D17=\"\",\"\",IF(D17>30,0,IF(D17>22.7,0.3,IF(D17>15.5,0.5,IF(D17>=8.3,0.8,1)))))","v":1},{"$f":"+IF('C.GRANDE'!$D17=\"\",\"\",IF('C.GRANDE'!$C17=\"Social\",'C.GRANDE'!$E17*0.4/20,IF('C.GRANDE'!$C17=\"Ambiental\",'C.GRANDE'!$E17*0.3/19,IF('C.GRANDE'!$C17=\"Económica\",'C.GRANDE'!$E17*0.3/4,\"\"))))","v":0.02},"Muy bueno","CLICK AQUÍ"]
[null,"Porcentaje de vehículos de transporte público con equipo de transporte accesible","Social",1,{"$f":"+IF(D18=\"\",\"\",IF(D18<60%,0,IF(D18<70%,0.3,IF(D18<80%,0.5,IF(D18<=90%,0.8,1)))))","v":1},{"$f":"+IF('C.GRANDE'!$D18=\"\",\"\",IF('C.GRANDE'!$C18=\"Social\",'C.GRANDE'!$E18*0.4/20,IF('C.GRANDE'!$C18=\"Ambiental\",'C.GRANDE'!$E18*0.3/19,IF('C.GRANDE'!$C18=\"Económica\",'C.GRANDE'!$E18*0.3/4,\"\"))))","v":0.02},"Muy bueno","CLICK AQUÍ"]
[null,"Porcentaje de vehículos de transporte masivo con equipo de transporte accesible","Social",1,1,{"$f":"+IF('C.GRANDE'!$D19=\"\",\"\",IF('C.GRANDE'!$C19=\"Social\",'C.GRANDE'!$E19*0.4/20,IF('C.GRANDE'!$C19=\"Ambiental\",'C.GRANDE'!$E19*0.3/19,IF('C.GRANDE'!$C19=\"Económica\",'C.GRANDE'!$E19*0.3/4,\"\"))))","v":0.02},"Muy bueno","CLICK AQUÍ"]
[null,"Porcentaje de longitud de infraestructura vial para sistemas masivos","Social",1,{"$f":"+IF(D20=\"\",\"\",IF(D20<5%,0,IF(D20<9%,0.3,IF(D20<13%,0.5,IF(D20<=17%,0.8,1)))))","v":1},{"$f":"+IF('C.GRANDE'!$D20=\"\",\"\",IF('C.GRANDE'!$C20=\"Social\",'C.GRANDE'!$E20*0.4/20,IF('C.GRANDE'!$C20=\"Ambiental\",'C.GRANDE'!$E20*0.3/19,IF('C.GRANDE'!$C20=\"Económica\",'C.GRANDE'!$E20*0.3/4,\"\"))))","v":0.02},"Muy bueno","CLICK AQUÍ"]
[null,"Proporción de vehículos adquiridos para el Sistema de Transporte Masivo que sean eléctricos o de cero emisiones contaminantes","Social",1,{"$f":"+IF(D21=\"\",\"\",IF(D21<10%,0,IF(D21<20%,0.3,IF(D21<40%,0.5,IF(D21<=60%,0.8,1)))))","v":1},{"$f":"+IF('C.GRANDE'!$D21=\"\",\"\",IF('C.GRANDE'!$C21=\"Social\",'C.GRANDE'!$E21*0.4/20,IF('C.GRANDE'!$C21=\"Ambiental\",'C.GRANDE'!$E21*0.3/19,IF('C.GRANDE'!$C21=\"Económica\",'C.GRANDE'!$E21*0.3/4,\"\"))))","v":0.02},"Muy bueno","CLICK AQUÍ"]
[null,"Estado de la red vial (teniendo en cuenta lineamientos de MinTransporte e Invías)","Social","Más del 50% de la malla vial en categoría Buena y Muy buena",{"$f":"+IF(D22=\"\",\"\",VLOOKUP(D22,PARÁMETROS!F2:G6,2,FALSE))","v":1},{"$f":"+IF('C.GRANDE'!$D22=\"\",\"\",IF('C.GRANDE'!$C22=\"Social\",'C.GRANDE'!$E22*0.4/20,IF('C.GRANDE'!$C22=\"Ambiental\",'C.GRANDE'!$E22*0.3/19,IF('C.GRANDE'!$C22=\"Económica\",'C.GRANDE'!$E22*0.3/4,\"\"))))","v":0.02},"Muy bueno","CLICK AQUÍ"]
[null,"¿La participación comunitaria expresada en propuestas viables es tenida en cuenta en la formulación de proyectos que mejoren la gestión del transporte público sostenible?","Social","Si existen propuestas de la comunidad tenidas en cuenta en la formulación de proyectos",{"$f":"+IF(D23=\"\",\"\",IF(D23=\"No existen propuestas de la comunidad tenidas en cuenta en la formulación de proyectos\",0,1))","v":1},{"$f":"+IF('C.GRANDE'!$D23=\"\",\"\",IF('C.GRANDE'!$C23=\"Social\",'C.GRANDE'!$E23*0.4/20,IF('C.GRANDE'!$C23=\"Ambiental\",'C.GRANDE'!$E23*0.3/19,IF('C.GRANDE'!$C23=\"Económica\",'C.GRANDE'!$E23*0.3/4,\"\"))))","v":0.02},"Muy bueno","CLICK AQUÍ"]
[null,"Proporción de personas que participan activamente en asociaciones comunitarias para la planificación y gestión del territorio (JAC , junta de acueducto, cabildos indígenas, minorías étnicas, consejos regionales, consejo de planeación, agremiaciones, sindicatos, etc.)","Social",100,{"$f":"+IF(D24=\"\",\"\",IF(D24<=20,0,IF(D24<=29,0.3,IF(D24<=50,0.5,IF(D24<=70,0.8,1)))))","v":1},{"$f":"+IF('C.GRANDE'!$D24=\"\",\"\",IF('C.GRANDE'!$C24=\"Social\",'C.GRANDE'!$E24*0.4/20,IF('C.GRANDE'!$C24=\"Ambiental\",'C.GRANDE'!$E24*0.3/19,IF('C.GRANDE'!$C24=\"Económica\",'C.GRANDE'!$E24*0.3/4,\"\"))))","v":0.02},"Muy bueno","CLICK AQUÍ"]
[null,"Proporción de la población con acceso a equipamientos básicos o colectivos (educación, salud, cultura y deportes)","Social","Mas del 80% de la población con acceso a 4 o mas equipamientos básicos",{"$f":"+IF(D25=\"\",\"\",VLOOKUP(D25,PARÁMETROS!F8:G12,2,FALSE))","v":1},{"$f":"+IF('C.GRANDE'!$D25=\"\",\"\",IF('C.GRANDE'!$C25=\"Social\",'C.GRANDE'!$E25*0.4/20,IF('C.GRANDE'!$C25=\"Ambiental\",'C.GRANDE'!$E25*0.3/19,IF('C.GRANDE'!$C25=\"Económica\",'C.GRANDE'!$E25*0.3/4,\"\"))))","v":0.02},"Muy bueno","CLICK AQUÍ"]
[null,"¿La participación comunitaria expresada en propuestas viables es tenida en cuenta en la formulación de proyectos para lograr urbanización inclusiva y mayor seguridad?","Social","Si existen propuestas de la comunidad tenidas en cuenta en la formulación de proyectos",{"$f":"+IF(D26=\"\",\"\",IF(D26=\"No existen propuestas de la comunidad tenidas en cuenta en la formulación de proyectos\",0,1))","v":1},{"$f":"+IF('C.GRANDE'!$D26=\"\",\"\",IF('C.GRANDE'!$C26=\"Social\",'C.GRANDE'!$E26*0.4/20,IF('C.GRANDE'!$C26=\"Ambiental\",'C.GRANDE'!$E26*0.3/19,IF('C.GRANDE'!$C26=\"Económica\",'C.GRANDE'!$E26*0.3/4,\"\"))))","v":0.02},"Muy bueno","CLICK AQUÍ"]
[null,"Espacio público efectivo (DADEP)","Social",100,{"$f":"+IF(D27=\"\",\"\",IF(D27<3,0,IF(D27<5,0.3,IF(D27<=10,0.5,IF(D27<15,0.8,1)))))","v":1},{"$f":"+IF('C.GRANDE'!$D27=\"\",\"\",IF('C.GRANDE'!$C27=\"Social\",'C.GRANDE'!$E27*0.4/20,IF('C.GRANDE'!$C27=\"Ambiental\",'C.GRANDE'!$E27*0.3/19,IF('C.GRANDE'!$C27=\"Económica\",'C.GRANDE'!$E27*0.3/4,\"\"))))","v":0.02},"Muy bueno","CLICK AQUÍ"]
[null,"Cantidad de personas víctimas de secuestro, minas antipersona, desplazamiento forzado y otras producto del conflicto armado","Social",0,{"$f":"+IF(D28=\"\",\"\",IF(D28>=20,0,IF(D28>=11,0.3,IF(D28>=6,0.5,IF(D28>0,0.8,1)))))","v":1},{"$f":"+IF('C.GRANDE'!$D28=\"\",\"\",IF('C.GRANDE'!$C28=\"Social\",'C.GRANDE'!$E28*0.4/20,IF('C.GRANDE'!$C28=\"Ambiental\",'C.GRANDE'!$E28*0.3/19,IF('C.GRANDE'!$C28=\"Económica\",'C.GRANDE'!$E28*0.3/4,\"\"))))","v":0.02},"Muy bueno","CLICK AQUÍ"]
[null,"Proporción de personas víctimas de violencia física o acoso sexual ","Social",0.01,{"$f":"+IF(D29=\"\",\"\",IF(D29>35%,0,IF(D29>=27%,0.3,IF(D29>=20%,0.5,IF(D29>=10%,0.8,1)))))","v":1},{"$f":"+IF('C.GRANDE'!$D29=\"\",\"\",IF('C.GRANDE'!$C29=\"Social\",'C.GRANDE'!$E29*0.4/20,IF('C.GRANDE'!$C29=\"Ambiental\",'C.GRANDE'!$E29*0.3/19,IF('C.GRANDE'!$C29=\"Económica\",'C.GRANDE'!$E29*0.3/4,\"\"))))","v":0.02},"Muy bueno","CLICK AQUÍ"]
[null,"¿La participación comunitaria expresada en propuestas viables es tenida en cuenta en la formulación de proyectos que mejoren el acceso a zonas verdes y espacios públicos seguros, inclusivos y accesibles?","Social","Si existen propuestas de la comunidad tenidas en cuenta en la formulación de proyectos",{"$f":"+IF(D30=\"\",\"\",IF(D30=\"No existen propuestas de la comunidad tenidas en cuenta en la formulación de proyectos\",0,1))","v":1},{"$f":"+IF('C.GRANDE'!$D30=\"\",\"\",IF('C.GRANDE'!$C30=\"Social\",'C.GRANDE'!$E30*0.4/20,IF('C.GRANDE'!$C30=\"Ambiental\",'C.GRANDE'!$E30*0.3/19,IF('C.GRANDE'!$C30=\"Económica\",'C.GRANDE'!$E30*0.3/4,\"\"))))","v":0.02},"Muy bueno","CLICK AQUÍ"]
[null,"Proporción de elementos del patrimonio cultural que se encuentre en óptimas condiciones","Ambiental",1,{"$f":"+IF(D31=\"\",\"\",IF(D31<60%,0,IF(D31<70%,0.3,IF(D31<80%,0.5,IF(D31<=90%,0.8,1)))))","v":1},{"$f":"+IF('C.GRANDE'!$D31=\"\",\"\",IF('C.GRANDE'!$C31=\"Social\",'C.GRANDE'!$E31*0.4/20,IF('C.GRANDE'!$C31=\"Ambiental\",'C.GRANDE'!$E31*0.3/19,IF('C.GRANDE'!$C31=\"Económica\",'C.GRANDE'!$E31*0.3/4,\"\"))))","v":1.5789473684210527E-2},"Muy bueno","CLICK AQUÍ"]
[null,"¿Reconoce la estructura ecológica principal (EEP) y esta se encuentra bajo una figura de protección o aprovechamiento racional?","Ambiental","No la reconoce",{"$f":"+IF(D32=\"\",\"\",IF(D32=\"No la reconoce\",0,1))","v":0},{"$f":"+IF('C.GRANDE'!$D32=\"\",\"\",IF('C.GRANDE'!$C32=\"Social\",'C.GRANDE'!$E32*0.4/20,IF('C.GRANDE'!$C32=\"Ambiental\",'C.GRANDE'!$E32*0.3/19,IF('C.GRANDE'!$C32=\"Económica\",'C.GRANDE'!$E32*0.3/4,\"\"))))","v":0},{"$f":"+IF(E32=\"\",\"\",IF(E32=0,\"Muy malo\",\"Muy bueno\"))","v":"Muy malo"},"CLICK AQUÍ"]
[null,"¿La participación comunitaria expresada en propuestas viables es tenida en cuenta en la formulación de proyectos que mejoren la conservación de patrimonio cultural y natural?","Ambiental","Si existen propuestas de la comunidad tenidas en cuenta en la formulación de proyectos",{"$f":"+IF(D33=\"\",\"\",IF(D33=\"No existen propuestas de la comunidad tenidas en cuenta en la formulación de proyectos\",0,1))","v":1},{"$f":"+IF('C.GRANDE'!$D33=\"\",\"\",IF('C.GRANDE'!$C33=\"Social\",'C.GRANDE'!$E33*0.4/20,IF('C.GRANDE'!$C33=\"Ambiental\",'C.GRANDE'!$E33*0.3/19,IF('C.GRANDE'!$C33=\"Económica\",'C.GRANDE'!$E33*0.3/4,\"\"))))","v":1.5789473684210527E-2},{"$f":"+IF(E33=\"\",\"\",IF(E33=0,\"Muy malo\",IF(E33=0.3,\"Malo\",IF(E33=0.5,\"Regular\",IF(E33=0.8,\"Bueno\",\"Muy bueno\")))))","v":"Muy bueno"},"CLICK AQUÍ"]
[null,"Número de afectados por desastres","Ambiental",4000,{"$f":"+IF(D34=\"\",\"\",IF(D34>4800,0,IF(D34>4300,0.3,IF(D34>3800,0.5,IF(D34>3283,0.8,1)))))","v":0.5},{"$f":"+IF('C.GRANDE'!$D34=\"\",\"\",IF('C.GRANDE'!$C34=\"Social\",'C.GRANDE'!$E34*0.4/20,IF('C.GRANDE'!$C34=\"Ambiental\",'C.GRANDE'!$E34*0.3/19,IF('C.GRANDE'!$C34=\"Económica\",'C.GRANDE'!$E34*0.3/4,\"\"))))","v":7.8947368421052634E-3},"Regular","CLICK AQUÍ"]
[null,"Número de muertes por desastres","Ambiental",20,{"$f":"+IF(D35=\"\",\"\",IF(D35>20,0,IF(D35>15,0.3,IF(D35>10,0.5,IF(D35>5,0.8,1)))))","v":0.3},{"$f":"+IF('C.GRANDE'!$D35=\"\",\"\",IF('C.GRANDE'!$C35=\"Social\",'C.GRANDE'!$E35*0.4/20,IF('C.GRANDE'!$C35=\"Ambiental\",'C.GRANDE'!$E35*0.3/19,IF('C.GRANDE'!$C35=\"Económica\",'C.GRANDE'!$E35*0.3/4,\"\"))))","v":4.7368421052631574E-3},"Malo","CLICK AQUÍ"]
[null,"Índice municipal de riesgo de desastres ajustado por capacidades","Ambiental",1,{"$f":"+IF(D36=\"\",\"\",IF(D36>80,0,IF(D36>60,0.3,IF(D36>40,0.5,IF(D36>19,0.8,1)))))","v":1},{"$f":"+IF('C.GRANDE'!$D36=\"\",\"\",IF('C.GRANDE'!$C36=\"Social\",'C.GRANDE'!$E36*0.4/20,IF('C.GRANDE'!$C36=\"Ambiental\",'C.GRANDE'!$E36*0.3/19,IF('C.GRANDE'!$C36=\"Económica\",'C.GRANDE'!$E36*0.3/4,\"\"))))","v":1.5789473684210527E-2},"Muy bueno","CLICK AQUÍ"]
[null,"¿La participación comunitaria expresada en propuestas viables es tenida en cuenta en la formulación de proyectos para reducir las muertes y pérdidas económicas por desastres?","Ambiental","Si existen propuestas de la comunidad tenidas en cuenta en la formulación de proyectos",{"$f":"+IF(D37=\"\",\"\",IF(D37=\"No existen propuestas de la comunidad tenidas en cuenta en la formulación de proyectos\",0,1))","v":1},{"$f":"+IF('C.GRANDE'!$D37=\"\",\"\",IF('C.GRANDE'!$C37=\"Social\",'C.GRANDE'!$E37*0.4/20,IF('C.GRANDE'!$C37=\"Ambiental\",'C.GRANDE'!$E37*0.3/19,IF('C.GRANDE'!$C37=\"Económica\",'C.GRANDE'!$E37*0.3/4,\"\"))))","v":1.5789473684210527E-2},"Muy bueno","CLICK AQUÍ"]
[null,"Concentración media anual de material particulado PM10","Ambiental",1,{"$f":"+IF(D38=\"\",\"\",IF(D38>60,0,IF(D38>50,0.3,IF(D38>37,0.5,IF(D38>29,0.8,1)))))","v":1},{"$f":"+IF('C.GRANDE'!$D38=\"\",\"\",IF('C.GRANDE'!$C38=\"Social\",'C.GRANDE'!$E38*0.4/20,IF('C.GRANDE'!$C38=\"Ambiental\",'C.GRANDE'!$E38*0.3/19,IF('C.GRANDE'!$C38=\"Económica\",'C.GRANDE'!$E38*0.3/4,\"\"))))","v":1.5789473684210527E-2},"Muy bueno","CLICK AQUÍ"]
[null,"Concentración media anual de material particulado PM2,5","Ambiental",1,{"$f":"+IF(D39=\"\",\"\",IF(D39>30,0,IF(D39>25,0.3,IF(D39>20,0.5,IF(D39>14,0.8,1)))))","v":1},{"$f":"+IF('C.GRANDE'!$D39=\"\",\"\",IF('C.GRANDE'!$C39=\"Social\",'C.GRANDE'!$E39*0.4/20,IF('C.GRANDE'!$C39=\"Ambiental\",'C.GRANDE'!$E39*0.3/19,IF('C.GRANDE'!$C39=\"Económica\",'C.GRANDE'!$E39*0.3/4,\"\"))))","v":1.5789473684210527E-2},"Muy bueno","CLICK AQUÍ"]
[null,"Concentración media anual de material particulado SO2","Ambiental",1,{"$f":"+IF(D40=\"\",\"\",IF(D40>60,0,IF(D40>50,0.3,IF(D40>35,0.5,IF(D40>19,0.8,1)))))","v":1},{"$f":"+IF('C.GRANDE'!$D40=\"\",\"\",IF('C.GRANDE'!$C40=\"Social\",'C.GRANDE'!$E40*0.4/20,IF('C.GRANDE'!$C40=\"Ambiental\",'C.GRANDE'!$E40*0.3/19,IF('C.GRANDE'!$C40=\"Económica\",'C.GRANDE'!$E40*0.3/4,\"\"))))","v":1.5789473684210527E-2},"Muy bueno","CLICK AQUÍ"]
[null,"Concentración media anual de material particulado NO2","Ambiental",1,{"$f":"+IF(D41=\"\",\"\",IF(D41>70,0,IF(D41>60,0.3,IF(D41>50,0.5,IF(D41>39,0.8,1)))))","v":1},{"$f":"+IF('C.GRANDE'!$D41=\"\",\"\",IF('C.GRANDE'!$C41=\"Social\",'C.GRANDE'!$E41*0.4/20,IF('C.GRANDE'!$C41=\"Ambiental\",'C.GRANDE'!$E41*0.3/19,IF('C.GRANDE'!$C41=\"Económica\",'C.GRANDE'!$E41*0.3/4,\"\"))))","v":1.5789473684210527E-2},"Muy bueno","CLICK AQUÍ"]
[null,"¿Cuenta con PGIRS actualizado?","Ambiental","Si cuenta con PGIRS actualizado",{"$f":"+IF(D42=\"\",\"\",IF(D42=\"No cuenta con PGIRS actualizado\",0,1))","v":1},{"$f":"+IF('C.GRANDE'!$D42=\"\",\"\",IF('C.GRANDE'!$C42=\"Social\",'C.GRANDE'!$E42*0.4/20,IF('C.GRANDE'!$C42=\"Ambiental\",'C.GRANDE'!$E42*0.3/19,IF('C.GRANDE'!$C42=\"Económica\",'C.GRANDE'!$E42*0.3/4,\"\"))))","v":1.5789473684210527E-2},{"$f":"+IF(E42=\"\",\"\",IF(E42=0,\"Muy malo\",\"Muy bueno\"))","v":"Muy bueno"},"CLICK AQUÍ"]
[null,"Porcentaje de la población que cuenta con recolección regular de residuos sólidos","Ambiental",1,{"$f":"+IF(D43=\"\",\"\",IF(D43<60%,0,IF(D43<80%,0.3,IF(D43<90%,0.5,IF(D43<=95%,0.8,1)))))","v":1},{"$f":"+IF('C.GRANDE'!$D43=\"\",\"\",IF('C.GRANDE'!$C43=\"Social\",'C.GRANDE'!$E43*0.4/20,IF('C.GRANDE'!$C43=\"Ambiental\",'C.GRANDE'!$E43*0.3/19,IF('C.GRANDE'!$C43=\"Económica\",'C.GRANDE'!$E43*0.3/4,\"\"))))","v":1.5789473684210527E-2},{"$f":"+IF(E43=\"\",\"\",IF(E43=0,\"Muy malo\",IF(E43=0.3,\"Malo\",IF(E43=0.5,\"Regular\",IF(E43=0.8,\"Bueno\",\"Muy bueno\")))))","v":"Muy bueno"},"CLICK AQUÍ"]
[null,"Porcentaje de residuos que se reciclan, se aprovechan energéticamente o se compostan","Ambiental",1,{"$f":"+IF(D44=\"\",\"\",IF(D44<15%,0,IF(D44<20%,0.3,IF(D44<25%,0.5,IF(D44<=30%,0.8,1)))))","v":1},{"$f":"+IF('C.GRANDE'!$D44=\"\",\"\",IF('C.GRANDE'!$C44=\"Social\",'C.GRANDE'!$E44*0.4/20,IF('C.GRANDE'!$C44=\"Ambiental\",'C.GRANDE'!$E44*0.3/19,IF('C.GRANDE'!$C44=\"Económica\",'C.GRANDE'!$E44*0.3/4,\"\"))))","v":1.5789473684210527E-2},"Muy bueno","CLICK AQUÍ"]
[null,"Porcentaje de reducción en la generación de residuos sólidos en el municipio","Ambiental",1,{"$f":"+IF(D45=\"\",\"\",IF(D45<20%,0,IF(D45<40%,0.3,IF(D45<50%,0.5,IF(D45<=60%,0.8,1)))))","v":1},{"$f":"+IF('C.GRANDE'!$D45=\"\",\"\",IF('C.GRANDE'!$C45=\"Social\",'C.GRANDE'!$E45*0.4/20,IF('C.GRANDE'!$C45=\"Ambiental\",'C.GRANDE'!$E45*0.3/19,IF('C.GRANDE'!$C45=\"Económica\",'C.GRANDE'!$E45*0.3/4,\"\"))))","v":1.5789473684210527E-2},"Muy bueno","CLICK AQUÍ"]
[null,"¿La participación comunitaria expresada en propuestas viables es tenida en cuenta en la formulación de proyectos que permitan reducir el impacto ambiental negativo en calidad del aire y gestión de residuos?","Ambiental","Si existen propuestas de la comunidad tenidas en cuenta en la formulación de proyectos",{"$f":"+IF(D46=\"\",\"\",IF(D46=\"No existen propuestas de la comunidad tenidas en cuenta en la formulación de proyectos\",0,1))","v":1},{"$f":"+IF('C.GRANDE'!$D46=\"\",\"\",IF('C.GRANDE'!$C46=\"Social\",'C.GRANDE'!$E46*0.4/20,IF('C.GRANDE'!$C46=\"Ambiental\",'C.GRANDE'!$E46*0.3/19,IF('C.GRANDE'!$C46=\"Económica\",'C.GRANDE'!$E46*0.3/4,\"\"))))","v":1.5789473684210527E-2},"Muy bueno","CLICK AQUÍ"]
[null,"¿Incorpora en el POT, PDM y demás instrumentos de planeación y administración compromisos claros de mitigación y adaptación al Cambio Climático relacionadas a las INDC de Colombia?","Ambiental","Si la reconoce",{"$f":"+IF(D47=\"\",\"\",IF(D47=\"No la reconoce\",0,1))","v":1},{"$f":"+IF('C.GRANDE'!$D47=\"\",\"\",IF('C.GRANDE'!$C47=\"Social\",'C.GRANDE'!$E47*0.4/20,IF('C.GRANDE'!$C47=\"Ambiental\",'C.GRANDE'!$E47*0.3/19,IF('C.GRANDE'!$C47=\"Económica\",'C.GRANDE'!$E47*0.3/4,\"\"))))","v":1.5789473684210527E-2},{"$f":"+IF(E47=\"\",\"\",IF(E47=0,\"Muy malo\",\"Muy bueno\"))","v":"Muy bueno"},"CLICK AQUÍ"]
[null,"¿Posee el municipio Plan de Gestión del Riesgo de Desastres Naturales (PGRDN) actualizado y ha respondido este a las condiciones de vulnerabilidad del municipio?","Ambiental","Si la reconoce",1,{"$f":"+IF('C.GRANDE'!$D48=\"\",\"\",IF('C.GRANDE'!$C48=\"Social\",'C.GRANDE'!$E48*0.4/20,IF('C.GRANDE'!$C48=\"Ambiental\",'C.GRANDE'!$E48*0.3/19,IF('C.GRANDE'!$C48=\"Económica\",'C.GRANDE'!$E48*0.3/4,\"\"))))","v":1.5789473684210527E-2},"Muy bueno","CLICK AQUÍ"]
[null,"¿La participación comunitaria expresada en propuestas viables es tenida en cuenta en la formulación de proyectos  para la reducción riesgo de desastres, mitigación y adaptación al cambio climático?","Ambiental","Si existen propuestas de la comunidad tenidas en cuenta en la formulación de proyectos",{"$f":"+IF(D49=\"\",\"\",IF(D49=\"No existen propuestas de la comunidad tenidas en cuenta en la formulación de proyectos\",0,1))","v":1},{"$f":"+IF('C.GRANDE'!$D49=\"\",\"\",IF('C.GRANDE'!$C49=\"Social\",'C.GRANDE'!$E49*0.4/20,IF('C.GRANDE'!$C49=\"Ambiental\",'C.GRANDE'!$E49*0.3/19,IF('C.GRANDE'!$C49=\"Económica\",'C.GRANDE'!$E49*0.3/4,\"\"))))","v":1.5789473684210527E-2},{"$f":"+IF(E49=\"\",\"\",IF(E49=0,\"Muy malo\",IF(E49=0.3,\"Malo\",IF(E49=0.5,\"Regular\",IF(E49=0.8,\"Bueno\",\"Muy bueno\")))))","v":"Muy bueno"},"CLICK AQUÍ"]
[null,"Índice de Desarrollo Metropolitano (CEPAL, calculado y analizado en relación a las 18 áreas metropolitanas del país)","Económica",1,{"$f":"+IF(D50=\"\",\"\",IF(D50<20,0,IF(D50<40,0.3,IF(D50<60,0.5,IF(D50<=80,0.8,1)))))","v":0},{"$f":"+IF('C.GRANDE'!$D50=\"\",\"\",IF('C.GRANDE'!$C50=\"Social\",'C.GRANDE'!$E50*0.4/20,IF('C.GRANDE'!$C50=\"Ambiental\",'C.GRANDE'!$E50*0.3/19,IF('C.GRANDE'!$C50=\"Económica\",'C.GRANDE'!$E50*0.3/4,\"\"))))","v":0},"Muy malo","CLICK AQUÍ"]
[null,"Solvencia y sostenibilidad del desempeño fiscal","Económica",50,{"$f":"+IF(D51=\"\",\"\",IF(D51<40,0,IF(D51<60,0.3,IF(D51<70,0.5,IF(D51<=80,0.8,1)))))","v":0.3},{"$f":"+IF('C.GRANDE'!$D51=\"\",\"\",IF('C.GRANDE'!$C51=\"Social\",'C.GRANDE'!$E51*0.4/20,IF('C.GRANDE'!$C51=\"Ambiental\",'C.GRANDE'!$E51*0.3/19,IF('C.GRANDE'!$C51=\"Económica\",'C.GRANDE'!$E51*0.3/4,\"\"))))","v":2.2499999999999999E-2},"Malo","CLICK AQUÍ"]
[null,"¿La participación comunitaria expresada en propuestas viables es tenida en cuenta en la formulación de proyectos  para el apoyo de vínculos para desarrollo nacional y regional?","Económica","Si existen propuestas de la comunidad tenidas en cuenta en la formulación de proyectos",{"$f":"+IF(D52=\"\",\"\",IF(D52=\"No existen propuestas de la comunidad tenidas en cuenta en la formulación de proyectos\",0,1))","v":1},{"$f":"+IF('C.GRANDE'!$D52=\"\",\"\",IF('C.GRANDE'!$C52=\"Social\",'C.GRANDE'!$E52*0.4/20,IF('C.GRANDE'!$C52=\"Ambiental\",'C.GRANDE'!$E52*0.3/19,IF('C.GRANDE'!$C52=\"Económica\",'C.GRANDE'!$E52*0.3/4,\"\"))))","v":7.4999999999999997E-2},"Muy bueno","CLICK AQUÍ"]
[null,"¿Están articuladas las redes de participación para la planificación y gestión del territorio?","Económica","No se encuentran articuladas las redes de participación",{"$f":"+IF(D53=\"\",\"\",IF(D53=\"No se encuentran articuladas las redes de participación\",0,1))","v":0},{"$f":"+IF('C.GRANDE'!$D53=\"\",\"\",IF('C.GRANDE'!$C53=\"Social\",'C.GRANDE'!$E53*0.4/20,IF('C.GRANDE'!$C53=\"Ambiental\",'C.GRANDE'!$E53*0.3/19,IF('C.GRANDE'!$C53=\"Económica\",'C.GRANDE'!$E53*0.3/4,\"\"))))","v":0},{"$f":"+IF(E53=\"\",\"\",IF(E53=0,\"Muy malo\",\"Muy bueno\"))","v":"Muy malo"},"CLICK AQUÍ"]

{"sheet":"C.MEDIANA","index":5,"n_rows":50,"n_cols":8,"rows_kept":50,"cut":false,"hidden":false,"merged":[]}
[null,"APLICATIVO PARA LA CALIFICACIÓN DEL POTENCIAL SOSTENIBLE DE UNA CIUDAD"]
[null,null,"CIUDAD MEDIANA","RESULTADO","INTERPRETACIÓN"]
[null,null,"Potencial Sostenible",{"$f":"+IF(COUNT('C.MEDIANA'!$E$11:$E$50)=0,\"\",SUM(F:F))","v":0.71742690058479552},{"$f":"+IF(D3=\"\",\"\",IF(D3=0%,\"Muy malo\",IF(D3<=30%,\"Malo\",IF(D3<=50%,\"Regular\",IF(D3<=80%,\"Bueno\",\"Muy bueno\")))))","v":"Bueno"}]
[null,null,"Potencial Social",{"$f":"+IF(COUNT(E11:E28)=0,\"\",(SUMIF('C.MEDIANA'!$C$11:$C$50,\"Social\",'C.MEDIANA'!$F$11:$F$50))/40%)","v":0.77777777777777757},"Bueno"]
[null,null,"Potencial Ambiental",{"$f":"+IF(COUNT(E29:E47)=0,\"\",(SUMIF('C.MEDIANA'!$C$11:$C$50,\"Ambiental\",'C.MEDIANA'!$F$11:$F$50))/30%)","v":0.92105263157894712},"Muy bueno"]
[null,null,"Potencial Económico",{"$f":"+IF(COUNT(E48:E50)=0,\"\",(SUMIF('C.MEDIANA'!$C$11:$C$50,\"Económica\",'C.MEDIANA'!$F$11:$F$50))/30%)","v":0.43333333333333335},"Regular"]
[]
[null,"IMPORTANTE: Introduzca los valores en las celdas de color gris correspondientes al encabezado llamado RESULTADO para obtener los valores de cada uno de los indicadores. Para información de cada indicador haga click en cada campo del encabezado de DESCRIPCIÓN DEL INDICADOR.","CIUDAD",{"$f":"+IF(PRINCIPAL!E20=\"Mediana\",PRINCIPAL!E20,\"\")","v":""},"Haga click aquí para ver la tabla de interpretación de los potenciales"]
[]
[null,"INDICADOR","DIMENSIÓN","RESULTADO","CALIFICACIÓN","PONDERACIÓN","INTERPRETACIÓN","DESCRIPCIÓN DEL INDICADOR"]
[null,"Déficit cualitativo de vivienda","Social",1,{"$f":"+IF(D11=\"\",\"\",IF(D11>=30%,0,IF(D11>=20%,0.3,IF(D11>=10%,0.5,IF(D11>=7%,0.8,1)))))","v":0},{"$f":"+IF('C.MEDIANA'!$D11=\"\",\"\",IF('C.MEDIANA'!$C11=\"Social\",'C.MEDIANA'!$E11*0.4/18,IF('C.MEDIANA'!$C11=\"Ambiental\",'C.MEDIANA'!$E11*0.3/19,IF('C.MEDIANA'!$C11=\"Económica\",'C.MEDIANA'!$E11*0.3/3,\"\"))))","v":0},{"$f":"+IF(D11=\"\",\"\",IF(E11=0,\"Muy malo\",IF(E11=0.3,\"Malo\",IF(E11=0.5,\"Regular\",IF(E11=0.8,\"Bueno\",\"Muy bueno\")))))","v":"Muy malo"},"'DESCRIPCION INDICADORES'!C10"]
[null,"Déficit cuantitativo de vivienda","Social",1,{"$f":"+IF(D12=\"\",\"\",IF(D12>=9.1%,0,IF(D12>6.9%,0.3,IF(D12>4.8%,0.5,IF(D12>2.7%,0.8,1)))))","v":0},{"$f":"+IF('C.MEDIANA'!$D12=\"\",\"\",IF('C.MEDIANA'!$C12=\"Social\",'C.MEDIANA'!$E12*0.4/18,IF('C.MEDIANA'!$C12=\"Ambiental\",'C.MEDIANA'!$E12*0.3/19,IF('C.MEDIANA'!$C12=\"Económica\",'C.MEDIANA'!$E12*0.3/3,\"\"))))","v":0},{"$f":"+IF(E12=\"\",\"\",IF(E12=0,\"Muy malo\",IF(E12=0.3,\"Malo\",IF(E12=0.5,\"Regular\",IF(E12=0.8,\"Bueno\",\"Muy bueno\")))))","v":"Muy malo"},"CLICK AQUÍ"]
[null,"¿El municipio cuenta con política y norma de construcción sostenible?","Social","Si posee norma y política de construcción sostenible",{"$f":"+IF(D13=\"\",\"\",IF(D13=\"No posee norma y política de construcción sostenible\",0,1))","v":1},{"$f":"+IF('C.MEDIANA'!$D13=\"\",\"\",IF('C.MEDIANA'!$C13=\"Social\",'C.MEDIANA'!$E13*0.4/18,IF('C.MEDIANA'!$C13=\"Ambiental\",'C.MEDIANA'!$E13*0.3/19,IF('C.MEDIANA'!$C13=\"Económica\",'C.MEDIANA'!$E13*0.3/3,\"\"))))","v":2.2222222222222223E-2},{"$f":"+IF(E13=\"\",\"\",IF(E13=0,\"Muy malo\",\"Muy bueno\"))","v":"Muy bueno"},"CLICK AQUÍ"]
[null,"Proporción de edificaciones que se han construido desde 2017 implementando los parametros y lineamientos de construccion sostenible que establece la \"Guía para el ahorro de agua y energía en edificaciones\" según la Resolución 0549 de 2015","Social",0.5,{"$f":"+IF(D14=\"\",\"\",IF(D14<60%,0,IF(D14<70%,0.3,IF(D14<80%,0.5,IF(D14<=90%,0.8,1)))))","v":0},{"$f":"+IF('C.MEDIANA'!$D14=\"\",\"\",IF('C.MEDIANA'!$C14=\"Social\",'C.MEDIANA'!$E14*0.4/18,IF('C.MEDIANA'!$C14=\"Ambiental\",'C.MEDIANA'!$E14*0.3/19,IF('C.MEDIANA'!$C14=\"Económica\",'C.MEDIANA'!$E14*0.3/3,\"\"))))","v":0},{"$f":"+IF(E14=\"\",\"\",IF(E14=0,\"Muy malo\",IF(E14=0.3,\"Malo\",IF(E14=0.5,\"Regular\",IF(E14=0.8,\"Bueno\",\"Muy bueno\")))))","v":"Muy malo"},"CLICK AQUÍ"]
[null,"¿La participación comunitaria expresada en propuestas viables es tenida en cuenta en la formulación de proyectos que mejoren el acceso a vivienda y servicios básicos adecuados?","Social","Si existen propuestas de la comunidad tenidas en cuenta en la formulación de proyectos",{"$f":"+IF(D15=\"\",\"\",IF(D15=\"No existen propuestas de la comunidad tenidas en cuenta en la formulación de proyectos\",0,1))","v":1},{"$f":"+IF('C.MEDIANA'!$D15=\"\",\"\",IF('C.MEDIANA'!$C15=\"Social\",'C.MEDIANA'!$E15*0.4/18,IF('C.MEDIANA'!$C15=\"Ambiental\",'C.MEDIANA'!$E15*0.3/19,IF('C.MEDIANA'!$C15=\"Económica\",'C.MEDIANA'!$E15*0.3/3,\"\"))))","v":2.2222222222222223E-2},"Muy bueno","CLICK AQUÍ"]
[null,"Índice de asequibilidad","Social",1,{"$f":"+IF(D16=\"\",\"\",IF(D16>30%,0,IF(D16>=24%,0.3,IF(D16>=17%,0.5,IF(D16>10%,0.8,1)))))","v":0},{"$f":"+IF('C.MEDIANA'!$D16=\"\",\"\",IF('C.MEDIANA'!$C16=\"Social\",'C.MEDIANA'!$E16*0.4/18,IF('C.MEDIANA'!$C16=\"Ambiental\",'C.MEDIANA'!$E16*0.3/19,IF('C.MEDIANA'!$C16=\"Económica\",'C.MEDIANA'!$E16*0.3/3,\"\"))))","v":0},"Muy malo","CLICK AQUÍ"]
[null,"Tasa General de Mortalidad por Accidentes de Tránsito terrestre (TGMA)","Social",1,{"$f":"+IF(D17=\"\",\"\",IF(D17>30,0,IF(D17>22.7,0.3,IF(D17>15.5,0.5,IF(D17>=8.3,0.8,1)))))","v":1},{"$f":"+IF('C.MEDIANA'!$D17=\"\",\"\",IF('C.MEDIANA'!$C17=\"Social\",'C.MEDIANA'!$E17*0.4/18,IF('C.MEDIANA'!$C17=\"Ambiental\",'C.MEDIANA'!$E17*0.3/19,IF('C.MEDIANA'!$C17=\"Económica\",'C.MEDIANA'!$E17*0.3/3,\"\"))))","v":2.2222222222222223E-2},"Muy bueno","CLICK AQUÍ"]
[null,"Porcentaje de vehículos de transporte público con equipo de transporte accesible","Social",1,{"$f":"+IF(D18=\"\",\"\",IF(D18<60%,0,IF(D18<70%,0.3,IF(D18<80%,0.5,IF(D18<=90%,0.8,1)))))","v":1},{"$f":"+IF('C.MEDIANA'!$D18=\"\",\"\",IF('C.MEDIANA'!$C18=\"Social\",'C.MEDIANA'!$E18*0.4/18,IF('C.MEDIANA'!$C18=\"Ambiental\",'C.MEDIANA'!$E18*0.3/19,IF('C.MEDIANA'!$C18=\"Económica\",'C.MEDIANA'!$E18*0.3/3,\"\"))))","v":2.2222222222222223E-2},"Muy bueno","CLICK AQUÍ"]
[null,"Porcentaje de longitud de infraestructura vial para sistemas masivos","Social",1,{"$f":"+IF(D19=\"\",\"\",IF(D19<5%,0,IF(D19<9%,0.3,IF(D19<13%,0.5,IF(D19<=17%,0.8,1)))))","v":1},{"$f":"+IF('C.MEDIANA'!$D19=\"\",\"\",IF('C.MEDIANA'!$C19=\"Social\",'C.MEDIANA'!$E19*0.4/18,IF('C.MEDIANA'!$C19=\"Ambiental\",'C.MEDIANA'!$E19*0.3/19,IF('C.MEDIANA'!$C19=\"Económica\",'C.MEDIANA'!$E19*0.3/3,\"\"))))","v":2.2222222222222223E-2},"Muy bueno","CLICK AQUÍ"]
[null,"Estado de la red vial (teniendo en cuenta lineamientos de MinTransporte e Invías)","Social","Más del 50% de la malla vial en categoría Buena y Muy buena",{"$f":"+IF(D20=\"\",\"\",VLOOKUP(D20,PARÁMETROS!F2:G6,2,FALSE))","v":1},{"$f":"+IF('C.MEDIANA'!$D20=\"\",\"\",IF('C.MEDIANA'!$C20=\"Social\",'C.MEDIANA'!$E20*0.4/18,IF('C.MEDIANA'!$C20=\"Ambiental\",'C.MEDIANA'!$E20*0.3/19,IF('C.MEDIANA'!$C20=\"Económica\",'C.MEDIANA'!$E20*0.3/3,\"\"))))","v":2.2222222222222223E-2},"Muy bueno","CLICK AQUÍ"]
[null,"¿La participación comunitaria expresada en propuestas viables es tenida en cuenta en la formulación de proyectos que mejoren la gestión del transporte público sostenible?","Social","Si existen propuestas de la comunidad tenidas en cuenta en la formulación de proyectos",{"$f":"+IF(D21=\"\",\"\",IF(D21=\"No existen propuestas de la comunidad tenidas en cuenta en la formulación de proyectos\",0,1))","v":1},{"$f":"+IF('C.MEDIANA'!$D21=\"\",\"\",IF('C.MEDIANA'!$C21=\"Social\",'C.MEDIANA'!$E21*0.4/18,IF('C.MEDIANA'!$C21=\"Ambiental\",'C.MEDIANA'!$E21*0.3/19,IF('C.MEDIANA'!$C21=\"Económica\",'C.MEDIANA'!$E21*0.3/3,\"\"))))","v":2.2222222222222223E-2},"Muy bueno","CLICK AQUÍ"]
[null,"Proporción de personas que participan activamente en asociaciones comunitarias para la planificación y gestión del territorio (JAC , junta de acueducto, cabildos indígenas, minorías étnicas, consejos regionales, consejo de planeación, agremiaciones, sindicatos, etc.)","Social",100,{"$f":"+IF(D22=\"\",\"\",IF(D22<=20,0,IF(D22<=29,0.3,IF(D22<=50,0.5,IF(D22<=70,0.8,1)))))","v":1},{"$f":"+IF('C.MEDIANA'!$D22=\"\",\"\",IF('C.MEDIANA'!$C22=\"Social\",'C.MEDIANA'!$E22*0.4/18,IF('C.MEDIANA'!$C22=\"Ambiental\",'C.MEDIANA'!$E22*0.3/19,IF('C.MEDIANA'!$C22=\"Económica\",'C.MEDIANA'!$E22*0.3/3,\"\"))))","v":2.2222222222222223E-2},"Muy bueno","CLICK AQUÍ"]
[null,"Proporción de la población con acceso a equipamientos básicos o colectivos (educación, salud, cultura y deportes)","Social","Mas del 80% de la población con acceso a 4 o mas equipamientos básicos",{"$f":"+IF(D23=\"\",\"\",VLOOKUP(D23,PARÁMETROS!F8:G12,2,FALSE))","v":1},{"$f":"+IF('C.MEDIANA'!$D23=\"\",\"\",IF('C.MEDIANA'!$C23=\"Social\",'C.MEDIANA'!$E23*0.4/18,IF('C.MEDIANA'!$C23=\"Ambiental\",'C.MEDIANA'!$E23*0.3/19,IF('C.MEDIANA'!$C23=\"Económica\",'C.MEDIANA'!$E23*0.3/3,\"\"))))","v":2.2222222222222223E-2},"Muy bueno","CLICK AQUÍ"]
[null,"¿La participación comunitaria expresada en propuestas viables es tenida en cuenta en la formulación de proyectos para lograr urbanización inclusiva y mayor seguridad?","Social","Si existen propuestas de la comunidad tenidas en cuenta en la formulación de proyectos",{"$f":"+IF(D24=\"\",\"\",IF(D24=\"No existen propuestas de la comunidad tenidas en cuenta en la formulación de proyectos\",0,1))","v":1},{"$f":"+IF('C.MEDIANA'!$D24=\"\",\"\",IF('C.MEDIANA'!$C24=\"Social\",'C.MEDIANA'!$E24*0.4/18,IF('C.MEDIANA'!$C24=\"Ambiental\",'C.MEDIANA'!$E24*0.3/19,IF('C.MEDIANA'!$C24=\"Económica\",'C.MEDIANA'!$E24*0.3/3,\"\"))))","v":2.2222222222222223E-2},"Muy bueno","CLICK AQUÍ"]
[null,"Espacio público efectivo (DADEP)","Social",57,{"$f":"+IF(D25=\"\",\"\",IF(D25<3,0,IF(D25<5,0.3,IF(D25<=10,0.5,IF(D25<15,0.8,1)))))","v":1},{"$f":"+IF('C.MEDIANA'!$D25=\"\",\"\",IF('C.MEDIANA'!$C25=\"Social\",'C.MEDIANA'!$E25*0.4/18,IF('C.MEDIANA'!$C25=\"Ambiental\",'C.MEDIANA'!$E25*0.3/19,IF('C.MEDIANA'!$C25=\"Económica\",'C.MEDIANA'!$E25*0.3/3,\"\"))))","v":2.2222222222222223E-2},"Muy bueno","CLICK AQUÍ"]
[null,"Cantidad de personas víctimas de secuestro, minas antipersona, desplazamiento forzado y otras producto del conflicto armado","Social",0,{"$f":"+IF(D26=\"\",\"\",IF(D26>=20,0,IF(D26>=11,0.3,IF(D26>=6,0.5,IF(D26>0,0.8,1)))))","v":1},{"$f":"+IF('C.MEDIANA'!$D26=\"\",\"\",IF('C.MEDIANA'!$C26=\"Social\",'C.MEDIANA'!$E26*0.4/18,IF('C.MEDIANA'!$C26=\"Ambiental\",'C.MEDIANA'!$E26*0.3/19,IF('C.MEDIANA'!$C26=\"Económica\",'C.MEDIANA'!$E26*0.3/3,\"\"))))","v":2.2222222222222223E-2},"Muy bueno","CLICK AQUÍ"]
[null,"Proporción de personas víctimas de violencia física o acoso sexual ","Social",0.06,{"$f":"+IF(D27=\"\",\"\",IF(D27>35%,0,IF(D27>=27%,0.3,IF(D27>=20%,0.5,IF(D27>=10%,0.8,1)))))","v":1},{"$f":"+IF('C.MEDIANA'!$D27=\"\",\"\",IF('C.MEDIANA'!$C27=\"Social\",'C.MEDIANA'!$E27*0.4/18,IF('C.MEDIANA'!$C27=\"Ambiental\",'C.MEDIANA'!$E27*0.3/19,IF('C.MEDIANA'!$C27=\"Económica\",'C.MEDIANA'!$E27*0.3/3,\"\"))))","v":2.2222222222222223E-2},"Muy bueno","CLICK AQUÍ"]
[null,"¿La participación comunitaria expresada en propuestas viables es tenida en cuenta en la formulación de proyectos que mejoren el acceso a zonas verdes y espacios públicos seguros, inclusivos y accesibles?","Social","Si existen propuestas de la comunidad tenidas en cuenta en la formulación de proyectos",{"$f":"+IF(D28=\"\",\"\",IF(D28=\"No existen propuestas de la comunidad tenidas en cuenta en la formulación de proyectos\",0,1))","v":1},{"$f":"+IF('C.MEDIANA'!$D28=\"\",\"\",IF('C.MEDIANA'!$C28=\"Social\",'C.MEDIANA'!$E28*0.4/18,IF('C.MEDIANA'!$C28=\"Ambiental\",'C.MEDIANA'!$E28*0.3/19,IF('C.MEDIANA'!$C28=\"Económica\",'C.MEDIANA'!$E28*0.3/3,\"\"))))","v":2.2222222222222223E-2},"Muy bueno","CLICK AQUÍ"]
[null,"Proporción de elementos del patrimonio cultural que se encuentre en óptimas condiciones","Ambiental",1,{"$f":"+IF(D29=\"\",\"\",IF(D29<60%,0,IF(D29<70%,0.3,IF(D29<80%,0.5,IF(D29<=90%,0.8,1)))))","v":1},{"$f":"+IF('C.MEDIANA'!$D29=\"\",\"\",IF('C.MEDIANA'!$C29=\"Social\",'C.MEDIANA'!$E29*0.4/18,IF('C.MEDIANA'!$C29=\"Ambiental\",'C.MEDIANA'!$E29*0.3/19,IF('C.MEDIANA'!$C29=\"Económica\",'C.MEDIANA'!$E29*0.3/3,\"\"))))","v":1.5789473684210527E-2},"Muy bueno","CLICK AQUÍ"]
[null,"¿Reconoce la estructura ecológica principal (EEP) y esta se encuentra bajo una figura de protección o aprovechamiento racional?","Ambiental","Si la reconoce",{"$f":"+IF(D30=\"\",\"\",IF(D30=\"No la reconoce\",0,1))","v":1},{"$f":"+IF('C.MEDIANA'!$D30=\"\",\"\",IF('C.MEDIANA'!$C30=\"Social\",'C.MEDIANA'!$E30*0.4/18,IF('C.MEDIANA'!$C30=\"Ambiental\",'C.MEDIANA'!$E30*0.3/19,IF('C.MEDIANA'!$C30=\"Económica\",'C.MEDIANA'!$E30*0.3/3,\"\"))))","v":1.5789473684210527E-2},{"$f":"+IF(E30=\"\",\"\",IF(E30=0,\"Muy malo\",\"Muy bueno\"))","v":"Muy bueno"},"CLICK AQUÍ"]
[null,"¿La participación comunitaria expresada en propuestas viables es tenida en cuenta en la formulación de proyectos que mejoren la conservación de patrimonio cultural y natural?","Ambiental","Si existen propuestas de la comunidad tenidas en cuenta en la formulación de proyectos",{"$f":"+IF(D31=\"\",\"\",IF(D31=\"No existen propuestas de la comunidad tenidas en cuenta en la formulación de proyectos\",0,1))","v":1},{"$f":"+IF('C.MEDIANA'!$D31=\"\",\"\",IF('C.MEDIANA'!$C31=\"Social\",'C.MEDIANA'!$E31*0.4/18,IF('C.MEDIANA'!$C31=\"Ambiental\",'C.MEDIANA'!$E31*0.3/19,IF('C.MEDIANA'!$C31=\"Económica\",'C.MEDIANA'!$E31*0.3/3,\"\"))))","v":1.5789473684210527E-2},{"$f":"+IF(E31=\"\",\"\",IF(E31=0,\"Muy malo\",IF(E31=0.3,\"Malo\",IF(E31=0.5,\"Regular\",IF(E31=0.8,\"Bueno\",\"Muy bueno\")))))","v":"Muy bueno"},"CLICK AQUÍ"]
[null,"Número de afectados por desastres","Ambiental",45,{"$f":"+IF(D32=\"\",\"\",IF(D32>4800,0,IF(D32>4300,0.3,IF(D32>3800,0.5,IF(D32>3283,0.8,1)))))","v":1},{"$f":"+IF('C.MEDIANA'!$D32=\"\",\"\",IF('C.MEDIANA'!$C32=\"Social\",'C.MEDIANA'!$E32*0.4/18,IF('C.MEDIANA'!$C32=\"Ambiental\",'C.MEDIANA'!$E32*0.3/19,IF('C.MEDIANA'!$C32=\"Económica\",'C.MEDIANA'!$E32*0.3/3,\"\"))))","v":1.5789473684210527E-2},"Muy bueno","CLICK AQUÍ"]
[null,"Número de muertes por desastres","Ambiental",1,{"$f":"+IF(D33=\"\",\"\",IF(D33>20,0,IF(D33>15,0.3,IF(D33>10,0.5,IF(D33>5,0.8,1)))))","v":1},{"$f":"+IF('C.MEDIANA'!$D33=\"\",\"\",IF('C.MEDIANA'!$C33=\"Social\",'C.MEDIANA'!$E33*0.4/18,IF('C.MEDIANA'!$C33=\"Ambiental\",'C.MEDIANA'!$E33*0.3/19,IF('C.MEDIANA'!$C33=\"Económica\",'C.MEDIANA'!$E33*0.3/3,\"\"))))","v":1.5789473684210527E-2},"Muy bueno","CLICK AQUÍ"]
[null,"Índice municipal de riesgo de desastres ajustado por capacidades","Ambiental",3,{"$f":"+IF(D34=\"\",\"\",IF(D34>80,0,IF(D34>60,0.3,IF(D34>40,0.5,IF(D34>19,0.8,1)))))","v":1},{"$f":"+IF('C.MEDIANA'!$D34=\"\",\"\",IF('C.MEDIANA'!$C34=\"Social\",'C.MEDIANA'!$E34*0.4/18,IF('C.MEDIANA'!$C34=\"Ambiental\",'C.MEDIANA'!$E34*0.3/19,IF('C.MEDIANA'!$C34=\"Económica\",'C.MEDIANA'!$E34*0.3/3,\"\"))))","v":1.5789473684210527E-2},"Muy bueno","CLICK AQUÍ"]
[null,"¿La participación comunitaria expresada en propuestas viables es tenida en cuenta en la formulación de proyectos para reducir las muertes y pérdidas económicas por desastres?","Ambiental","Si existen propuestas de la comunidad tenidas en cuenta en la formulación de proyectos",{"$f":"+IF(D35=\"\",\"\",IF(D35=\"No existen propuestas de la comunidad tenidas en cuenta en la formulación de proyectos\",0,1))","v":1},{"$f":"+IF('C.MEDIANA'!$D35=\"\",\"\",IF('C.MEDIANA'!$C35=\"Social\",'C.MEDIANA'!$E35*0.4/18,IF('C.MEDIANA'!$C35=\"Ambiental\",'C.MEDIANA'!$E35*0.3/19,IF('C.MEDIANA'!$C35=\"Económica\",'C.MEDIANA'!$E35*0.3/3,\"\"))))","v":1.5789473684210527E-2},"Muy bueno","CLICK AQUÍ"]
[null,"Concentración media anual de material particulado PM10","Ambiental",22,{"$f":"+IF(D36=\"\",\"\",IF(D36>60,0,IF(D36>50,0.3,IF(D36>37,0.5,IF(D36>29,0.8,1)))))","v":1},{"$f":"+IF('C.MEDIANA'!$D36=\"\",\"\",IF('C.MEDIANA'!$C36=\"Social\",'C.MEDIANA'!$E36*0.4/18,IF('C.MEDIANA'!$C36=\"Ambiental\",'C.MEDIANA'!$E36*0.3/19,IF('C.MEDIANA'!$C36=\"Económica\",'C.MEDIANA'!$E36*0.3/3,\"\"))))","v":1.5789473684210527E-2},"Muy bueno","CLICK AQUÍ"]
[null,"Concentración media anual de material particulado PM2,5","Ambiental",6,{"$f":"+IF(D37=\"\",\"\",IF(D37>30,0,IF(D37>25,0.3,IF(D37>20,0.5,IF(D37>14,0.8,1)))))","v":1},{"$f":"+IF('C.MEDIANA'!$D37=\"\",\"\",IF('C.MEDIANA'!$C37=\"Social\",'C.MEDIANA'!$E37*0.4/18,IF('C.MEDIANA'!$C37=\"Ambiental\",'C.MEDIANA'!$E37*0.3/19,IF('C.MEDIANA'!$C37=\"Económica\",'C.MEDIANA'!$E37*0.3/3,\"\"))))","v":1.5789473684210527E-2},"Muy bueno","CLICK AQUÍ"]
[null,"Concentración media anual de material particulado SO2","Ambiental",1,{"$f":"+IF(D38=\"\",\"\",IF(D38>60,0,IF(D38>50,0.3,IF(D38>35,0.5,IF(D38>19,0.8,1)))))","v":1},{"$f":"+IF('C.MEDIANA'!$D38=\"\",\"\",IF('C.MEDIANA'!$C38=\"Social\",'C.MEDIANA'!$E38*0.4/18,IF('C.MEDIANA'!$C38=\"Ambiental\",'C.MEDIANA'!$E38*0.3/19,IF('C.MEDIANA'!$C38=\"Económica\",'C.MEDIANA'!$E38*0.3/3,\"\"))))","v":1.5789473684210527E-2},"Muy bueno","CLICK AQUÍ"]
[null,"Concentración media anual de material particulado NO2","Ambiental",1,{"$f":"+IF(D39=\"\",\"\",IF(D39>70,0,IF(D39>60,0.3,IF(D39>50,0.5,IF(D39>39,0.8,1)))))","v":1},{"$f":"+IF('C.MEDIANA'!$D39=\"\",\"\",IF('C.MEDIANA'!$C39=\"Social\",'C.MEDIANA'!$E39*0.4/18,IF('C.MEDIANA'!$C39=\"Ambiental\",'C.MEDIANA'!$E39*0.3/19,IF('C.MEDIANA'!$C39=\"Económica\",'C.MEDIANA'!$E39*0.3/3,\"\"))))","v":1.5789473684210527E-2},"Muy bueno","CLICK AQUÍ"]
[null,"¿Cuenta con PGIRS actualizado?","Ambiental","Si cuenta con PGIRS actualizado",{"$f":"+IF(D40=\"\",\"\",IF(D40=\"No cuenta con PGIRS actualizado\",0,1))","v":1},{"$f":"+IF('C.MEDIANA'!$D40=\"\",\"\",IF('C.MEDIANA'!$C40=\"Social\",'C.MEDIANA'!$E40*0.4/18,IF('C.MEDIANA'!$C40=\"Ambiental\",'C.MEDIANA'!$E40*0.3/19,IF('C.MEDIANA'!$C40=\"Económica\",'C.MEDIANA'!$E40*0.3/3,\"\"))))","v":1.5789473684210527E-2},{"$f":"+IF(E40=\"\",\"\",IF(E40=0,\"Muy malo\",\"Muy bueno\"))","v":"Muy bueno"},"CLICK AQUÍ"]
[null,"Porcentaje de la población que cuenta con recolección regular de residuos sólidos","Ambiental",1,{"$f":"+IF(D41=\"\",\"\",IF(D41<60%,0,IF(D41<80%,0.3,IF(D41<90%,0.5,IF(D41<=95%,0.8,1)))))","v":1},{"$f":"+IF('C.MEDIANA'!$D41=\"\",\"\",IF('C.MEDIANA'!$C41=\"Social\",'C.MEDIANA'!$E41*0.4/18,IF('C.MEDIANA'!$C41=\"Ambiental\",'C.MEDIANA'!$E41*0.3/19,IF('C.MEDIANA'!$C41=\"Económica\",'C.MEDIANA'!$E41*0.3/3,\"\"))))","v":1.5789473684210527E-2},{"$f":"+IF(E41=\"\",\"\",IF(E41=0,\"Muy malo\",IF(E41=0.3,\"Malo\",IF(E41=0.5,\"Regular\",IF(E41=0.8,\"Bueno\",\"Muy bueno\")))))","v":"Muy bueno"},"CLICK AQUÍ"]
[null,"Porcentaje de residuos que se reciclan, se aprovechan energéticamente o se compostan","Ambiental",0.22,{"$f":"+IF(D42=\"\",\"\",IF(D42<15%,0,IF(D42<20%,0.3,IF(D42<25%,0.5,IF(D42<=30%,0.8,1)))))","v":0.5},{"$f":"+IF('C.MEDIANA'!$D42=\"\",\"\",IF('C.MEDIANA'!$C42=\"Social\",'C.MEDIANA'!$E42*0.4/18,IF('C.MEDIANA'!$C42=\"Ambiental\",'C.MEDIANA'!$E42*0.3/19,IF('C.MEDIANA'!$C42=\"Económica\",'C.MEDIANA'!$E42*0.3/3,\"\"))))","v":7.8947368421052634E-3},"Regular","CLICK AQUÍ"]
[null,"Porcentaje de reducción en la generación de residuos sólidos en el municipio","Ambiental",0.01,{"$f":"+IF(D43=\"\",\"\",IF(D43<20%,0,IF(D43<40%,0.3,IF(D43<50%,0.5,IF(D43<=60%,0.8,1)))))","v":0},{"$f":"+IF('C.MEDIANA'!$D43=\"\",\"\",IF('C.MEDIANA'!$C43=\"Social\",'C.MEDIANA'!$E43*0.4/18,IF('C.MEDIANA'!$C43=\"Ambiental\",'C.MEDIANA'!$E43*0.3/19,IF('C.MEDIANA'!$C43=\"Económica\",'C.MEDIANA'!$E43*0.3/3,\"\"))))","v":0},"Muy malo","CLICK AQUÍ"]
[null,"¿La participación comunitaria expresada en propuestas viables es tenida en cuenta en la formulación de proyectos que permitan reducir el impacto ambiental negativo en calidad del aire y gestión de residuos?","Ambiental","Si existen propuestas de la comunidad tenidas en cuenta en la formulación de proyectos",{"$f":"+IF(D44=\"\",\"\",IF(D44=\"No existen propuestas de la comunidad tenidas en cuenta en la formulación de proyectos\",0,1))","v":1},{"$f":"+IF('C.MEDIANA'!$D44=\"\",\"\",IF('C.MEDIANA'!$C44=\"Social\",'C.MEDIANA'!$E44*0.4/18,IF('C.MEDIANA'!$C44=\"Ambiental\",'C.MEDIANA'!$E44*0.3/19,IF('C.MEDIANA'!$C44=\"Económica\",'C.MEDIANA'!$E44*0.3/3,\"\"))))","v":1.5789473684210527E-2},"Muy bueno","CLICK AQUÍ"]
[null,"¿Incorpora en el POT, PDM y demás instrumentos de planeación y administración compromisos claros de mitigación y adaptación al Cambio Climático relacionadas a las INDC de Colombia?","Ambiental","Si la reconoce",{"$f":"+IF(D45=\"\",\"\",IF(D45=\"No la reconoce\",0,1))","v":1},{"$f":"+IF('C.MEDIANA'!$D45=\"\",\"\",IF('C.MEDIANA'!$C45=\"Social\",'C.MEDIANA'!$E45*0.4/18,IF('C.MEDIANA'!$C45=\"Ambiental\",'C.MEDIANA'!$E45*0.3/19,IF('C.MEDIANA'!$C45=\"Económica\",'C.MEDIANA'!$E45*0.3/3,\"\"))))","v":1.5789473684210527E-2},{"$f":"+IF(E45=\"\",\"\",IF(E45=0,\"Muy malo\",\"Muy bueno\"))","v":"Muy bueno"},"CLICK AQUÍ"]
[null,"¿Posee el municipio Plan de Gestión del Riesgo de Desastres Naturales (PGRDN) actualizado y ha respondido este a las condiciones de vulnerabilidad del municipio?","Ambiental","Si la reconoce",1,{"$f":"+IF('C.MEDIANA'!$D46=\"\",\"\",IF('C.MEDIANA'!$C46=\"Social\",'C.MEDIANA'!$E46*0.4/18,IF('C.MEDIANA'!$C46=\"Ambiental\",'C.MEDIANA'!$E46*0.3/19,IF('C.MEDIANA'!$C46=\"Económica\",'C.MEDIANA'!$E46*0.3/3,\"\"))))","v":1.5789473684210527E-2},"Muy bueno","CLICK AQUÍ"]
[null,"¿La participación comunitaria expresada en propuestas viables es tenida en cuenta en la formulación de proyectos  para la reducción riesgo de desastres, mitigación y adaptación al cambio climático?","Ambiental","Si existen propuestas de la comunidad tenidas en cuenta en la formulación de proyectos",{"$f":"+IF(D47=\"\",\"\",IF(D47=\"No existen propuestas de la comunidad tenidas en cuenta en la formulación de proyectos\",0,1))","v":1},{"$f":"+IF('C.MEDIANA'!$D47=\"\",\"\",IF('C.MEDIANA'!$C47=\"Social\",'C.MEDIANA'!$E47*0.4/18,IF('C.MEDIANA'!$C47=\"Ambiental\",'C.MEDIANA'!$E47*0.3/19,IF('C.MEDIANA'!$C47=\"Económica\",'C.MEDIANA'!$E47*0.3/3,\"\"))))","v":1.5789473684210527E-2},{"$f":"+IF(E47=\"\",\"\",IF(E47=0,\"Muy malo\",IF(E47=0.3,\"Malo\",IF(E47=0.5,\"Regular\",IF(E47=0.8,\"Bueno\",\"Muy bueno\")))))","v":"Muy bueno"},"CLICK AQUÍ"]
[null,"Solvencia y sostenibilidad del desempeño fiscal","Económica",50,{"$f":"+IF(D48=\"\",\"\",IF(D48<40,0,IF(D48<60,0.3,IF(D48<70,0.5,IF(D48<=80,0.8,1)))))","v":0.3},{"$f":"+IF('C.MEDIANA'!$D48=\"\",\"\",IF('C.MEDIANA'!$C48=\"Social\",'C.MEDIANA'!$E48*0.4/18,IF('C.MEDIANA'!$C48=\"Ambiental\",'C.MEDIANA'!$E48*0.3/19,IF('C.MEDIANA'!$C48=\"Económica\",'C.MEDIANA'!$E48*0.3/3,\"\"))))","v":0.03},"Malo","CLICK AQUÍ"]
[null,"¿La participación comunitaria expresada en propuestas viables es tenida en cuenta en la formulación de proyectos  para el apoyo de vínculos para desarrollo nacional y regional?","Económica","Si existen propuestas de la comunidad tenidas en cuenta en la formulación de proyectos",{"$f":"+IF(D49=\"\",\"\",IF(D49=\"No existen propuestas de la comunidad tenidas en cuenta en la formulación de proyectos\",0,1))","v":1},{"$f":"+IF('C.MEDIANA'!$D49=\"\",\"\",IF('C.MEDIANA'!$C49=\"Social\",'C.MEDIANA'!$E49*0.4/18,IF('C.MEDIANA'!$C49=\"Ambiental\",'C.MEDIANA'!$E49*0.3/19,IF('C.MEDIANA'!$C49=\"Económica\",'C.MEDIANA'!$E49*0.3/3,\"\"))))","v":9.9999999999999992E-2},"Muy bueno","CLICK AQUÍ"]
[null,"¿Están articuladas las redes de participación para la planificación y gestión del territorio?","Económica","No se encuentran articuladas las redes de participación",{"$f":"+IF(D50=\"\",\"\",IF(D50=\"No se encuentran articuladas las redes de participación\",0,1))","v":0},{"$f":"+IF('C.MEDIANA'!$D50=\"\",\"\",IF('C.MEDIANA'!$C50=\"Social\",'C.MEDIANA'!$E50*0.4/18,IF('C.MEDIANA'!$C50=\"Ambiental\",'C.MEDIANA'!$E50*0.3/19,IF('C.MEDIANA'!$C50=\"Económica\",'C.MEDIANA'!$E50*0.3/3,\"\"))))","v":0},{"$f":"+IF(E50=\"\",\"\",IF(E50=0,\"Muy malo\",\"Muy bueno\"))","v":"Muy malo"},"CLICK AQUÍ"]

{"sheet":"C.PEQUEÑA","index":6,"n_rows":46,"n_cols":8,"rows_kept":46,"cut":false,"hidden":false,"merged":[]}
[null,"APLICATIVO PARA LA CALIFICACIÓN DEL POTENCIAL SOSTENIBLE DE UNA CIUDAD"]
[null,null,"CIUDAD PEQUEÑA","RESULTADO","INTERPRETACIÓN"]
[null,null,"Potencial Sostenible",{"$f":"+IF(COUNT('C.PEQUEÑA'!$E$11:$E$46)=0,\"\",SUM(F:F))","v":0.71097744360902304},{"$f":"+IF(D3=\"\",\"\",IF(D3=0%,\"Muy malo\",IF(D3<=30%,\"Malo\",IF(D3<=50%,\"Regular\",IF(D3<=80%,\"Bueno\",\"Muy bueno\")))))","v":"Bueno"}]
[null,null,"Potencial Social",{"$f":"+IF(COUNT(E11:E24)=0,\"\",(SUMIF('C.PEQUEÑA'!$C$11:$C$46,\"Social\",'C.PEQUEÑA'!$F$11:$F$46))/40%)","v":0.91428571428571448},"Muy bueno"]
[null,null,"Potencial Ambiental",{"$f":"+IF(COUNT(E25:E43)=0,\"\",(SUMIF('C.PEQUEÑA'!$C$11:$C$46,\"Ambiental\",'C.PEQUEÑA'!$F$11:$F$46))/30%)","v":0.88421052631578922},"Muy bueno"]
[null,null,"Potencial Económico",{"$f":"+IF(COUNT(E44:E46)=0,\"\",(SUMIF('C.PEQUEÑA'!$C$11:$C$46,\"Económica\",'C.PEQUEÑA'!$F$11:$F$46))/30%)","v":0.26666666666666666},"Malo"]
[]
[null,"IMPORTANTE: Introduzca los valores en las celdas de color gris correspondientes al encabezado llamado RESULTADO para obtener los valores de cada uno de los indicadores. Para información de cada indicador haga click en cada campo del encabezado de DESCRIPCIÓN DEL INDICADOR.","CIUDAD",{"$f":"+IF(PRINCIPAL!E20=\"Pequeña\",PRINCIPAL!E20,\"\")","v":""},"Haga click aquí para ver la tabla de interpretación de los potenciales"]
[]
[null,"INDICADOR","DIMENSIÓN","RESULTADO","CALIFICACIÓN","PONDERACIÓN","INTERPRETACIÓN","DESCRIPCIÓN DEL INDICADOR"]
[null,"Déficit cualitativo de vivienda","Social",1,{"$f":"+IF(D11=\"\",\"\",IF(D11>=30%,0,IF(D11>=20%,0.3,IF(D11>=10%,0.5,IF(D11>=7%,0.8,1)))))","v":0},{"$f":"+IF('C.PEQUEÑA'!$D11=\"\",\"\",IF('C.PEQUEÑA'!$C11=\"Social\",'C.PEQUEÑA'!$E11*0.4/14,IF('C.PEQUEÑA'!$C11=\"Ambiental\",'C.PEQUEÑA'!$E11*0.3/19,IF('C.PEQUEÑA'!$C11=\"Económica\",'C.PEQUEÑA'!$E11*0.3/3,\"\"))))","v":0},{"$f":"+IF(D11=\"\",\"\",IF(E11=0,\"Muy malo\",IF(E11=0.3,\"Malo\",IF(E11=0.5,\"Regular\",IF(E11=0.8,\"Bueno\",\"Muy bueno\")))))","v":"Muy malo"},"'DESCRIPCION INDICADORES'!C10"]
[null,"Déficit cuantitativo de vivienda","Social",0.04,{"$f":"+IF(D12=\"\",\"\",IF(D12>=9.1%,0,IF(D12>6.9%,0.3,IF(D12>4.8%,0.5,IF(D12>2.7%,0.8,1)))))","v":0.8},{"$f":"+IF('C.PEQUEÑA'!$D12=\"\",\"\",IF('C.PEQUEÑA'!$C12=\"Social\",'C.PEQUEÑA'!$E12*0.4/14,IF('C.PEQUEÑA'!$C12=\"Ambiental\",'C.PEQUEÑA'!$E12*0.3/19,IF('C.PEQUEÑA'!$C12=\"Económica\",'C.PEQUEÑA'!$E12*0.3/3,\"\"))))","v":2.2857142857142861E-2},{"$f":"+IF(E12=\"\",\"\",IF(E12=0,\"Muy malo\",IF(E12=0.3,\"Malo\",IF(E12=0.5,\"Regular\",IF(E12=0.8,\"Bueno\",\"Muy bueno\")))))","v":"Bueno"},"CLICK AQUÍ"]
[null,"¿La participación comunitaria expresada en propuestas viables es tenida en cuenta en la formulación de proyectos que mejoren el acceso a vivienda y servicios básicos adecuados?","Social","Si existen propuestas de la comunidad tenidas en cuenta en la formulación de proyectos",{"$f":"+IF(D13=\"\",\"\",IF(D13=\"No existen propuestas de la comunidad tenidas en cuenta en la formulación de proyectos\",0,1))","v":1},{"$f":"+IF('C.PEQUEÑA'!$D13=\"\",\"\",IF('C.PEQUEÑA'!$C13=\"Social\",'C.PEQUEÑA'!$E13*0.4/14,IF('C.PEQUEÑA'!$C13=\"Ambiental\",'C.PEQUEÑA'!$E13*0.3/19,IF('C.PEQUEÑA'!$C13=\"Económica\",'C.PEQUEÑA'!$E13*0.3/3,\"\"))))","v":2.8571428571428574E-2},"Muy bueno","CLICK AQUÍ"]
[null,"Índice de asequibilidad","Social",0.01,{"$f":"+IF(D14=\"\",\"\",IF(D14>30%,0,IF(D14>=24%,0.3,IF(D14>=17%,0.5,IF(D14>10%,0.8,1)))))","v":1},{"$f":"+IF('C.PEQUEÑA'!$D14=\"\",\"\",IF('C.PEQUEÑA'!$C14=\"Social\",'C.PEQUEÑA'!$E14*0.4/14,IF('C.PEQUEÑA'!$C14=\"Ambiental\",'C.PEQUEÑA'!$E14*0.3/19,IF('C.PEQUEÑA'!$C14=\"Económica\",'C.PEQUEÑA'!$E14*0.3/3,\"\"))))","v":2.8571428571428574E-2},"Muy bueno","CLICK AQUÍ"]
[null,"Tasa General de Mortalidad por Accidentes de Tránsito terrestre (TGMA)","Social",1,{"$f":"+IF(D15=\"\",\"\",IF(D15>30,0,IF(D15>22.7,0.3,IF(D15>15.5,0.5,IF(D15>=8.3,0.8,1)))))","v":1},{"$f":"+IF('C.PEQUEÑA'!$D15=\"\",\"\",IF('C.PEQUEÑA'!$C15=\"Social\",'C.PEQUEÑA'!$E15*0.4/14,IF('C.PEQUEÑA'!$C15=\"Ambiental\",'C.PEQUEÑA'!$E15*0.3/19,IF('C.PEQUEÑA'!$C15=\"Económica\",'C.PEQUEÑA'!$E15*0.3/3,\"\"))))","v":2.8571428571428574E-2},"Muy bueno","CLICK AQUÍ"]
[null,"Aumento de longitud de infraestructura vial para sistemas alternativos de transporte","Social",1,{"$f":"+IF(D16=\"\",\"\",IF(D16<10%,0,IF(D16<25%,0.3,IF(D16<40%,0.5,IF(D16<=60%,0.8,1)))))","v":1},{"$f":"+IF('C.PEQUEÑA'!$D16=\"\",\"\",IF('C.PEQUEÑA'!$C16=\"Social\",'C.PEQUEÑA'!$E16*0.4/14,IF('C.PEQUEÑA'!$C16=\"Ambiental\",'C.PEQUEÑA'!$E16*0.3/19,IF('C.PEQUEÑA'!$C16=\"Económica\",'C.PEQUEÑA'!$E16*0.3/3,\"\"))))","v":2.8571428571428574E-2},"Muy bueno","CLICK AQUÍ"]
[null,"¿La participación comunitaria expresada en propuestas viables es tenida en cuenta en la formulación de proyectos que mejoren la gestión del transporte público sostenible?","Social","Si existen propuestas de la comunidad tenidas en cuenta en la formulación de proyectos",{"$f":"+IF(D17=\"\",\"\",IF(D17=\"No existen propuestas de la comunidad tenidas en cuenta en la formulación de proyectos\",0,1))","v":1},{"$f":"+IF('C.PEQUEÑA'!$D17=\"\",\"\",IF('C.PEQUEÑA'!$C17=\"Social\",'C.PEQUEÑA'!$E17*0.4/14,IF('C.PEQUEÑA'!$C17=\"Ambiental\",'C.PEQUEÑA'!$E17*0.3/19,IF('C.PEQUEÑA'!$C17=\"Económica\",'C.PEQUEÑA'!$E17*0.3/3,\"\"))))","v":2.8571428571428574E-2},"Muy bueno","CLICK AQUÍ"]
[null,"Proporción de personas que participan activamente en asociaciones comunitarias para la planificación y gestión del territorio (JAC , junta de acueducto, cabildos indígenas, minorías étnicas, consejos regionales, consejo de planeación, agremiaciones, sindicatos, etc.)","Social",100,{"$f":"+IF(D18=\"\",\"\",IF(D18<=20,0,IF(D18<=29,0.3,IF(D18<=50,0.5,IF(D18<=70,0.8,1)))))","v":1},{"$f":"+IF('C.PEQUEÑA'!$D18=\"\",\"\",IF('C.PEQUEÑA'!$C18=\"Social\",'C.PEQUEÑA'!$E18*0.4/14,IF('C.PEQUEÑA'!$C18=\"Ambiental\",'C.PEQUEÑA'!$E18*0.3/19,IF('C.PEQUEÑA'!$C18=\"Económica\",'C.PEQUEÑA'!$E18*0.3/3,\"\"))))","v":2.8571428571428574E-2},"Muy bueno","CLICK AQUÍ"]
[null,"Proporción de la población con acceso a equipamientos básicos o colectivos (educación, salud, cultura y deportes)","Social","Mas del 80% de la población con acceso a 4 o mas equipamientos básicos",{"$f":"+IF(D19=\"\",\"\",VLOOKUP(D19,PARÁMETROS!F8:G12,2,FALSE))","v":1},{"$f":"+IF('C.PEQUEÑA'!$D19=\"\",\"\",IF('C.PEQUEÑA'!$C19=\"Social\",'C.PEQUEÑA'!$E19*0.4/14,IF('C.PEQUEÑA'!$C19=\"Ambiental\",'C.PEQUEÑA'!$E19*0.3/19,IF('C.PEQUEÑA'!$C19=\"Económica\",'C.PEQUEÑA'!$E19*0.3/3,\"\"))))","v":2.8571428571428574E-2},"Muy bueno","CLICK AQUÍ"]
[null,"¿La participación comunitaria expresada en propuestas viables es tenida en cuenta en la formulación de proyectos para lograr urbanización inclusiva y mayor seguridad?","Social","Si existen propuestas de la comunidad tenidas en cuenta en la formulación de proyectos",{"$f":"+IF(D20=\"\",\"\",IF(D20=\"No existen propuestas de la comunidad tenidas en cuenta en la formulación de proyectos\",0,1))","v":1},{"$f":"+IF('C.PEQUEÑA'!$D20=\"\",\"\",IF('C.PEQUEÑA'!$C20=\"Social\",'C.PEQUEÑA'!$E20*0.4/14,IF('C.PEQUEÑA'!$C20=\"Ambiental\",'C.PEQUEÑA'!$E20*0.3/19,IF('C.PEQUEÑA'!$C20=\"Económica\",'C.PEQUEÑA'!$E20*0.3/3,\"\"))))","v":2.8571428571428574E-2},"Muy bueno","CLICK AQUÍ"]
[null,"Espacio público efectivo (DADEP)","Social",57,{"$f":"+IF(D21=\"\",\"\",IF(D21<3,0,IF(D21<5,0.3,IF(D21<=10,0.5,IF(D21<15,0.8,1)))))","v":1},{"$f":"+IF('C.PEQUEÑA'!$D21=\"\",\"\",IF('C.PEQUEÑA'!$C21=\"Social\",'C.PEQUEÑA'!$E21*0.4/14,IF('C.PEQUEÑA'!$C21=\"Ambiental\",'C.PEQUEÑA'!$E21*0.3/19,IF('C.PEQUEÑA'!$C21=\"Económica\",'C.PEQUEÑA'!$E21*0.3/3,\"\"))))","v":2.8571428571428574E-2},"Muy bueno","CLICK AQUÍ"]
[null,"Cantidad de personas víctimas de secuestro, minas antipersona, desplazamiento forzado y otras producto del conflicto armado","Social",0,{"$f":"+IF(D22=\"\",\"\",IF(D22>=20,0,IF(D22>=11,0.3,IF(D22>=6,0.5,IF(D22>0,0.8,1)))))","v":1},{"$f":"+IF('C.PEQUEÑA'!$D22=\"\",\"\",IF('C.PEQUEÑA'!$C22=\"Social\",'C.PEQUEÑA'!$E22*0.4/14,IF('C.PEQUEÑA'!$C22=\"Ambiental\",'C.PEQUEÑA'!$E22*0.3/19,IF('C.PEQUEÑA'!$C22=\"Económica\",'C.PEQUEÑA'!$E22*0.3/3,\"\"))))","v":2.8571428571428574E-2},"Muy bueno","CLICK AQUÍ"]
[null,"Proporción de personas víctimas de violencia física o acoso sexual ","Social",0.06,{"$f":"+IF(D23=\"\",\"\",IF(D23>35%,0,IF(D23>=27%,0.3,IF(D23>=20%,0.5,IF(D23>=10%,0.8,1)))))","v":1},{"$f":"+IF('C.PEQUEÑA'!$D23=\"\",\"\",IF('C.PEQUEÑA'!$C23=\"Social\",'C.PEQUEÑA'!$E23*0.4/14,IF('C.PEQUEÑA'!$C23=\"Ambiental\",'C.PEQUEÑA'!$E23*0.3/19,IF('C.PEQUEÑA'!$C23=\"Económica\",'C.PEQUEÑA'!$E23*0.3/3,\"\"))))","v":2.8571428571428574E-2},"Muy bueno","CLICK AQUÍ"]
[null,"¿La participación comunitaria expresada en propuestas viables es tenida en cuenta en la formulación de proyectos que mejoren el acceso a zonas verdes y espacios públicos seguros, inclusivos y accesibles?","Social","Si existen propuestas de la comunidad tenidas en cuenta en la formulación de proyectos",{"$f":"+IF(D24=\"\",\"\",IF(D24=\"No existen propuestas de la comunidad tenidas en cuenta en la formulación de proyectos\",0,1))","v":1},{"$f":"+IF('C.PEQUEÑA'!$D24=\"\",\"\",IF('C.PEQUEÑA'!$C24=\"Social\",'C.PEQUEÑA'!$E24*0.4/14,IF('C.PEQUEÑA'!$C24=\"Ambiental\",'C.PEQUEÑA'!$E24*0.3/19,IF('C.PEQUEÑA'!$C24=\"Económica\",'C.PEQUEÑA'!$E24*0.3/3,\"\"))))","v":2.8571428571428574E-2},"Muy bueno","CLICK AQUÍ"]
[null,"Proporción de elementos del patrimonio cultural que se encuentre en óptimas condiciones","Ambiental",1,{"$f":"+IF(D25=\"\",\"\",IF(D25<60%,0,IF(D25<70%,0.3,IF(D25<80%,0.5,IF(D25<=90%,0.8,1)))))","v":1},{"$f":"+IF('C.PEQUEÑA'!$D25=\"\",\"\",IF('C.PEQUEÑA'!$C25=\"Social\",'C.PEQUEÑA'!$E25*0.4/14,IF('C.PEQUEÑA'!$C25=\"Ambiental\",'C.PEQUEÑA'!$E25*0.3/19,IF('C.PEQUEÑA'!$C25=\"Económica\",'C.PEQUEÑA'!$E25*0.3/3,\"\"))))","v":1.5789473684210527E-2},"Muy bueno","CLICK AQUÍ"]
[null,"¿Reconoce la estructura ecológica principal (EEP) y esta se encuentra bajo una figura de protección o aprovechamiento racional?","Ambiental","No la reconoce",{"$f":"+IF(D26=\"\",\"\",IF(D26=\"No la reconoce\",0,1))","v":0},{"$f":"+IF('C.PEQUEÑA'!$D26=\"\",\"\",IF('C.PEQUEÑA'!$C26=\"Social\",'C.PEQUEÑA'!$E26*0.4/14,IF('C.PEQUEÑA'!$C26=\"Ambiental\",'C.PEQUEÑA'!$E26*0.3/19,IF('C.PEQUEÑA'!$C26=\"Económica\",'C.PEQUEÑA'!$E26*0.3/3,\"\"))))","v":0},{"$f":"+IF(E26=\"\",\"\",IF(E26=0,\"Muy malo\",\"Muy bueno\"))","v":"Muy malo"},"CLICK AQUÍ"]
[null,"¿La participación comunitaria expresada en propuestas viables es tenida en cuenta en la formulación de proyectos que mejoren la conservación de patrimonio cultural y natural?","Ambiental","Si existen propuestas de la comunidad tenidas en cuenta en la formulación de proyectos",{"$f":"+IF(D27=\"\",\"\",IF(D27=\"No existen propuestas de la comunidad tenidas en cuenta en la formulación de proyectos\",0,1))","v":1},{"$f":"+IF('C.PEQUEÑA'!$D27=\"\",\"\",IF('C.PEQUEÑA'!$C27=\"Social\",'C.PEQUEÑA'!$E27*0.4/14,IF('C.PEQUEÑA'!$C27=\"Ambiental\",'C.PEQUEÑA'!$E27*0.3/19,IF('C.PEQUEÑA'!$C27=\"Económica\",'C.PEQUEÑA'!$E27*0.3/3,\"\"))))","v":1.5789473684210527E-2},{"$f":"+IF(E27=\"\",\"\",IF(E27=0,\"Muy malo\",IF(E27=0.3,\"Malo\",IF(E27=0.5,\"Regular\",IF(E27=0.8,\"Bueno\",\"Muy bueno\")))))","v":"Muy bueno"},"CLICK AQUÍ"]
[null,"Número de afectados por desastres","Ambiental",4000,{"$f":"+IF(D28=\"\",\"\",IF(D28>4800,0,IF(D28>4300,0.3,IF(D28>3800,0.5,IF(D28>3283,0.8,1)))))","v":0.5},{"$f":"+IF('C.PEQUEÑA'!$D28=\"\",\"\",IF('C.PEQUEÑA'!$C28=\"Social\",'C.PEQUEÑA'!$E28*0.4/14,IF('C.PEQUEÑA'!$C28=\"Ambiental\",'C.PEQUEÑA'!$E28*0.3/19,IF('C.PEQUEÑA'!$C28=\"Económica\",'C.PEQUEÑA'!$E28*0.3/3,\"\"))))","v":7.8947368421052634E-3},"Regular","CLICK AQUÍ"]
[null,"Número de muertes por desastres","Ambiental",20,{"$f":"+IF(D29=\"\",\"\",IF(D29>20,0,IF(D29>15,0.3,IF(D29>10,0.5,IF(D29>5,0.8,1)))))","v":0.3},{"$f":"+IF('C.PEQUEÑA'!$D29=\"\",\"\",IF('C.PEQUEÑA'!$C29=\"Social\",'C.PEQUEÑA'!$E29*0.4/14,IF('C.PEQUEÑA'!$C29=\"Ambiental\",'C.PEQUEÑA'!$E29*0.3/19,IF('C.PEQUEÑA'!$C29=\"Económica\",'C.PEQUEÑA'!$E29*0.3/3,\"\"))))","v":4.7368421052631574E-3},"Malo","CLICK AQUÍ"]
[null,"Índice municipal de riesgo de desastres ajustado por capacidades","Ambiental",3,{"$f":"+IF(D30=\"\",\"\",IF(D30>80,0,IF(D30>60,0.3,IF(D30>40,0.5,IF(D30>19,0.8,1)))))","v":1},{"$f":"+IF('C.PEQUEÑA'!$D30=\"\",\"\",IF('C.PEQUEÑA'!$C30=\"Social\",'C.PEQUEÑA'!$E30*0.4/14,IF('C.PEQUEÑA'!$C30=\"Ambiental\",'C.PEQUEÑA'!$E30*0.3/19,IF('C.PEQUEÑA'!$C30=\"Económica\",'C.PEQUEÑA'!$E30*0.3/3,\"\"))))","v":1.5789473684210527E-2},"Muy bueno","CLICK AQUÍ"]
[null,"¿La participación comunitaria expresada en propuestas viables es tenida en cuenta en la formulación de proyectos para reducir las muertes y pérdidas económicas por desastres?","Ambiental","Si existen propuestas de la comunidad tenidas en cuenta en la formulación de proyectos",{"$f":"+IF(D31=\"\",\"\",IF(D31=\"No existen propuestas de la comunidad tenidas en cuenta en la formulación de proyectos\",0,1))","v":1},{"$f":"+IF('C.PEQUEÑA'!$D31=\"\",\"\",IF('C.PEQUEÑA'!$C31=\"Social\",'C.PEQUEÑA'!$E31*0.4/14,IF('C.PEQUEÑA'!$C31=\"Ambiental\",'C.PEQUEÑA'!$E31*0.3/19,IF('C.PEQUEÑA'!$C31=\"Económica\",'C.PEQUEÑA'!$E31*0.3/3,\"\"))))","v":1.5789473684210527E-2},"Muy bueno","CLICK AQUÍ"]
[null,"Concentración media anual de material particulado PM10","Ambiental",22,{"$f":"+IF(D32=\"\",\"\",IF(D32>60,0,IF(D32>50,0.3,IF(D32>37,0.5,IF(D32>29,0.8,1)))))","v":1},{"$f":"+IF('C.PEQUEÑA'!$D32=\"\",\"\",IF('C.PEQUEÑA'!$C32=\"Social\",'C.PEQUEÑA'!$E32*0.4/14,IF('C.PEQUEÑA'!$C32=\"Ambiental\",'C.PEQUEÑA'!$E32*0.3/19,IF('C.PEQUEÑA'!$C32=\"Económica\",'C.PEQUEÑA'!$E32*0.3/3,\"\"))))","v":1.5789473684210527E-2},"Muy bueno","CLICK AQUÍ"]
[null,"Concentración media anual de material particulado PM2,5","Ambiental",6,{"$f":"+IF(D33=\"\",\"\",IF(D33>30,0,IF(D33>25,0.3,IF(D33>20,0.5,IF(D33>14,0.8,1)))))","v":1},{"$f":"+IF('C.PEQUEÑA'!$D33=\"\",\"\",IF('C.PEQUEÑA'!$C33=\"Social\",'C.PEQUEÑA'!$E33*0.4/14,IF('C.PEQUEÑA'!$C33=\"Ambiental\",'C.PEQUEÑA'!$E33*0.3/19,IF('C.PEQUEÑA'!$C33=\"Económica\",'C.PEQUEÑA'!$E33*0.3/3,\"\"))))","v":1.5789473684210527E-2},"Muy bueno","CLICK AQUÍ"]
[null,"Concentración media anual de material particulado SO2","Ambiental",1,{"$f":"+IF(D34=\"\",\"\",IF(D34>60,0,IF(D34>50,0.3,IF(D34>35,0.5,IF(D34>19,0.8,1)))))","v":1},{"$f":"+IF('C.PEQUEÑA'!$D34=\"\",\"\",IF('C.PEQUEÑA'!$C34=\"Social\",'C.PEQUEÑA'!$E34*0.4/14,IF('C.PEQUEÑA'!$C34=\"Ambiental\",'C.PEQUEÑA'!$E34*0.3/19,IF('C.PEQUEÑA'!$C34=\"Económica\",'C.PEQUEÑA'!$E34*0.3/3,\"\"))))","v":1.5789473684210527E-2},"Muy bueno","CLICK AQUÍ"]
[null,"Concentración media anual de material particulado NO2","Ambiental",1,{"$f":"+IF(D35=\"\",\"\",IF(D35>70,0,IF(D35>60,0.3,IF(D35>50,0.5,IF(D35>39,0.8,1)))))","v":1},{"$f":"+IF('C.PEQUEÑA'!$D35=\"\",\"\",IF('C.PEQUEÑA'!$C35=\"Social\",'C.PEQUEÑA'!$E35*0.4/14,IF('C.PEQUEÑA'!$C35=\"Ambiental\",'C.PEQUEÑA'!$E35*0.3/19,IF('C.PEQUEÑA'!$C35=\"Económica\",'C.PEQUEÑA'!$E35*0.3/3,\"\"))))","v":1.5789473684210527E-2},"Muy bueno","CLICK AQUÍ"]
[null,"¿Cuenta con PGIRS actualizado?","Ambiental","Si cuenta con PGIRS actualizado",{"$f":"+IF(D36=\"\",\"\",IF(D36=\"No cuenta con PGIRS actualizado\",0,1))","v":1},{"$f":"+IF('C.PEQUEÑA'!$D36=\"\",\"\",IF('C.PEQUEÑA'!$C36=\"Social\",'C.PEQUEÑA'!$E36*0.4/14,IF('C.PEQUEÑA'!$C36=\"Ambiental\",'C.PEQUEÑA'!$E36*0.3/19,IF('C.PEQUEÑA'!$C36=\"Económica\",'C.PEQUEÑA'!$E36*0.3/3,\"\"))))","v":1.5789473684210527E-2},{"$f":"+IF(E36=\"\",\"\",IF(E36=0,\"Muy malo\",\"Muy bueno\"))","v":"Muy bueno"},"CLICK AQUÍ"]
[null,"Porcentaje de la población que cuenta con recolección regular de residuos sólidos","Ambiental",1,{"$f":"+IF(D37=\"\",\"\",IF(D37<60%,0,IF(D37<80%,0.3,IF(D37<90%,0.5,IF(D37<=95%,0.8,1)))))","v":1},{"$f":"+IF('C.PEQUEÑA'!$D37=\"\",\"\",IF('C.PEQUEÑA'!$C37=\"Social\",'C.PEQUEÑA'!$E37*0.4/14,IF('C.PEQUEÑA'!$C37=\"Ambiental\",'C.PEQUEÑA'!$E37*0.3/19,IF('C.PEQUEÑA'!$C37=\"Económica\",'C.PEQUEÑA'!$E37*0.3/3,\"\"))))","v":1.5789473684210527E-2},{"$f":"+IF(E37=\"\",\"\",IF(E37=0,\"Muy malo\",IF(E37=0.3,\"Malo\",IF(E37=0.5,\"Regular\",IF(E37=0.8,\"Bueno\",\"Muy bueno\")))))","v":"Muy bueno"},"CLICK AQUÍ"]
[null,"Porcentaje de residuos que se reciclan, se aprovechan energéticamente o se compostan","Ambiental",0.33,{"$f":"+IF(D38=\"\",\"\",IF(D38<15%,0,IF(D38<20%,0.3,IF(D38<25%,0.5,IF(D38<=30%,0.8,1)))))","v":1},{"$f":"+IF('C.PEQUEÑA'!$D38=\"\",\"\",IF('C.PEQUEÑA'!$C38=\"Social\",'C.PEQUEÑA'!$E38*0.4/14,IF('C.PEQUEÑA'!$C38=\"Ambiental\",'C.PEQUEÑA'!$E38*0.3/19,IF('C.PEQUEÑA'!$C38=\"Económica\",'C.PEQUEÑA'!$E38*0.3/3,\"\"))))","v":1.5789473684210527E-2},"Muy bueno","CLICK AQUÍ"]
[null,"Porcentaje de reducción en la generación de residuos sólidos en el municipio","Ambiental",1,{"$f":"+IF(D39=\"\",\"\",IF(D39<20%,0,IF(D39<40%,0.3,IF(D39<50%,0.5,IF(D39<=60%,0.8,1)))))","v":1},{"$f":"+IF('C.PEQUEÑA'!$D39=\"\",\"\",IF('C.PEQUEÑA'!$C39=\"Social\",'C.PEQUEÑA'!$E39*0.4/14,IF('C.PEQUEÑA'!$C39=\"Ambiental\",'C.PEQUEÑA'!$E39*0.3/19,IF('C.PEQUEÑA'!$C39=\"Económica\",'C.PEQUEÑA'!$E39*0.3/3,\"\"))))","v":1.5789473684210527E-2},"Muy bueno","CLICK AQUÍ"]
[null,"¿La participación comunitaria expresada en propuestas viables es tenida en cuenta en la formulación de proyectos que permitan reducir el impacto ambiental negativo en calidad del aire y gestión de residuos?","Ambiental","Si existen propuestas de la comunidad tenidas en cuenta en la formulación de proyectos",{"$f":"+IF(D40=\"\",\"\",IF(D40=\"No existen propuestas de la comunidad tenidas en cuenta en la formulación de proyectos\",0,1))","v":1},{"$f":"+IF('C.PEQUEÑA'!$D40=\"\",\"\",IF('C.PEQUEÑA'!$C40=\"Social\",'C.PEQUEÑA'!$E40*0.4/14,IF('C.PEQUEÑA'!$C40=\"Ambiental\",'C.PEQUEÑA'!$E40*0.3/19,IF('C.PEQUEÑA'!$C40=\"Económica\",'C.PEQUEÑA'!$E40*0.3/3,\"\"))))","v":1.5789473684210527E-2},"Muy bueno","CLICK AQUÍ"]
[null,"¿Incorpora en el POT, PDM y demás instrumentos de planeación y administración compromisos claros de mitigación y adaptación al Cambio Climático relacionadas a las INDC de Colombia?","Ambiental","Si la reconoce",{"$f":"+IF(D41=\"\",\"\",IF(D41=\"No la reconoce\",0,1))","v":1},{"$f":"+IF('C.PEQUEÑA'!$D41=\"\",\"\",IF('C.PEQUEÑA'!$C41=\"Social\",'C.PEQUEÑA'!$E41*0.4/14,IF('C.PEQUEÑA'!$C41=\"Ambiental\",'C.PEQUEÑA'!$E41*0.3/19,IF('C.PEQUEÑA'!$C41=\"Económica\",'C.PEQUEÑA'!$E41*0.3/3,\"\"))))","v":1.5789473684210527E-2},{"$f":"+IF(E41=\"\",\"\",IF(E41=0,\"Muy malo\",\"Muy bueno\"))","v":"Muy bueno"},"CLICK AQUÍ"]
[null,"¿Posee el municipio Plan de Gestión del Riesgo de Desastres Naturales (PGRDN) actualizado y ha respondido este a las condiciones de vulnerabilidad del municipio?","Ambiental","Si la reconoce",1,{"$f":"+IF('C.PEQUEÑA'!$D42=\"\",\"\",IF('C.PEQUEÑA'!$C42=\"Social\",'C.PEQUEÑA'!$E42*0.4/14,IF('C.PEQUEÑA'!$C42=\"Ambiental\",'C.PEQUEÑA'!$E42*0.3/19,IF('C.PEQUEÑA'!$C42=\"Económica\",'C.PEQUEÑA'!$E42*0.3/3,\"\"))))","v":1.5789473684210527E-2},"Muy bueno","CLICK AQUÍ"]
[null,"¿La participación comunitaria expresada en propuestas viables es tenida en cuenta en la formulación de proyectos  para la reducción riesgo de desastres, mitigación y adaptación al cambio climático?","Ambiental","Si existen propuestas de la comunidad tenidas en cuenta en la formulación de proyectos",{"$f":"+IF(D43=\"\",\"\",IF(D43=\"No existen propuestas de la comunidad tenidas en cuenta en la formulación de proyectos\",0,1))","v":1},{"$f":"+IF('C.PEQUEÑA'!$D43=\"\",\"\",IF('C.PEQUEÑA'!$C43=\"Social\",'C.PEQUEÑA'!$E43*0.4/14,IF('C.PEQUEÑA'!$C43=\"Ambiental\",'C.PEQUEÑA'!$E43*0.3/19,IF('C.PEQUEÑA'!$C43=\"Económica\",'C.PEQUEÑA'!$E43*0.3/3,\"\"))))","v":1.5789473684210527E-2},{"$f":"+IF(E43=\"\",\"\",IF(E43=0,\"Muy malo\",IF(E43=0.3,\"Malo\",IF(E43=0.5,\"Regular\",IF(E43=0.8,\"Bueno\",\"Muy bueno\")))))","v":"Muy bueno"},"CLICK AQUÍ"]
[null,"Solvencia y sostenibilidad del desempeño fiscal","Económica",80,{"$f":"+IF(D44=\"\",\"\",IF(D44<40,0,IF(D44<60,0.3,IF(D44<70,0.5,IF(D44<=80,0.8,1)))))","v":0.8},{"$f":"+IF('C.PEQUEÑA'!$D44=\"\",\"\",IF('C.PEQUEÑA'!$C44=\"Social\",'C.PEQUEÑA'!$E44*0.4/14,IF('C.PEQUEÑA'!$C44=\"Ambiental\",'C.PEQUEÑA'!$E44*0.3/19,IF('C.PEQUEÑA'!$C44=\"Económica\",'C.PEQUEÑA'!$E44*0.3/3,\"\"))))","v":0.08},"Bueno","CLICK AQUÍ"]
[null,"¿La participación comunitaria expresada en propuestas viables es tenida en cuenta en la formulación de proyectos  para el apoyo de vínculos para desarrollo nacional y regional?","Económica","No existen propuestas de la comunidad tenidas en cuenta en la formulación de proyectos",{"$f":"+IF(D45=\"\",\"\",IF(D45=\"No existen propuestas de la comunidad tenidas en cuenta en la formulación de proyectos\",0,1))","v":0},{"$f":"+IF('C.PEQUEÑA'!$D45=\"\",\"\",IF('C.PEQUEÑA'!$C45=\"Social\",'C.PEQUEÑA'!$E45*0.4/14,IF('C.PEQUEÑA'!$C45=\"Ambiental\",'C.PEQUEÑA'!$E45*0.3/19,IF('C.PEQUEÑA'!$C45=\"Económica\",'C.PEQUEÑA'!$E45*0.3/3,\"\"))))","v":0},"Muy malo","CLICK AQUÍ"]
[null,"¿Están articuladas las redes de participación para la planificación y gestión del territorio?","Económica","No se encuentran articuladas las redes de participación",{"$f":"+IF(D46=\"\",\"\",IF(D46=\"No se encuentran articuladas las redes de participación\",0,1))","v":0},{"$f":"+IF('C.PEQUEÑA'!$D46=\"\",\"\",IF('C.PEQUEÑA'!$C46=\"Social\",'C.PEQUEÑA'!$E46*0.4/14,IF('C.PEQUEÑA'!$C46=\"Ambiental\",'C.PEQUEÑA'!$E46*0.3/19,IF('C.PEQUEÑA'!$C46=\"Económica\",'C.PEQUEÑA'!$E46*0.3/3,\"\"))))","v":0},{"$f":"+IF(E46=\"\",\"\",IF(E46=0,\"Muy malo\",\"Muy bueno\"))","v":"Muy malo"},"CLICK AQUÍ"]

{"sheet":"GRAFICAS C.GRANDE","index":7,"n_rows":71,"n_cols":7,"rows_kept":71,"cut":false,"hidden":false,"merged":[[0,5,0,10]]}
[null,null,null,null,null,"APLICATIVO PARA LA CALIFICACIÓN DEL POTENCIAL SOSTENIBLE DE UNA CIUDAD"]
[]
[]
[]
[]
[]
[]
[]
[]
[]
[]
[]
[]
[null,null,null,"CIUDAD GRANDE","INTERPRETACIÓN","RESULTADO POTENCIAL"]
[null,null,null,"Potencial Ambiental","Muy bueno",0.88421052631578922]
[null,null,null,"Total Potencial Ambiental",null,0.88421052631578922]
[null,null,null,"Potencial Económico","Regular",0.32500000000000001]
[null,null,null,"Total Potencial Económico",null,0.32500000000000001]
[null,null,null,"Potencial Social","Muy bueno",0.95500000000000007]
[null,null,null,"Total Potencial Social",null,0.95500000000000007]
[null,null,null,"Potencial Sostenible","Bueno",0.74476315789473724]
[null,null,null,"Total Potencial Sostenible",null,0.74476315789473724]
[null,null,null,"Total general",null,2.9089736842105265]
[]
[]
[]
[]
[]
[]
[]
[]
[]
[null,null,null,"DIMENSIÓN","Social"]
[]
[null,null,null,"INTERPRETACIÓN INDICADOR","CANTIDAD DE INDICADORES","% EQUIVALENTE A LA DIMENSIÓN","% EQUIVALENTE AL POTENCIAL"]
[null,null,null,"Muy bueno",18,0.9,0.36000000000000004]
[null,null,null,"Regular",1,2.5000000000000001E-2,0.01]
[null,null,null,"Bueno",1,0.04,1.6000000000000004E-2]
[null,null,null,"Total general",20,0.96500000000000008,0.38600000000000007]
[]
[]
[]
[]
[]
[]
[]
[]
[]
[null,null,null,"DIMENSIÓN","Ambiental"]
[]
[null,null,null,"INTERPRETACIÓN INDICADOR","CANTIDAD DE INDICADORES","% EQUIVALENTE A LA DIMENSIÓN","% EQUIVALENTE AL POTENCIAL"]
[null,null,null,"Muy bueno",16,0.84210526315789469,0.25263157894736837]
[null,null,null,"Regular",1,2.6315789473684209E-2,7.8947368421052634E-3]
[null,null,null,"Muy malo",1,0,0]
[null,null,null,"Malo",1,1.5789473684210527E-2,4.7368421052631574E-3]
[null,null,null,"Total general",19,0.88421052631578956,0.26526315789473681]
[]
[]
[]
[]
[]
[]
[]
[]
[null,null,null,"DIMENSIÓN","Económica"]
[]
[null,null,null,"INTERPRETACIÓN INDICADOR","CANTIDAD DE INDICADORES","% EQUIVALENTE A LA DIMENSIÓN","% EQUIVALENTE AL POTENCIAL"]
[null,null,null,"Muy bueno",1,0.25,7.4999999999999997E-2]
[null,null,null,"Muy malo",2,0,0]
[null,null,null,"Malo",1,7.4999999999999997E-2,2.2499999999999999E-2]
[null,null,null,"Total general",4,0.32500000000000001,9.7500000000000003E-2]

{"sheet":"GRAFICAS C.MEDIANA","index":8,"n_rows":71,"n_cols":7,"rows_kept":71,"cut":false,"hidden":false,"merged":[[0,5,0,10]]}
[null,null,null,null,null,"APLICATIVO PARA LA CALIFICACIÓN DEL POTENCIAL SOSTENIBLE DE UNA CIUDAD"]
[]
[]
[]
[]
[]
[]
[]
[]
[]
[]
[]
[]
[null,null,null,"CIUDAD MEDIANA","INTERPRETACIÓN","RESULTADO POTENCIAL"]
[null,null,null,"Potencial Ambiental","Muy bueno",0.92105263157894712]
[null,null,null,"Total Potencial Ambiental",null,0.92105263157894712]
[null,null,null,"Potencial Económico","Regular",0.43333333333333335]
[null,null,null,"Total Potencial Económico",null,0.43333333333333335]
[null,null,null,"Potencial Social","Bueno",0.77777777777777757]
[null,null,null,"Total Potencial Social",null,0.77777777777777757]
[null,null,null,"Potencial Sostenible","Bueno",0.71742690058479552]
[null,null,null,"Total Potencial Sostenible",null,0.71742690058479552]
[null,null,null,"Total general",null,2.8495906432748539]
[]
[]
[]
[]
[]
[]
[]
[]
[]
[null,null,null,"DIMENSIÓN","Social"]
[]
[null,null,null,"INTREPRETACIÓN INDICADOR","CANTIDAD DE INDICADORES","% EQUIVALENTE A LA DIMENSIÓN","% EQUIVALENTE AL POTENCIAL"]
[null,null,null,"Muy bueno",14,0.77777777777777779,0.35]
[null,null,null,"Muy malo",4,0,0]
[null,null,null,"Total general",18,0.77777777777777779,0.35]
[]
[]
[]
[]
[]
[]
[]
[]
[]
[]
[null,null,null,"DIMENSIÓN","Ambiental"]
[]
[null,null,null,"INTERPRETACIÓN INDICADOR","CANTIDAD DE INDICADORES","% EQUIVALENTE A LA DIMENSIÓN","% EQUIVALENTE AL POTENCIAL"]
[null,null,null,"Muy bueno",17,0.89473684210526316,0.26842105263157889]
[null,null,null,"Regular",1,2.6315789473684209E-2,7.8947368421052634E-3]
[null,null,null,"Muy malo",1,0,0]
[null,null,null,"Total general",19,0.92105263157894735,0.27631578947368418]
[]
[]
[]
[]
[]
[]
[]
[]
[]
[null,null,null,"DIMENSIÓN","Económica"]
[]
[null,null,null,"INTERPRETACIÓN INDICADOR","CANTIDAD DE INDICADORES","% EQUIVALENTE A LA DIMENSIÓN","% EQUIVALENTE AL POTENCIAL"]
[null,null,null,"Malo",1,9.9999999999999992E-2,0.03]
[null,null,null,"Muy bueno",1,0.33333333333333331,9.9999999999999992E-2]
[null,null,null,"Muy malo",1,0,0]
[null,null,null,"Total general",3,0.43333333333333335,0.13]

{"sheet":"GRAFICAS C.PEQUEÑA","index":9,"n_rows":70,"n_cols":7,"rows_kept":70,"cut":false,"hidden":false,"merged":[[0,5,0,10]]}
[null,null,null,null,null,"APLICATIVO PARA LA CALIFICACIÓN DEL POTENCIAL SOSTENIBLE DE UNA CIUDAD"]
[]
[]
[]
[]
[]
[]
[]
[]
[]
[]
[]
[]
[null,null,null,"CIUDAD PEQUEÑA","INTERPRETACIÓN","RESULTADO POTENCIAL"]
[null,null,null,"Potencial Ambiental","Muy bueno",0.88421052631578922]
[null,null,null,"Total Potencial Ambiental",null,0.88421052631578922]
[null,null,null,"Potencial Económico","Malo",0.26666666666666666]
[null,null,null,"Total Potencial Económico",null,0.26666666666666666]
[null,null,null,"Potencial Social","Muy bueno",0.91428571428571448]
[null,null,null,"Total Potencial Social",null,0.91428571428571448]
[null,null,null,"Potencial Sostenible","Bueno",0.71097744360902304]
[null,null,null,"Total Potencial Sostenible",null,0.71097744360902304]
[null,null,null,"Total general",null,2.7761403508771934]
[]
[]
[]
[]
[]
[]
[]
[]
[]
[null,null,null,"DIMENSIÓN","Social"]
[]
[null,null,null,"INTERPRETACIÓN INDICADOR","CANTIDAD DE INDICADORES","% EQUIVALENTE A LA DIMENSIÓN","% EQUIVALENTE AL POTENCIAL"]
[null,null,null,"Muy bueno",12,0.8571428571428571,0.34285714285714292]
[null,null,null,"Muy malo",1,0,0]
[null,null,null,"Bueno",1,5.7142857142857148E-2,2.2857142857142861E-2]
[null,null,null,"Total general",14,0.91428571428571437,0.36571428571428577]
[]
[]
[]
[]
[]
[]
[]
[]
[]
[null,null,null,"DIMENSIÓN","Ambiental"]
[]
[null,null,null,"INTERPRETACIÓN INDICADOR","CANTIDAD DE INDICADORES","% EQUIVALENTE A LA DIMENSIÓN","% EQUIVALENTE AL POTENCIAL"]
[null,null,null,"Muy bueno",16,0.84210526315789469,0.25263157894736837]
[null,null,null,"Muy malo",1,0,0]
[null,null,null,"Malo",1,1.5789473684210527E-2,4.7368421052631574E-3]
[null,null,null,"Regular",1,2.6315789473684209E-2,7.8947368421052634E-3]
[null,null,null,"Total general",19,0.88421052631578956,0.26526315789473681]
[]
[]
[]
[]
[]
[]
[]
[]
[null,null,null,"DIMENSIÓN","Económica"]
[]
[null,null,null,"INTERPRETACIÓN INDICADOR","CANTIDAD DE INDICADORES","% EQUIVALENTE A LA DIMENSIÓN","% EQUIVALENTE AL POTENCIAL"]
[null,null,null,"Muy malo",2,0,0]
[null,null,null,"Bueno",1,0.26666666666666666,0.08]
[null,null,null,"Total general",3,0.26666666666666666,0.08]

{"sheet":"TABLA INTERPRETACIÓN POTENCIAL","index":10,"n_rows":15,"n_cols":7,"rows_kept":15,"cut":false,"hidden":false,"merged":[[8,4,8,6]]}
[null,null,null,null,"                                                   APLICATIVO PARA LA CALIFICACIÓN DEL POTENCIAL SOSTENIBLE DE UNA CIUDAD"]
[]
[]
[]
[]
[]
[]
[]
[null,null,null,null,"INTERPRETACIÓN DE LA CALIFICACIÓN DEL POTENCIAL SOSTENIBLE DE UNA CIUDAD (los valores aplican para el potencial social, económico, ambiental o general)"]
[null,null,null,null,"Valor de referencia","Cualitativo","Significado"]
[null,null,null,null,0,"Muy malo","Situación crítica. La ciudad no es potencialmente sostenible. No cuenta con ningún mecanismo integrado de gestión social, ambiental o económica que le permita ser sostenible en el tiempo. Se deben tomar acciones inmediatas para mejorar la gestión desde la administración y planeación de la entidad territorial."]
[null,null,null,null,"Entre 0,1% y 30%","Malo","Situación desfavorable. La ciudad no es potencialmente sostenible. Presenta mecanismos integrados deficientes de gestión social, ambiental o económica, que le permita ser sostenible en el tiempo. Se deben tomar acciones inmediatas para mejorar las condiciones en general del territorio, sus habitantes y sistemas de interacción de la entidad territorial."]
[null,null,null,null,"Entre 30,1% y 50%","Regular","Situación poco aceptable. La ciudad es pobremente potencial y cuenta con pocos mecanismos integrados de gestión social, ambiental y económica. Sin embargo, puede aunar esfuerzos que le permitan realizar acciones en cuanto a las situaciones críticas y aquellas que sea posible potenciar como fortaleza de la entidad territorial."]
[null,null,null,null,"Entre 50,1% y 80%","Bueno","Situación aceptable. La ciudad presenta un potencial sostenible medio y cuenta con mecanismos integrados importantes de gestión social, ambiental y económica. Sin embargo, se deben mejorar las condiciones biofísicas y socioeconómicas de la entidad territorial que tengan debilidades con el fin de mejorar el potencial de sostenibilidad. Debe concentrar esfuerzos que le permitan llegar a una situación ideal de potencial de sostenibilidad."]
[null,null,null,null,"Entre 80,1% y 100%","Muy bueno","Situación ideal. La ciudad presenta un potencial sostenible alto. Cuenta con los mecanismos integrados suficientes para la gestión social, ambiental y económica. Sin embargo, debe constantemente mantener medidas de control suficientes que le permitan una mejora continua y el desarrollo de estrategias que potencien la entidad territorial y generen beneficios competitivos que la posicionen a nivel nacional como territorio referente."]

{"sheet":"DESCRIPCION INDICADORES","index":11,"n_rows":968,"n_cols":5,"rows_kept":968,"cut":false,"hidden":false,"merged":[[11,2,11,4],[12,2,12,4],[13,2,13,4],[20,2,20,4],[32,2,32,4],[33,2,33,4],[34,2,34,4],[41,2,41,4],[53,2,53,4],[54,2,54,4],[55,2,55,4],[59,2,59,4],[71,2,71,4],[72,2,72,4],[73,2,73,4],[74,2,74,4],[81,2,81,4],[93,2,93,4],[126,1,132,1],[145,1,149,1],[151,1,157,1],[107,2,107,4],[117,2,117,4],[118,2,118,4],[119,2,119,4],[120,2,120,4],[121,2,121,4],[122,2,122,4],[123,2,123,4],[124,2,124,4],[125,2,125,4],[132,2,132,4],[144,2,144,4],[145,2,145,4],[146,2,146,4],[147,2,147,4],[241,2,241,4],[248,2,248,4],[259,2,259,4],[260,2,260,4],[261,2,261,4],[262,2,262,4],[263,2,263,4],[14,1,20,1],[35,1,41,1],[56,1,59,1],[73,1,74,1],[75,1,81,1],[94,1,98,1],[99,1,100,1],[97,2,97,4],[98,2,98,4],[99,2,99,4],[100,2,100,4],[94,2,94,4],[95,2,95,4],[96,2,96,4],[101,1,107,1],[118,1,123,1],[124,1,125,1],[284,2,284,4],[285,2,285,4],[242,1,248,1],[260,1,264,1],[265,1,266,1],[266,2,266,4],[267,1,273,1],[273,2,273,4],[285,1,286,1],[264,2,264,4],[265,2,265,4],[307,2,307,4],[308,2,308,4],[286,2,286,4],[287,2,287,4],[288,1,294,1],[294,2,294,4],[305,2,305,4],[306,2,306,4],[307,1,308,1],[329,2,329,4],[330,2,330,4],[309,1,315,1],[315,2,315,4],[325,2,325,4],[326,1,330,1],[326,2,326,4],[327,2,327,4],[328,2,328,4],[193,2,193,4],[200,2,200,4],[211,2,211,4],[212,2,212,4],[148,2,148,4],[149,2,149,4],[150,2,150,4],[157,2,157,4],[168,2,168,4],[169,2,169,4],[170,2,170,4],[171,2,171,4],[172,2,172,4],[238,2,238,4],[239,2,239,4],[240,2,240,4],[169,1,171,1],[173,1,179,1],[190,1,192,1],[194,1,200,1],[212,1,214,1],[216,1,222,1],[234,1,240,1],[213,2,213,4],[214,2,214,4],[215,2,215,4],[222,2,222,4],[233,2,233,4],[234,2,234,4],[235,2,235,4],[236,2,236,4],[237,2,237,4],[179,2,179,4],[189,2,189,4],[190,2,190,4],[191,2,191,4],[192,2,192,4],[634,2,634,4],[635,2,635,4],[636,2,636,4],[351,2,351,4],[352,2,352,4],[383,2,383,4],[384,2,384,4],[361,1,362,1],[361,2,361,4],[362,2,362,4],[363,1,369,1],[369,2,369,4],[380,2,380,4],[659,2,659,4],[660,2,660,4],[661,2,661,4],[385,2,385,4],[730,2,730,4],[731,2,731,4],[699,1,699,4],[710,2,710,4],[711,2,711,4],[712,2,712,4],[713,1,716,1],[716,2,716,4],[729,1,732,1],[591,2,591,4],[592,2,592,4],[599,2,599,4],[610,2,610,4],[611,1,612,1],[611,2,612,4],[613,1,614,1],[613,2,613,4],[614,2,614,4],[621,2,621,4],[633,2,633,4],[802,2,802,4],[803,2,803,4],[448,2,448,4],[449,2,449,4],[448,1,450,1],[452,1,458,1],[470,1,474,1],[475,1,476,1],[477,1,483,1],[501,1,507,1],[520,1,525,1],[526,1,529,1],[615,1,621,1],[634,1,638,1],[639,1,640,1],[641,1,647,1],[659,1,662,1],[664,1,695,1],[542,1,546,1],[662,2,662,4],[663,2,663,4],[664,2,664,4],[671,2,671,4],[672,2,672,4],[409,2,409,4],[416,2,416,4],[427,2,427,4],[428,2,428,4],[429,2,429,4],[436,2,436,4],[447,2,447,4],[381,1,385,1],[386,1,387,1],[388,1,394,1],[406,1,408,1],[410,1,416,1],[430,1,436,1],[547,1,548,1],[549,1,555,1],[570,1,576,1],[588,1,589,1],[590,1,591,1],[593,1,599,1],[353,2,353,4],[354,2,354,4],[355,2,355,4],[356,2,356,4],[357,2,357,4],[358,2,358,4],[359,2,359,4],[360,2,360,4],[386,2,386,4],[387,2,387,4],[394,2,394,4],[405,2,405,4],[406,2,408,4],[450,2,450,4],[451,2,451,4],[458,2,458,4],[469,2,469,4],[470,2,470,4],[331,1,333,1],[331,2,331,4],[332,2,332,4],[333,2,333,4],[334,1,340,1],[340,2,340,4],[352,1,360,1],[381,2,381,4],[382,2,382,4],[471,2,471,4],[472,2,472,4],[496,2,496,4],[497,2,497,4],[496,1,498,1],[499,1,500,1],[473,2,473,4],[474,2,474,4],[475,2,475,4],[476,2,476,4],[483,2,483,4],[495,2,495,4],[498,2,498,4],[499,2,499,4],[500,2,500,4],[507,2,507,4],[518,2,518,4],[519,2,519,4],[520,2,520,4],[521,2,521,4],[522,2,522,4],[523,2,523,4],[524,2,524,4],[525,2,525,4],[529,2,529,4],[541,2,541,4],[542,2,542,4],[543,2,543,4],[544,2,544,4],[545,2,545,4],[546,2,546,4],[547,2,547,4],[548,2,548,4],[555,2,555,4],[567,2,567,4],[568,2,568,4],[569,2,569,4],[576,2,576,4],[588,2,588,4],[589,2,589,4],[590,2,590,4],[754,2,754,4],[695,2,695,4],[696,1,696,4],[697,1,698,4],[728,2,728,4],[729,2,729,4],[679,2,679,4],[680,2,680,4],[687,2,687,4],[688,2,688,4],[637,2,637,4],[638,2,638,4],[639,2,639,4],[640,2,640,4],[647,2,647,4],[658,2,658,4],[755,2,755,4],[732,2,732,4],[733,2,733,4],[734,1,740,1],[740,2,740,4],[752,2,752,4],[753,1,756,1],[753,2,753,4],[778,2,778,4],[779,2,779,4],[756,2,756,4],[757,2,757,4],[758,1,764,1],[764,2,764,4],[776,2,776,4],[777,1,780,1],[777,2,777,4],[889,2,889,4],[804,2,804,4],[805,2,805,4],[780,2,780,4],[781,2,781,4],[782,1,788,1],[788,2,788,4],[800,2,800,4],[801,1,805,1],[801,2,801,4],[806,1,807,1],[806,2,806,4],[807,2,807,4],[814,2,814,4],[826,2,826,4],[827,2,827,4],[890,2,890,4],[891,2,891,4],[892,2,892,4],[893,2,893,4],[900,2,900,4],[912,2,912,4],[935,2,935,4],[936,2,936,4],[937,2,937,4],[938,2,938,4],[913,2,913,4],[914,2,914,4],[915,1,921,1],[921,2,921,4],[933,2,933,4],[934,1,938,1],[934,2,934,4],[960,2,960,4],[961,2,961,4],[962,1,963,1],[962,2,962,4],[963,2,963,4],[964,1,967,1],[967,2,967,4],[939,1,940,1],[939,2,939,4],[940,2,940,4],[941,1,947,1],[947,2,947,4],[959,1,960,1],[959,2,959,4],[866,2,866,4],[867,2,867,4],[868,2,868,4],[869,2,869,4],[870,2,870,4],[877,2,877,4],[892,1,893,1],[894,1,900,1],[808,1,814,1],[829,1,833,1],[848,1,851,1],[864,1,868,1],[869,1,870,1],[871,1,877,1],[890,1,891,1],[828,2,828,4],[833,2,833,4],[845,2,845,4],[846,2,846,4],[847,2,847,4],[851,2,851,4],[863,2,863,4],[864,2,864,4],[865,2,865,4]]}
[]
[]
[]
[]
[]
[]
[]
[null,null,"APLICATIVO PARA LA CALIFICACIÓN DEL POTENCIAL SOSTENIBLE DE UNA CIUDAD"]
[]
[null,null,"INDICADOR: Déficit cualitativo de vivienda"]
[]
[null,"Descripción","Hace referencia a las viviendas particulares que presentan deficiencias en la estructura del piso, espacio (hacinamiento mitigable y cocina), a la disponibilidad de servicios públicos domiciliarios y, por tanto, se requiere de dotación de servicios públicos, mejoramiento o ampliación de la unidad habitacional."]
[null,"Ecuación / Variable(s)","Estructura, hacinamiento, espacio (principalmente cocina) y el de servicios públicos"]
[null,"Fuente","https://www.dane.gov.co/files/investigaciones/fichas/Deficit_vivienda.pdf (DNP, 2009)"]
[null,"Metas y rangos de referencia","Valor de Referencia","Calificación","Cualitativo"]
[null,null,"Mayor o igual a 30%",0,"Muy malo"]
[null,null,"20% a 30%","0,3","Malo"]
[null,null,"10% a 20%","0,5","Regular"]
[null,null,"7% a 10%","0,8","Bueno"]
[null,null,"Menor a 7%",1,"Muy bueno"]
[null,null,"La meta nacional propuesta para 2030 es del 7% (DNP, DANE, et al., 2019)."]
[]
[]
[]
[]
[]
[]
[]
[]
[]
[null,null,"INDICADOR: Déficit cuantitativo de vivienda"]
[]
[null,"Descripción","El déficit cuantitativo de vivienda estima la cantidad de viviendas que la sociedad debe construir o adicionar para que exista una relación entre las viviendas adecuadas y los hogares que necesitan alojamiento, es decir, la comparación entre el número de hogares y el de viviendas apropiadas existentes. El monto en el cual los hogares superen las viviendas es lo que en la gran parte de la literatura se designa como déficit cuantitativo"]
[null,"Ecuación / Variable(s)","Estructura, cohabitación y hacinamiento no mitigable"]
[null,"Fuente","https://www.dane.gov.co/files/investigaciones/fichas/Deficit_vivienda.pdf (DNP, 2009)*"]
[null,"Metas y rangos de referencia","Valor de referencia","Cuantitativo","Cualitativo"]
[null,null,"Mayor o igual a 9.1%",0,"Muy malo"]
[null,null,"6,9% a 9,1%","0,3","Malo"]
[null,null,"4,8% a 6,9%","0,5","Regular"]
[null,null,"2,7% a 4,8%","0,8","Bueno"]
[null,null,"Menor o igual a 2,7%",1,"Muy bueno"]
[null,null,"La meta nacional propuesta para 2030 es del 2,7% (DNP, DANE, et al., 2019)."]
[]
[]
[]
[]
[]
[]
[]
[]
[]
[null,null,"INDICADOR: ¿El municipio cuenta con política y norma de construcción sostenible?"]
[]
[null,"Descripción","Las construcciones sostenibles hacen parte de las estrategias para la mitigación del cambio climático, que en Colombia se regulan a través del CONPES 3700 del 2011; la Política Nacional de Cambio Climático (PNCC), la Resolución 0549 de 2015 por la cual se adopta la Guía para el ahorro de agua y energía en edificaciones y los parámetros y lineamientos de construcción sostenible, el Plan de Acción Indicativo de Eficiencia Energética PROURE 2017-2022 (UPME) y la Política Nacional de Edificaciones Sostenibles, el CONPES 3919."]
[null,"Ecuación / Variable(s)","Información propia del municipio en cuanto al adelanto de este indicador"]
[null,"Fuente","Consulta a la normativa existente en el municipio"]
[null,"Metas y rangos de referencia","Valor de referencia","Cuantitativo","Cualitativo"]
[null,null,"No posee norma y política de construcción sostenible",0,"Muy malo"]
[null,null,"Si posee norma y política de construcción sostenible",1,"Muy bueno"]
[null,null,"En base a los alcances nacionales que buscan lograrse en el CONPES 3919"]
[]
[]
[]
[]
[]
[]
[]
[]
[]
[null,null,"INDICADOR: Proporción de edificaciones que se han construido desde 2017 implementando los parametros y lineamientos de construccion sostenible que establece la \"Guía para el ahorro de agua y energía en edificaciones\" según la Resolución 0549 de 2015"]
[]
[null,"Descripción","El indicador busca medir la implementación y cumplimiento de la Resolución 0549 de 2015 del MinVivienda a nivel de las entidades territoriales, en cuanto a las medidas de carácter activo y pasivo para llegar a los ahorros establecidos de agua y energía teniendo en cuenta el análisis de costo-beneficio en la construcción."]
[null,"Ecuación / Variable(s)","Cumplimiento de los ahorros de agua y energía expuestos en el artículo 5 de la Resolución 0549 de 2015, según los tipos de edificaciones (construcciones públicas y privadas a la escala establecida por el artículo 2 de la mencionada resolución) y zonificación climática Según la resolución, estos porcentajes de ahorro serán objeto de revisión cada 2 años y pueden variar los porcentajes objetivo por el MinVivienda según amerite."]
[null,"Fuente","Resolución 0549 de 2015 http://www.minvivienda.gov.co/ResolucionesVivienda/0549%20-%202015.pdf"]
[null,null,"Guía de construcción sostenible para el ahorro de agua y energía en edificaciones: http://www.minvivienda.gov.co/Documents/ViceministerioVivienda/ANEXO%201%200549%20-%202015.pdf"]
[null,"Metas y rangos de referencia","Valor de referencia","Cuantitativo","Cualitativo"]
[null,null,"Menor al 60%",0,"Muy malo"]
[null,null,"Entre 60% y 70%","0,3","Malo"]
[null,null,"Entre 70% y 80%","0,5","Regular"]
[null,null,"Entre 80% y 90%","0,8","Bueno"]
[null,null,"Mayor al 90%",1,"Muy bueno"]
[null,null,"Para el año 2030 se busca un cumplimiento de 100% en las edificaciones con la implementación de medidas activas y pasivas de ahorro de agua y energía."]
[]
[]
[]
[]
[]
[]
[]
[]
[]
[null,null,"INDICADOR: ¿La participación comunitaria expresada en propuestas viables es tenida en cuenta en la formulación de proyectos que mejoren el acceso a vivienda y servicios básicos adecuados?"]
[]
[null,"Descripción","Corresponde a la relación entre las personas que participan activamente en asociaciones comunitarias que trabajan para el apoyo de vínculos para desarrollo nacional y regional"]
[null,"Ecuación / Variable(s)"]
[]
[null,null,"Información propia del municipio en cuanto al adelanto de este indicador"]
[]
[]
[null,"Fuente","En relación a los insumos de referencia, estos pudieron obtenerse a través de un ejercicio a nivel nacional de calidad urbana, para lo cual, se establecieron rangos del cálculo de la proporción de habitantes que tiene una participación activa (MinAmbiente & ASOCARS, 2016)."]
[null,null,"La consulta se realiza a través de la revisión de los mecanismos e instancias de participación institucionalizada relacionados con el logro acceso a vivienda y servicios adecuados en los listados de las asociaciones, propuestas, fichas EBI y registros internos de las asociaciones."]
[null,"Metas y rangos de referencia","Valor de referencia","Cuantitativo","Cualitativo"]
[]
[null,null,"No existen propuestas de la comunidad tenidas en cuenta en la formulación de proyectos",0,"Muy malo"]
[]
[null,null,"Si existen propuestas de la comunidad tenidas en cuenta en la formulación de proyectos",1,"Muy bueno"]
[]
[null,null,"Se toma como referencia las proporciones de participación de población activa del Informe de Calidad Ambiental (MinAmbiente & ASOCARS, 2016). "]
[]
[]
[]
[]
[]
[]
[]
[null,null,"INDICADOR: Indice de asequibilidad"]
[]
[null,"Descripción","La medida tradicional de asequibilidad recomienda que los costos de vivienda y transporte no cuesten más del 30% del ingreso en los hogares, por lo cual, para el transporte se asigna en promedio que más del 10% del ingreso no sea utilizado para suplirlo."]
[null,"Ecuación / Variable(s)"]
[null,null,"                              Porcentaje de ingreso destinado para transporte"]
[null,null,"                              Gasto en transporte, en COP"]
[null,null,"                              Ingreso Total, en COP"]
[null,null,"Encuesta nacional de presupuestos de los hogares (ENPH)."]
[null,null,"Costo del transporte público en la ciudad."]
[null,"Fuente","Para consulta de la base del indicador (CNT, 2018)."]
[null,null,"Para la ENPH https://www.dane.gov.co/index.php/estadisticas-por-tema/pobreza-y-condiciones-de-vida/encuesta-nacional-de-presupuestos-de-los-hogares-enph (DANE, 2017)."]
[null,"Metas y rangos de referencia","Valor de referencia","Cuantitativo","Cualitativo"]
[null,null,"Mayor a 30%",0,"Muy malo"]
[null,null,"24% a 30%","0,3","Malo"]
[null,null,"17% a 24%","0,5","Regular"]
[null,null,"10% a 17%","0,8","Bueno"]
[null,null,"Menor o igual a 10%",1,"Muy bueno"]
[null,null,"La meta corresponde a un ajuste de la propuesta por el (CNT, 2018) del 10%"]
[]
[]
[]
[]
[]
[]
[]
[]
[]
[null,null,"INDICADOR: Tasa General de Mortalidad por Accidentes de Tránsito terrestre (TGMA)"]
[]
[null,"Descripción","Mide el número de defunciones por accidentes de transporte terrestre durante un año, respecto a la población total. Lo anterior, permite comparaciones año tras año, con el fin de disminuir la accidentalidad o siniestros automovilísticos que impliquen mortalidad. "]
[null,"Ecuación / Variable(s)"]
[null,null,"              Tasa General de Mortalidad por Accidentes de Tránsito terrestre"]
[null,null,"                Defunciones por Accidentes de transporte terrestre"]
[null,null,"                Población Total"]
[null,null,"Reporte de muertes por accidentes de tránsito, población total del municipio"]
[null,"Fuente","Para el reporte de defunciones por accidentes de tránsito: https://www.medicinalegal.gov.co/cifras-estadisticas/boletines-estadisticos-mensuales del Instituto Nacional de Medicina Legal y Ciencias Forenses (Medicina Legal, 2019)"]
[null,"Metas y rangos de referencia","Valor de referencia","Cuantitativo","Cualitativo"]
[null,null,"Mayor a 30 personas por cada 1000 habitantes",0,"Muy malo"]
[null,null,"Entre 22.7 y 30 personas por cada 1000 habitantes","0,3","Malo"]
[null,null,"Entre 15.5 y 22.7 personas por cada 1000 habitantes","0,5","Regular"]
[null,null,"Entre 8.3 y 15.5 personas por cada 1000 habitantes","0,8","Bueno"]
[null,null,"Menor a 8.3 personas por cada 1000 habitantes",1,"Muy bueno"]
[null,null,"La meta nacional corresponde a 8.3 personas por cada 1000 habitantes (DNP, DANE, et al., 2019)"]
[]
[]
[]
[]
[]
[]
[]
[]
[null,null,"INDICADOR: Porcentaje de vehículos de transporte público con equipo de transporte accesible"]
[]
[null,"Descripción","La Ley estatutaria 1618 de 2013 del Congreso de la República establece que aquellos vehículos que funcionan actualmente deberán adoptar planes integrales de accesibilidad con un avance progresivo para que en 2023 se garantice un 80% de la accesibilidad total al transporte de la población con movilidad reducida."]
[null,"Ecuación / Variable(s)","                        Porcentaje de vehículos de transporte público con equipo de transporte accesible."]
[null,null,"                       Cantidad de transporte público con equipo de accesibilidad."]
[null,null,"                       Flota de transporte público total."]
[null,"Fuente","Planes de desarrollo municipal, consulta a informes de gestión del gremio de transporte."]
[null,"Metas y rangos de referencia","Valor de referencia","Cuantitativo","Cualitativo"]
[null,null,"Menor a 60%",0,"Muy malo"]
[null,null,"60% a 70%","0,3","Malo"]
[null,null,"70% a 80%","0,5","Regular"]
[null,null,"80% a 90%","0,8","Bueno"]
[null,null,"Mayor al 95%",1,"Muy bueno"]
[null,null,"La meta nacional para el 2023 corresponde al 80%, para el 2030 que sea mayor al 95%, con base a la Ley estatutaria 1618 de 2013"]
[]
[]
[]
[]
[]
[]
[]
[null,null,"INDICADOR: Porcentaje de longitud de infraestructura vial para sistemas masivos de transporte"]
[]
[null,"Descripción","Consiste en el logro de una infraestructura vial que genera espacios exclusivos para el transporte masivo e igualmente para el alternativo, como bicicletas."]
[null,"Ecuación / Variable(s)","                                Porcentaje de longitud de infraestructura vial para sistemas masivos de transporte."]
[null,null,"                                Longitud de la infraestructura vial dedicada para el transporte masivo (carril exclusivo), expresada en km."]
[null,null,"                                Longitud Total de la malla vial de la ciudad, en km."]
[null,"Fuente","Consulta a informes de gestión del gremio de transporte, planes de desarrollo municipal."]
[null,"Metas y rangos de referencia","Valor de referencia","Cuantitativo","Cualitativo"]
[null,null,"Menor a 5%",0,"Muy malo"]
[null,null,"5% a 9%","0,3","Malo"]
[null,null,"9% a 13%","0,5","Regular"]
[null,null,"13 a 17%","0,8","Bueno"]
[null,null,"Mayor a 17%",1,"Muy bueno"]
[null,null,"La meta establecida por el (DNP, 2019c) corresponde a 17%."]
[]
[]
[]
[]
[]
[]
[]
[]
[null,null,"INDICADOR: Porcentaje de vehículos de transporte masivo con equipo de transporte accesible"]
[]
[null,"Descripción","La Ley estatutaria 1618 de 2013 del Congreso de la República establece que aquellos vehículos que funcionan actualmente deberán adoptar planes integrales de accesibilidad con un avance progresivo para que en 2023 se garantice un 80% de la accesibilidad total al transporte de la población con movilidad reducida."]
[null,"Ecuación / Variable(s)","                        Porcentaje de vehículos de transporte masivo con equipo de transporte accesible."]
[null,null,"                       Cantidad de transporte masivo con equipo de accesibilidad."]
[null,null,"                       Flota de transporte público total."]
[null,"Fuente","Planes de desarrollo municipal, consulta a informes de gestión del gremio de transporte."]
[null,"Metas y rangos de referencia","Valor de referencia","Cuantitativo","Cualitativo"]
[null,null,"Menor a 60%",0,"Muy malo"]
[null,null,"60% a 70%","0,3","Malo"]
[null,null,"70% a 80%","0,5","Regular"]
[null,null,"80% a 90%","0,8","Bueno"]
[null,null,"Mayor al 95%",1,"Muy bueno"]
[null,null,"La meta nacional para el 2023 corresponde al 80%, para el 2030 que sea mayor al 95%, con base a la Ley estatutaria 1618 de 2013"]
[]
[]
[]
[]
[]
[]
[]
[]
[null,null,"INDICADOR: Aumento de la longitud de infraestructura vial para sistemas alternativos de transporte"]
[]
[null,"Descripción","Este indicador busca medir el aumento de infraestructura vial destinada a los sistemas alternativos de transporte como la bicicleta, que son de utilidad para una movilidad más sostenible e inclusiva."]
[null,"Ecuación / Variable(s)","                                      Porcentaje de longitud de infraestructura vial para sistemas alternativos de transporte."]
[null,null,"                                      Longitud de la infraestructura vial dedicada para el transporte alternativo de transporte (carril exclusivo), expresada en km."]
[null,null,"                                      Longitud Total de la malla vial de la ciudad, en km."]
[]
[null,null,"                                      Porcentaje de aumento de la longitud de infraestructura vial para sistemas alternativos de transporte."]
[null,null,"                                      Longitud de la infraestructura vial dedicada para el transporte alternativo (carril exclusivo), en el año inicial de medición establecido como 2018, expresado en km."]
[null,null,"                                      Longitud de la infraestructura vial dedicada para el transporte alternativo (carril exclusivo), para el año de referencia, expresado en km."]
[null,"Fuente","Consulta a informes de gestión del gremio de transporte, planes de desarrollo municipal."]
[null,"Metas y rangos de referencia","Valor de referencia","Cuantitativo","Cualitativo"]
[null,null,"Menor a 10%",0,"Muy malo"]
[null,null,"10% a 25%","0,3","Malo"]
[null,null,"25% a 40%","0,5","Regular"]
[null,null,"40% a 60%","0,8","Bueno"]
[null,null,"Mayor al 60%",1,"Muy bueno"]
[null,null,"La meta establecida por el (DNP, 2019c) corresponde a 60%."]
[]
[]
[]
[]
[]
[]
[]
[]
[null,null,"INDICADOR: Proporción de vehículos adquiridos para el Sistema de Transporte Masivo que sean eléctricos o de cero emisiones contaminantes"]
[]
[null,"Descripción","Este indicador evalúa la renovación de la flota de vehículos del Sistema de Transporte Masivo con el uso de vehículos eléctricos  y de cero emisiones cuando se aumente la capacidad transportadora de los sistemas, sea cual sea su justificación, de acuerdo con la Ley 1964 de 2019."]
[null,"Ecuación / Variable(s)","Porcentaje de vehículos adquiridos que sean eléctricos o de cero emisiones:"]
[]
[null,null,"                          Porcentaje de vehículos eléctricos o de cero emisiones adquiridos en el Sistema de transporte Masivo."]
[null,null,"                          Vehículos eléctricos o de cero emisiones adquiridos para el Sistema de transporte Masivo."]
[null,null,"                          Vehículos adquiridos para el Sistema de transporte Masivo."]
[null,"Fuente","Los puntos de referencia se establecieron por la Ley 1964 de 2019: https://dapre.presidencia.gov.co/normativa/normativa/LEY%201964%20DEL%2011%20DE%20JULIO%20DE%202019.pdf "]
[null,null,"Para consultar la cifra de vehículos eléctricos o de cero emisiones adquiridos en el país sesgados por marcas, se encuentra: https://www.andemos.org/index.php/cifras-y-estadisticas-version-2/ y a niveles municipales o de las principales ciudades del país, como indica el indicador: http://www.andi.com.co/Uploads/9.%20INFORME%20DE%20EL%C3%89CTRICOS-H%C3%8DBRIDOS%20A%20SEPTIEMBRE%202017.pdf."]
[null,"Metas y rangos de referencia","Valor de referencia","Cuantitativo","Cualitativo"]
[null,null,"<10% del parque automotor",0,"Muy malo"]
[null,null,"10-20% del parque automotor","0,3","Malo"]
[null,null,"20-40% del parque automotor","0,5","Regular"]
[null,null,"40-60% del parque automotor","0,8","Bueno"]
[null,null,">60% del parque automotor",1,"Muy bueno"]
[null,null,"De acuerdo a la meta del 2031 que establece la Ley 1964 de 2019."]
[]
[]
[]
[]
[]
[]
[]
[]
[null,null,"INDICADOR: Estado de la red vial (teniendo en cuenta lineamientos de MinTransporte e Invías)"]
[]
[null,"Descripción","El estado de la Red Vial que entrega el MinTransporte, a través de Invías, clasifica las vías en pavimentadas y no pavimentadas, permitiendo el control y seguimiento para adoptar las medidas preventivas. El reporte de Invías corresponde a aquellas de la Red Vial Nacional."]
[null,"Ecuación / Variable(s)","Levantamiento de información a nivel municipal sobre el estado de la malla vial que no corresponde al Sistema Integral Nacional de Información de Carreteras (SINC) de las vías de la Red Vial Nacional, teniendo en cuenta criterios de Invías."]
[null,null,"Consulta a Invías de las vías de la Red Nacional de Carreteras"]
[null,"Fuente","El reporte de las vías de propiedad de la entidad municipal, debe generarse con estos mismos criterios de la Red Nacional de Carreteras, que puede consultarse en: https://www.invias.gov.co/index.php/informacion-institucional/2-principal/57-estado-de-la-red-vial."]
[null,"Metas y rangos de referencia","Valor de referencia","Cuantitativo","Cualitativo"]
[null,null,"Más del 50% de la malla vial en categoría Mala y Muy mala",0,"Muy malo"]
[null,null,"Más del 50% de la malla vial en categoría mala y regular","0,3","Malo"]
[null,null,"Más del 50% de la malla vial en categoría Regular","0,5","Regular"]
[null,null,"Más del 50% de la malla vial en categoría regular y buena","0,8","Bueno"]
[null,null,"Más del 50% de la malla vial en categoría Buena y Muy buena",1,"Muy bueno"]
[null,null,"El objetivo apunta a que la red vial se encuentre en estado ‘Muy bueno’."]
[]
[]
[]
[]
[]
[]
[]
[]
[null,null,"INDICADOR: ¿La participación comunitaria expresada en propuestas viables es tenida en cuenta en la formulación de proyectos que mejoren la gestión del transporte público sostenible?"]
[]
[null,"Descripción","Corresponde a la relación entre las personas que participan activamente en asociaciones comunitarias que trabajan para el apoyo de vínculos para desarrollo nacional y regional"]
[null,"Ecuación / Variable(s)","La información propia del municipio en cuanto al adelanto de este indicador"]
[null,"Fuente","En relación a los insumos de referencia, estos pudieron obtenerse a través de un ejercicio a nivel nacional de calidad urbana, para lo cual, se establecieron rangos del cálculo de la proporción de habitantes que tiene una participación activa (MinAmbiente & ASOCARS, 2016)."]
[null,null,"La consulta se realiza a través de la revisión de los mecanismos e instancias de participación institucionalizada relacionados con el logro acceso a vivienda y servicios adecuados en los listados de las asociaciones, propuestas, fichas EBI y registros internos de las asociaciones."]
[null,"Metas y rangos de referencia","Valor de referencia","Cuantitativo","Cualitativo"]
[]
[null,null,"No existen propuestas de la comunidad tenidas en cuenta en la formulación de proyectos",0,"Muy malo"]
[]
[null,null,"Si existen propuestas de la comunidad tenidas en cuenta en la formulación de proyectos",1,"Muy bueno"]
[]
[null,null,"Se toma como referencia las proporciones de participación de población activa del Informe de Calidad Ambiental (MinAmbiente & ASOCARS, 2016). "]
[]
[]
[]
[]
[]
[]
[]
[null,null,"INDICADOR: Proporción de personas que participan activamente en asociaciones comunitarias para la planificación y gestión del territorio (JAC , junta de acueducto, cabildos indígenas, minorías étnicas, consejos regionales, consejo de planeación, agremiaciones, sindicatos, etc.)"]
[]
[null,"Descripción","Corresponde a la relación entre las personas que participan activamente en procesos de planificación y gestión del territorio en las áreas urbanas, rurales y en conjunto, como en la ejecución, evaluación y seguimiento, con referencia al total de población."]
[null,"Ecuación / Variable(s)"," "]
[null,null,"                     Proporción de la población que participa activamente en la planificación y gestión del territorio, donde ‘x’ corresponde al tipo de población: urbana, rural o total."]
[null,null,"                     Cantidad de Personas que participan activamente en la planificación y gestión del territorio, donde ‘x’ corresponde al tipo de población: urbana, rural o total."]
[null,null,"                     Total de la población del municipio, donde x’ corresponde al tipo de población: urbana, rural o total."]
[null,null,"Este diagnóstico debe realizarse de parte de la administración del municipio, de manera que se reconozcan los tipos de asociaciones u organizaciones comunitarias, gremios, entre otros, para identificar la representatividad de esta proporción obtenida."]
[null,"Fuente","En relación a los insumos de referencia, estos pudieron obtenerse a través de un ejercicio a nivel nacional de calidad urbana (MinAmbiente & ASOCARS, 2016). Este, se puede encontrar en:"]
[null,null,"http://www.minambiente.gov.co/images/AsuntosambientalesySectorialyUrbana/"]
[null,null,"pdf/Gestion_urbana/ICAU/INFORME_NACIONAL_DE_CALIDAD_AMBIENTAL_URBANA_100mil-500mil.pdf"]
[null,"Metas y rangos de referencia","Valor de referencia","Cuantitativo","Cualitativo"]
[null,null,"Menor a 20 personas por cada 1000 habitantes",0,"Muy malo"]
[null,null,"Entre 21 y 29 personas por cada 1000 habitantes","0,3","Malo"]
[null,null,"Entre 30 y 50 personas por cada 1000 habitantes","0,5","Regular"]
[null,null,"Entre 51 y 70 personas por cada 1000 habitantes","0,8","Bueno"]
[null,null,"Mayor a 70 personas por cada 1000 habitantes",1,"Muy bueno"]
[null,null,"Se toma como referencia las proporciones de participación de población activa del Informe de Calidad Ambiental (MinAmbiente & ASOCARS, 2016).  "]
[]
[]
[]
[]
[]
[]
[]
[]
[null,null,"INDICADOR: Proporción de la población con acceso a equipamientos básicos o colectivos (educación, salud, cultura y deportes)"]
[]
[null,"Descripción","Mediante este indicador se mide la ubicación y diseño adecuados de los equipamientos básicos o colectivos (educación, salud, cultura, deportes) en relación al acceso inclusivo, teniendo en cuenta tiempos de desplazamiento y concentración de equipamientos en lugares estratégicos al medir el porcentaje de población que accede a uno o más de estos."]
[null,"Ecuación / Variable(s)"]
[null,null,"                    Proporción de la población con acceso a los equipamientos básicos, donde ‘x’ corresponde a la cantidad de personas que tienen acceso a uno, dos, tres o cuatro de los tipos de equipamientos colectivos (educación, salud, cultura, deportes)."]
[null,null,"                    Población con acceso a los equipamientos básicos, sesgado por ‘x’, que corresponde a la cantidad de personas que tienen acceso a uno, dos, tres o cuatro de los tipos de equipamientos colectivos (educación, salud, cultura, deportes). "]
[null,null,"                    Total de la población del municipio."]
[null,null,"Es decir:"]
[]
[]
[]
[]
[null,"Fuente","A la administración municipal le corresponde realizar el levantamiento de la información previamente descrita."]
[null,null,"Se tiene en cuenta igualmente la meta de cobertura nacional de educación correspondiente a: https://www.mineducacion.gov.co/1759/articles-362792_galeria_00.pdf"]
[null,"Metas y rangos de referencia","Valor de referencia","Cuantitativo","Cualitativo"]
[null,null,"Menos del 80% de la población con acceso a al menos 1 equipamiento básico",0,"Muy malo"]
[null,null,"Mas del 80% de la población con acceso a al menos 1 equipamiento básico","0,3","Malo"]
[null,null,"Mas del 80% de la población con acceso a 2 equipamientos básicos","0,5","Regular"]
[null,null,"Mas del 80% de la población con acceso a 3 equipamientos básicos","0,8","Bueno"]
[null,null,"Mas del 80% de la población con acceso a 4 o más equipamientos básicos",1,"Muy bueno"]
[null,null,"Se tiene en cuenta el acceso al 80% de la población a equipamientos al tener como meta en varios Planes Nacionales Estratégicos como el de educación (MinEducación, 2019)"]
[]
[]
[]
[]
[]
[]
[]
[]
[null,null,"INDICADOR: ¿La participación comunitaria expresada en propuestas viables es tenida en cuenta en la formulación de proyectos para lograr urbanización inclusiva y mayor seguridad?"]
[]
[null,"Descripción","Corresponde a la relación entre las personas que participan activamente en asociaciones comunitarias que trabajan para el apoyo de vínculos para desarrollo nacional y regional"]
[null,"Ecuación / Variable(s)"]
[]
[null,null,"La información propia del municipio en cuanto al adelanto de este indicador"]
[]
[]
[null,"Fuente","En relación a los insumos de referencia, estos pudieron obtenerse a través de un ejercicio a nivel nacional de calidad urbana, para lo cual, se establecieron rangos del cálculo de la proporción de habitantes que tiene una participación activa (MinAmbiente & ASOCARS, 2016)."]
[null,null,"La consulta se realiza a través de la revisión de los mecanismos e instancias de participación institucionalizada relacionados con el logro acceso a vivienda y servicios adecuados en los listados de las asociaciones, propuestas, fichas EBI y registros internos de las asociaciones."]
[null,"Metas y rangos de referencia","Valor de referencia","Cuantitativo","Cualitativo"]
[]
[null,null,"No existen propuestas de la comunidad tenidas en cuenta en la formulación de proyectos",0,"Muy malo"]
[]
[null,null,"Si existen propuestas de la comunidad tenidas en cuenta en la formulación de proyectos",1,"Muy bueno"]
[]
[null,null,"Se toma como referencia las proporciones de participación de población activa del Informe de Calidad Ambiental (MinAmbiente & ASOCARS, 2016). "]
[]
[]
[]
[]
[]
[]
[]
[]
[null,null,"INDICADOR: Espacio público efectivo (DADEP)"]
[]
[null,"Descripción","Se tiene en cuenta lo establecido como espacio público de carácter permanente, conformado por zonas verdes, parques, plazas y plazoletas, relacionado a si es suficiente o insuficiente, según el Artículo 12 Decreto 1504 de 1998; que en su artículo 14 considera como índice mínimo de Espacio Público Efectivo 15m2 por habitante."]
[null,"Ecuación / Variable(s)","El Espacio Público Efectivo se calcula como:"]
[]
[]
[null,"Fuente","Para el cálculo del Espacio Público Efectivo, se puede tomar como referencia la Política Nacional de Espacio Público, Conpes 3718 (DADEP, 2019)., https://www.dadep.gov.co/sites/default/files/marco-legal/1_politica_nacional_ep_1.pdf "]
[null,"Metas y rangos de referencia","Valor de referencia","Cuantitativo","Cualitativo"]
[null,null,"Menor a 3 m2/hab",0,"Muy malo"]
[null,null,"Entre 3 y 5 m2/hab","0,3","Malo"]
[null,null,"Entre 3 y 10 m2/hab","0,5","Regular"]
[null,null,"Entre 10 y 15 m2/hab","0,8","Bueno"]
[null,null,"Mayor a 15 m2/hab",1,"Muy bueno"]
[null,null,"El valor de referencia de 15m2/hab se encuentra establecido para Colombia según el Conpes 3718,"]
[]
[]
[]
[]
[]
[]
[]
[]
[null,null,"INDICADOR: Cantidad de personas víctimas de secuestro, minas antipersona, desplazamiento forzado y otras producto del conflicto armado"]
[]
[null,"Descripción","Considerando la historia del conflicto armado en el país, los casos de víctimas de secuestro, minas antipersona y desplazamiento forzado, este tipo de delitos pueden significar inconvenientes a la hora de incorporar medidas que le apunten a la sostenibilidad."]
[null,"Ecuación / Variable(s)","Como referente, se encuentra el Artículo 12 de la Constitución Política de Colombia (CPC), que describe “Nadie será sometido a desaparición forzada, a torturas ni a tratos o penas crueles, inhumanos o degradantes” e igualmente con base en la Declaración Universal de los Derechos Humanos, (Art. 3) “todos tienen derecho a la vida, libertad y seguridad”."]
[null,"Fuente","La Declaración Universal de los Derechos Humanos como referente puede encontrarse en y el artículo 12 de la CPC. Para encontrar los casos de este indicador, se encuentra la herramienta TerriData (DNP, USAID, Gobierno de Suecia, & PNUD, 2019): https://terridata.dnp.gov.co/index-app.html#/perfiles/05190. Si se busca el indicador, a través de TerriData: https://terridata.dnp.gov.co/index-app.html#/descargas."]
[null,"Metas y rangos de referencia","Valor de referencia","Cuantitativo","Cualitativo"]
[null,null,"Mayor a 20 personas",0,"Crítico"]
[null,null,"11 a 19 personas",0.3,"Muy malo"]
[null,null,"6 a 10 personas",0.5,"Malo"]
[null,null,"1 a 5 personas",0.8,"Regular"]
[null,null,"0 personas",1,"Muy bueno"]
[null,null,"De acuerdo a la CPC, nadie debe ser víctimas de secuestro, minas antipersona y desplazamiento forzado al año"]
[]
[]
[]
[]
[]
[]
[]
[]
[null,null,"INDICADOR: Proporción de personas víctimas de violencia física o acoso sexual "]
[]
[null,"Descripción","Este indicador se tiene en cuenta para reconocer la seguridad de la población en espacios públicos principalmente en relación a la meta 7 del ODS 11. "]
[null,"Ecuación / Variable(s)","                    Porcentaje de Personas que víctimas de ‘as’, acoso sexual o ‘vf’, violencia física."]
[null,null,"                    Cantidad de Personas que víctimas de ‘as’, acoso sexual o ‘vf’, violencia física."]
[null,null,"                    Total de la población."]
[null,"Fuente","Para la obtención de este indicador, a nivel general se tiene en cuenta lo establecido por el Fondo para los Objetivos de Desarrollo Sostenible: https://sdg.humanrights.dk/es/goals-and-targets?page=2 (ONU, 2019)"]
[null,"Metas y rangos de referencia","Valor de referencia","Cuantitativo","Cualitativo"]
[null,null,"Mayor a 35%",0,"Muy malo"]
[null,null,"Entre 27% y 35%","0,3","Malo"]
[null,null,"Entre 20% y 27%","0,5","Regular"]
[null,null,"Entre 10% y 20%","0,8","Bueno"]
[null,null,"Menor a 10%",1,"Muy bueno"]
[null,null,"Se tiene en cuenta la información promedio nacional actual de 30% de casos de acoso sexual y violencia física (MinSalud, 2016)."]
[]
[]
[]
[]
[]
[]
[]
[]
[null,null,"INDICADOR: ¿La participación comunitaria expresada en propuestas viables es tenida en cuenta en la formulación de proyectos que mejoren el acceso a zonas verdes y espacios públicos seguros, inclusivos y accesibles?"]
[]
[null,"Descripción","Corresponde a la relación entre las personas que participan activamente en asociaciones comunitarias que trabajan para el apoyo de vínculos para desarrollo nacional y regional"]
[null,"Ecuación / Variable(s)"]
[]
[null,null,"La información propia del municipio en cuanto al adelanto de este indicador"]
[]
[]
[null,"Fuente","En relación a los insumos de referencia, estos pudieron obtenerse a través de un ejercicio a nivel nacional de calidad urbana, para lo cual, se establecieron rangos del cálculo de la proporción de habitantes que tiene una participación activa (MinAmbiente & ASOCARS, 2016)."]
[null,null,"La consulta se realiza a través de la revisión de los mecanismos e instancias de participación institucionalizada relacionados con el logro acceso a vivienda y servicios adecuados en los listados de las asociaciones, propuestas, fichas EBI y registros internos de las asociaciones."]
[null,"Metas y rangos de referencia","Valor de referencia","Cuantitativo","Cualitativo"]
[]
[null,null,"No existen propuestas de la comunidad tenidas en cuenta en la formulación de proyectos",0,"Muy malo"]
[]
[null,null,"Si existen propuestas de la comunidad tenidas en cuenta en la formulación de proyectos",1,"Muy bueno"]
[]
[null,null,"Se toma como referencia las proporciones de participación de población activa del Informe de Calidad Ambiental (MinAmbiente & ASOCARS, 2016). "]
[]
[]
[]
[]
[]
[]
[]
[]
[]
[null,null,"INDICADOR: Proporción de elementos del patrimonio cultural que se encuentre en óptimas condiciones"]
[]
[null,"Descripción","La defensa y conservación del patrimonio cultural en Colombia se ha dado desde 1959 con la ley 163, con los Decretos 763 de 2009 y 2941 de 2009, además de un manejo de concepto en la Ley 1185 de 2008: el patrimonio cultural de la nación está constituido por todos los bienes materiales, manifestaciones inmateriales, productos y representaciones de la cultura que son expresión de la nacionalidad colombiana (Mejía, s. f.)."]
[null,"Ecuación / Variable(s)","                         Proporción de elementos del patrimonio cultural que se encuentre en óptimas condiciones."]
[null,null,"                            Cantidad del patrimonio cultural del municipio que se encuentra en óptimas condiciones."]
[null,null,"                             Total del patrimonio cultural del municipio"]
[null,"Fuente","La búsqueda de existencia y registro de patrimonio cultural del municipio puede hacerse a través de https://www.mincultura.gov.co/areas/patrimonio/Paginas/default.aspx >> Trámites y Servicios >> Servicios – Cartografía cultural. Esta herramienta permite la consulta de capas de los Bienes de Interés Cultural (BIC) de la nación. Por otra parte, existe el Sistema de Información de Patrimonio (SIPA), la Lista Representativa de Patrimonio Cultural Inmaterial del Ámbito Nacional (versión más reciente en 2018) es entregada por el Grupo de Patrimonio Inmaterial – Dirección de Patrimonio del MinCultura."]
[null,null,"Por otro lado, la valoración del estado de conservación del patrimonio cultural del municipio debe realizarse propiamente por la entidad territorial, se hace necesario el levantamiento de esta información "]
[null,"Metas y rangos de referencia","Valor de referencia","Cuantitativo","Cualitativo"]
[null,null,"Menor al 60%",0,"Muy malo"]
[null,null,"Entre 60% y 70%","0,3","Malo"]
[null,null,"Entre 70% y 80%","0,5","Regular"]
[null,null,"Entre 80% y 90%","0,8","Bueno"]
[null,null,"Mayor al 90%",1,"Muy bueno"]
[null,null,"La meta corresponde al escenario deseable de conservación del patrimonio cultural."]
[]
[]
[]
[]
[]
[]
[]
[]
[null,null,"INDICADOR: ¿Reconoce la estructura ecológica principal (EEP) y esta se encuentra bajo una figura de protección o aprovechamiento racional?"]
[]
[null,"Descripción","Según el Art. 35 de la Ley 388 (Congreso de la República, 1997), la estructura ecológica principal (EEP) es un eje estructural de ordenamiento ambiental, en tanto contiene un sistema espacial, estructural y funcionalmente interrelacionado, que define un corredor ambiental de vital importancia para el mantenimiento del equilibrio ecosistémico, delimitado para su protección y apropiación sostenible, dado que contiene los principales elementos naturales y construidos que determinan la oferta ambiental del territorio, conformando un elemento estructurante a partir de cual se organizan los sistemas urbanos y rural. Por estas razones, resulta fundamental reconocer la EEP de la ciudad."]
[null,"Ecuación / Variable(s)","Se hace necesario consultar las áreas que figuran como protegidas o bien las de especial importancia ecosistémica que puedan anexarse a la EEP del municipio y responder: si existe o no existe "]
[null,"Fuente","La información relacionada a las áreas protegidas presentes en el SINAP, o en la Unión Internacional para la Conservación de la Naturaleza (UICN) puede consultarse (si se conoce el nombre del Área Protegida -AP-) a través de categorías en el portal web del Registro Único Nacional de Áreas Protegidas (RUNAP), en el siguiente enlace: "]
[null,null,"http://runap.parquesnacionales.gov.co/ >> Categorías >> escoger dentro de las 15 categorías del SINAP o las 6 de la UICN."]
[null,null,"Otro medio de consulta para áreas protegidas consiste en la herramienta Tremarctos©, Sistema de Información de Alertas Tempranas, el cual es un sistema gratuito que evalúa la vulnerabilidad del territorio frente al cambio climático, las alertas tempranas de biodiversidad, la plataforma marina, análisis minero y socioeconómico. En el siguiente enlace, es posible ingresar:"]
[null,null,"http://200.32.81.75/repo-tremarctos-integrado/ >> Nivel de detalle >> Tipo de reporte a generar >> Variable de análisis >> configuración de geometría de análisis >> generación de análisis."]
[null,null,"También existe la herramienta del Sistema de Información Ambiental de Colombia (SIAC), en cuyo visor geográfico existe la capa de biodiversidad y la capa Registro Único de Ecosistemas y Áreas Ambientales (REAA), para la consulta. En el caso de las ciudades costeras como Bucaramanga, Cartagena, Santa Marta y Barranquilla, son los visores geográficos SIAM (Sistema de Información Ambiental Marina), REDCAM (Red de Monitoreo de Calidad de Aguas Marinas y Costeras), SIGMA (Sistema de Información para la Gestión de los Manglares de Colombia) ANH (Caracterización física y de biodiversidad de las áreas marinas sujetas a explotación de hidrocarburos) y de Erosión Costera."]
[null,null,"https://siam.invemar.org.co/informacion-geografica "]
[null,"Metas y rangos de referencia","Valor de referencia","Cuantitativo","Cualitativo"]
[null,null,"No la reconoce",0,"Muy malo"]
[null,null,"Si la reconoce",1,"Muy bueno"]
[null,null,"Se considera a partir de la Ley 388 de 1997."]
[]
[]
[]
[]
[]
[]
[]
[]
[]
[null,null,"INDICADOR: ¿La participación comunitaria expresada en propuestas viables es tenida en cuenta en la formulación de proyectos que mejoren la conservación de patrimonio cultural y natural?"]
[]
[null,"Descripción","Corresponde a la relación entre las personas que participan activamente en asociaciones comunitarias que trabajan para el apoyo de vínculos para desarrollo nacional y regional"]
[null,"Ecuación / Variable(s)"]
[]
[null,null,"La información propia del municipio en cuanto al adelanto de este indicador"]
[]
[]
[null,"Fuente","En relación a los insumos de referencia, estos pudieron obtenerse a través de un ejercicio a nivel nacional de calidad urbana, para lo cual, se establecieron rangos del cálculo de la proporción de habitantes que tiene una participación activa (MinAmbiente & ASOCARS, 2016)."]
[null,null,"La consulta se realiza a través de la revisión de los mecanismos e instancias de participación institucionalizada relacionados con el logro acceso a vivienda y servicios adecuados en los listados de las asociaciones, propuestas, fichas EBI y registros internos de las asociaciones."]
[null,"Metas y rangos de referencia","Valor de referencia","Cuantitativo","Cualitativo"]
[]
[null,null,"No existen propuestas de la comunidad tenidas en cuenta en la formulación de proyectos",0,"Muy malo"]
[]
[null,null,"Si existen propuestas de la comunidad tenidas en cuenta en la formulación de proyectos",1,"Muy bueno"]
[]
[null,null,"Se toma como referencia las proporciones de participación de población activa del Informe de Calidad Ambiental (MinAmbiente & ASOCARS, 2016). "]
[]
[]
[]
[]
[]
[]
[]
[]
[]
[null,null,"INDICADOR: Número de afectados por desastres"]
[]
[null,"Descripción","Considerar los afectados por los desastres es un aspecto fundamental para aunar los esfuerzos pertinentes para disminuir la vulnerabilidad municipal ante el riesgo de desastres, razón por la cual, su contabilidad se hace necesaria."]
[null,"Ecuación / Variable(s)","A nivel municipal debe hacerse esta estimación con el fin de tener claridad del comportamiento que se ha tenido en relación al riesgo de desastres."]
[null,"Fuente","Levantamiento de información por la entidad territorial."]
[null,"Metas y rangos de referencia","Valor de referencia","Cuantitativo","Cualitativo"]
[null,null,"Mayor a 4800 personas por cada 100.000 habitantes",0,"Muy malo"]
[null,null,"Entre 4300 y 4800 personas por cada 100.000 habitantes","0,3","Malo"]
[null,null,"Entre 3800 y 4300 personas por cada 100.000 habitantes","0,5","Regular"]
[null,null,"Entre 3284 y 3800 personas por cada 100.000 habitantes","0,8","Bueno"]
[null,null,"Menor a 3284 personas por cada 100.000 habitantes",1,"Muy bueno"]
[null,null,"Se toma como referencia lo relativo al Plan Nacional de Gestión del Riesgo de Desastres en relación a las Metas Nacional, que contienen las líneas bases, unidades de medida, las fórmulas de cálculo (Presidencia de la República, MinInterior, & Banco Mundial, 2010)."]
[]
[]
[]
[]
[]
[]
[]
[]
[]
[null,null,"INDICADOR: Número de muertes por desastres"]
[]
[null,"Descripción","Busca facilitar la toma de decisiones al tener acceso a la información relevante para identificar y proponer acciones efectivas que puedan reducir la cantidad de muertes durante los desastres, así como que no existan niveles altos de pérdidas materiales."]
[null,null,"Dentro de las responsabilidades del SNGRD y entendiendo que la información relacionada a la gestión del riesgo ante desastres, según la Ley 1523 de 2012 , le corresponde al jefe de estado, los gobernadores y alcaldes, el incluir la gestión del riesgo en los planos de la planeación del desarrollo municipal, la consulta de los datos relativos a esta meta, conciernen al diagnóstico que se lidere desde la administración de los municipios."]
[null,"Ecuación / Variable(s)","En lo relativo a las situaciones de desastre o emergencia, la Guía Municipal para la Gestión del Riesgo, incluye la descripción general de todo lo ocurrido de desastre o emergencia y a través de un formulario estandarizado (Presidencia de la República et al., 2010). "]
[null,null,"Dentro de tal formato se encuentra la consignación de daños y pérdidas presentadas en lo relativo a pérdidas sociales, económicas y de ecosistemas, incluyendo formato para personas, bienes materiales particulares y colectivos, bienes de producción y bienes ambientales. Como tal, se establece que para incorporar los criterios de gestión del riesgo de desastres y adaptación al cambio climático se elaboraron cuatro herramientas por parte de dichas entidades (DNP, 2019b): orientación para formular proyectos, metodología para evaluar los riesgos, instructivos para verificación, guía para analizar el riesgo."]
[null,"Fuente","Levantamiento de información a nivel municipal."]
[null,"Metas y rangos de referencia","Valor de referencia","Cuantitativo","Cualitativo"]
[null,null,"Mayor a 20 personas por cada 100.000 habitantes",0,"Muy malo"]
[null,null,"Entre 15 y 20 personas por cada 100.000 habitantes","0,3","Malo"]
[null,null,"Entre 10 y 15 personas por cada 100.000 habitantes","0,5","Regular"]
[null,null,"Entre 6 y 10 personas por cada 100.000 habitantes","0,8","Bueno"]
[null,null,"Menor a 6 personas por cada 100.000 habitantes",1,"Muy bueno"]
[null,null,"Se toma como referencia lo relativo al Plan Nacional de Gestión del Riesgo de Desastres en relación a las Metas Nacional, que contienen las líneas bases, unidades de medida, las fórmulas de cálculo (Presidencia de la República et al., 2010)."]
[]
[]
[]
[]
[]
[]
[]
[]
[null,null,"INDICADOR: Índice municipal de riesgo de desastres ajustado por capacidades"]
[]
[null,"Descripción","El Índice Municipal de Riesgo de Desastres ajustado por Capacidades (IMRC) es una herramienta que mide el riesgo a nivel municipal ante eventos hidrometeorológicos asociados a aumentos de precipitaciones y las capacidades de las entidades territoriales para gestionarlo (DNP, Banco Mundial, & GFDRR, 2019)."]
[null,"Ecuación / Variable(s)","El IMRC es calculado finalmente como:"]
[]
[null,"Fuente","En el siguiente link, es posible obtener una base de datos con información sesgada por municipio o departamento, la proporción de exposición de área amenazada, la vulnerabilidad, el índice de riesgo y se ubican los municipios en orden o ranking del índice de riesgo; también es posible visualizar el índice de capacidades. Finalmente es posible observar el índice de riesgo ajustado por capacidades y su ranking."]
[null,null,"https://www.dnp.gov.co/programas/ambiente/gestion-del-riesgo/Paginas/gestion-del-riesgo.aspx"]
[null,"Metas y rangos de referencia","Valor de referencia","Cuantitativo","Cualitativo"]
[null,null,"Mayor a 80 puntos",0,"Muy malo"]
[null,null,"Entre 60 y 80 puntos","0,3","Malo"]
[null,null,"Entre 40 y 60 puntos","0,5","Regular"]
[null,null,"Entre 20 y 40 puntos","0,8","Bueno"]
[null,null,"Menor a 20 puntos",1,"Muy bueno"]
[null,null,"Se tiene en cuenta lo relativo al comportamiento municipal en cuanto a la gestión del riesgo evaluada a partir del IMRC y los escenarios deseados."]
[]
[]
[]
[]
[]
[]
[]
[]
[]
[null,null,"INDICADOR: ¿La participación comunitaria expresada en propuestas viables es tenida en cuenta en la formulación de proyectos para reducir las muertes y pérdidas económicas por desastres?"]
[]
[null,"Descripción","Corresponde a la relación entre las personas que participan activamente en asociaciones comunitarias que trabajan para el apoyo de vínculos para desarrollo nacional y regional"]
[null,"Ecuación / Variable(s)"]
[]
[null,null,"La información propia del municipio en cuanto al adelanto de este indicador"]
[]
[]
[null,"Fuente","En relación a los insumos de referencia, estos pudieron obtenerse a través de un ejercicio a nivel nacional de calidad urbana, para lo cual, se establecieron rangos del cálculo de la proporción de habitantes que tiene una participación activa (MinAmbiente & ASOCARS, 2016)."]
[null,null,"La consulta se realiza a través de la revisión de los mecanismos e instancias de participación institucionalizada relacionados con el logro acceso a vivienda y servicios adecuados en los listados de las asociaciones, propuestas, fichas EBI y registros internos de las asociaciones."]
[null,"Metas y rangos de referencia","Valor de referencia","Cuantitativo","Cualitativo"]
[]
[null,null,"No existen propuestas de la comunidad tenidas en cuenta en la formulación de proyectos",0,"Muy malo"]
[]
[null,null,"Si existen propuestas de la comunidad tenidas en cuenta en la formulación de proyectos",1,"Muy bueno"]
[]
[null,null,"Se toma como referencia las proporciones de participación de población activa del Informe de Calidad Ambiental (MinAmbiente & ASOCARS, 2016). "]
[]
[]
[]
[]
[]
[]
[]
[]
[null,null,"INDICADOR: Concentración media anual de material particulado PM10, PM2.5, SO2 y NO2"]
[]
[null,"Descripción","La Norma Nacional de Calidad de Aire  con la Resolución 2254 de 2017 establece los niveles máximos permisibles para contaminantes del aire, en donde en el artículo 3 están los niveles máximos permisibles de contaminantes del aire para el año 2030."]
[null,"Ecuación / Variable(s)","Se puede trabajar la presentación del resultado por una parte con el Índice de Calidad del Aire (ICA), el cual corresponde a:"]
[]
[null,null,"Donde ICAp = Índice de Calidad del Aire para el contaminante p; Cp = Concentración medida para el contaminante p; PC alto = Punto de corte mayor o igual a C p; PC bajo = Punto de corte menor o igual a C p, I alto = Valor del ICA correspondiente al PC alto; Ibajo= Valor del ICA correspondiente al PC bajo."]
[null,null,"O bien, la concentración media anual del contaminante en SISAIRE puede consultarse los promedios anuales de medición de calidad del aire según el tipo de cálculo deseado (promedio, excedencias, percentil 98, máximos, mínimos), la estación deseada y el parámetro como PM10, PM2.5, NO2 y SO2; del año 2015. En estos resultados se incluyen los 23 Sistemas de Vigilancia de Calidad del Aire (SVCA) del país."]
[null,"Fuente","Para obtener los datos correspondientes a los reportes de calidad del aire  por estaciones y de acuerdo con el tipo de contaminante, es posible ingresar a http://cifras.siac.gov.co/Portal-SIAC-web/faces/aire_inicio.xhtml del (IDEAM, 2018)"]
[null,"Metas y rangos de referencia","PM10"]
[null,null,"Valor de referencia","Cuantitativo","Cualitativo"]
[null,null,"Mayor a 60 µg/m3",0,"Muy malo"]
[null,null,"Entre 50 y 60 µg/m3","0,3","Malo"]
[null,null,"Entre 37 y 50 µg/m3","0,5","Regular"]
[null,null,"Entre 30 y 37 µg/m3","0,8","Bueno"]
[null,null,"Menor a 30 µg/m3",1,"Muy bueno"]
[]
[null,null,"PM2,5"]
[null,null,"Valor de referencia","Cuantitativo","Cualitativo"]
[null,null,"Mayor a 30",0,"Muy malo"]
[null,null,"Entre 25 y 30 µg/m3","0,3","Malo"]
[null,null,"Entre 20 y 25 µg/m3","0,5","Regular"]
[null,null,"Entre 15 y 20 µg/m3","0,8","Bueno"]
[null,null,"Menor a 15 µg/m3",1,"Muy bueno"]
[]
[null,null,"SO2"]
[null,null,"Valor de referencia","Cuantitativo","Cualitativo"]
[null,null,"Mayor a 60 µg/m3",0,"Muy malo"]
[null,null,"Entre 50 y 60 µg/m3","0,3","Malo"]
[null,null,"Entre 35 y 50 µg/m3","0,5","Regular"]
[null,null,"Entre 20 y 35 µg/m3","0,8","Bueno"]
[null,null,"Menor a 20 µg/m3",1,"Muy bueno"]
[]
[null,null,"NO2"]
[null,null,"Valor de referencia","Cuantitativo","Cualitativo"]
[null,null,"Mayor a 70 µg/m3",0,"Muy malo"]
[null,null,"Entre 60 y 70 µg/m3","0,3","Malo"]
[null,null,"Entre 50 y 60 µg/m3","0,5","Regular"]
[null,null,"Entre 40 y 50 µg/m3","0,8","Bueno"]
[null,null,"Menor a 40 µg/m3",1,"Muy bueno"]
[null,null,"Se establece según los rangos de la norma nacional Resolución 2254 de 2017, para lo cual el 2030 representa lo respectivo a ‘Muy Bueno’ y lo regular, lo correspondiente al límite máximo permisible para el año de expedición de la resolución."]
[null," La red de monitoreo de calidad del aire del Área Metropolitana del Valle de Aburrá, acreditada por la resolución 0159 de 2019, se posiciona como la mejor y más grande de Colombia, para producir información cuantitativa física y química de la calidad del medio ambiente y recursos naturales renovables a través del Sistema de Alerta Temprana del Valle de Aburrá - SIATA, desde mayo de 2017,  se certifican 13 métodos de medición que tienen como referencia el Código de Regulaciones Federales de los Estados Unidos de América, para el monitoreo de SO2, CO, O3, NO2, PM10 y PM2.5.(Área Metropolitana del Valle de Aburrá, 2019)."]
[null,"El monitoreo del SIATA puede observarse en: https://siata.gov.co/siata_nuevo/"]
[]
[null," La Secretaria de Ambiente de Bogotá, desarrolló una app que permite ver la concentración de material particulado PM2.5, PM10 y el O3 (ozono) en tiempo real, Aire Bogotá, una herramienta que muestra datos de las 13 estaciones de la Red de Monitoreo de Calidad del Aire de Bogotá, ubicadas en Kennedy, Barrios Unidos, Fontibón, Suba, Engativá, Santa Fe, Chapinero, Puente Aranda, San Cristóbal, Tunjuelito y Usaquén; este, genera un pronóstico de la calidad del aire para las siguientes 48 horas y lo clasifica en la escala de colores que determina el Índice Bogotano de Calidad del Aire de Bogotá, IBOCA.(Alcaldía de Bogotá, 2019)"]
[]
[]
[]
[]
[]
[]
[]
[]
[null,null,"INDICADOR: ¿Cuenta con PGIRS actualizado?"]
[]
[null,"Descripción","Es necesario tener en cuenta la importancia de los Planes de gestión integral de residuos sólidos (PGIRS), que según la Resolución 754 de 2014 y el DUR 1077 de 2015 del MinVivienda es responsabilidad de los municipios, distritos, esquemas asociativos territoriales, la formulación, implementación, evaluación, seguimiento, control y actualización del PGIRS en el ámbito local o regional."]
[null,"Ecuación / Variable(s)","El municipio debe cumplir con lo establecido por la Resolución 754 de 2014, por lo cual se debe evaluar el PGIRS vigente y revisar los informes de evaluación y seguimiento y de ser necesario reformularlo y actualizarlo"]
[null,"Fuente","La información legal relativa a la existencia del PGIRS se puede encontrar en http://orarbo.gov.co/es/el-observatorio-y-los-municipios/resolucion-754-de-2014 (Orarbo, 2014)"]
[null,"Metas y rangos de referencia","Valor de referencia","Cuantitativo","Cualitativo"]
[null,null,"No cuenta con PGIRS actualizado",0,"Muy malo"]
[null,null,"Si cuenta con PGIRS actualizado",1,"Muy bueno"]
[null,null,"La Resolución 754 de 2014 exige la formulación, implementación, evaluación y seguimiento de los PGIRS municipales."]
[]
[]
[]
[]
[]
[]
[]
[]
[]
[null,null,"INDICADOR: Porcentaje de la población que cuenta con recolección regular de residuos sólidos"]
[]
[null,"Descripción","Permite facilitar el conocimiento del estado de la recolección de residuos de acuerdo a lo establecido por Decreto 2981 de 2013."]
[null,"Ecuación / Variable(s)"]
[null,null,"                    Porcentaje de hogares con recolección de residuos sólidos."]
[null,null,"                    Número de hogares donde se realiza la recolección de residuos sólidos."]
[null,null,"                    Número Total de hogares en el municipio"]
[null,"Fuente","Decreto 2981 de 2013"]
[null,"Metas y rangos de referencia","Valor de referencia","Cuantitativo","Cualitativo"]
[null,null,"Menor a 60%",0,"Muy malo"]
[null,null,"Entre 70% y 80%","0,3","Malo"]
[null,null,"Entre 80% y 90%","0,5","Regular"]
[null,null,"Entre 90% y 95%","0,8","Bueno"]
[null,null,"Mayor al 95%",1,"Muy bueno"]
[null,null,"Hace referencia al escenario deseado por el Decreto 2981 de 2013."]
[]
[]
[]
[]
[]
[]
[]
[]
[]
[null,null,"INDICADOR: Porcentaje de residuos que se reciclan, se aprovechan energéticamente o se compostan"]
[]
[null,"Descripción","Permite facilitar el diagnóstico de los residuos sólidos que están siendo aprovechados (incluyendo todo tipo de aprovechamiento) respecto a la totalidad de los residuos generados"]
[null,"Ecuación / Variable(s)"]
[null,null,"             Porcentaje de residuos que están siendo aprovechados."]
[null,null,"             Volumen de residuos que están siendo aprovechados (se reciclan, aprovechan energéticamente, se compostan, etc.)."]
[null,null,"             Volumen de residuos sólidos generados por el municipio."]
[null,"Fuente","En los informes encontrados a nivel nacional en relación a los residuos aprovechados, la información más completa registrada corresponde a la registrada http://www.minambiente.gov.co/images/AsuntosambientalesySectorialyUrbana/pdf/ Gestion_urbana/ICAU/INFORME_NACIONAL_DE_CALIDAD_AMBIENTAL_URBANA_100mil-500mil.pdf (MinAmbiente & ASOCARS, 2016)"]
[null,"Metas y rangos de referencia","Valor de referencia","Cuantitativo","Cualitativo"]
[null,null,"Menor al 15%",0,"Muy malo"]
[null,null,"Entre 15% y 20%","0,3","Malo"]
[null,null,"Entre 20% y 25%","0,5","Regular"]
[null,null,"Entre 25% y 30%","0,8","Bueno"]
[null,null,"Mayor al 30%",1,"Muy bueno"]
[null,null,"La meta se encuentra establecida de acuerdo con la Política Nacional para la Gestión de Residuos Sólidos. Conpes 3874/2016 (DNP et al., 2016)."]
[]
[]
[]
[]
[]
[]
[]
[]
[]
[null,null,"INDICADOR: Porcentaje de reducción en la generación de residuos sólidos en el municipio"]
[]
[null,"Descripción","En este indicador, también es necesario tener en cuenta el Conpes 3874 de 2016, el cual, considera la jerarquía de residuos en cuyo eslabón más importante se encuentra la prevención y reutilización, lo que se relaciona con la reducción en la generación de residuos."]
[null,"Ecuación / Variable(s)"]
[null,null,"                Porcentaje de reducción de residuos"]
[null,null,"                Generación de residuos en el año ‘m’ de referencia, es decir, el de línea base."]
[null,null,"                Generación de residuos en el año ‘n’, es decir, el más reciente."]
[null,"Fuente","Política Nacional para la Gestión de Residuos Sólidos. Conpes 3874/2016 (DNP et al., 2016)."]
[null,"Metas y rangos de referencia","Valor de referencia","Cuantitativo","Cualitativo"]
[null,null,"Menor al 20%",0,"Muy malo"]
[null,null,"Entre 30% y 40%","0,3","Malo"]
[null,null,"Entre 40% y 50%","0,5","Regular"]
[null,null,"Entre 50% y 60%","0,8","Bueno"]
[null,null,"Mayor al 60%",1,"Muy bueno"]
[null,null,"Se halla como relevante la reducción del 60% que corresponde a la respuesta para el déficit calculado según la Proyecciones de generación de residuos, 2015-2030 del Conpes 3874 si se continúa optando por los rellenos sanitarios."]
[]
[]
[]
[]
[]
[]
[]
[]
[]
[null,null,"INDICADOR: ¿La participación comunitaria expresada en propuestas viables es tenida en cuenta en la formulación de proyectos que permitan reducir el impacto ambiental negativo en calidad del aire y gestión de residuos?"]
[]
[null,"Descripción","Corresponde a la relación entre las personas que participan activamente en asociaciones comunitarias que trabajan para el apoyo de vínculos para desarrollo nacional y regional"]
[null,"Ecuación / Variable(s)"]
[]
[null,null,"La información propia del municipio en cuanto al adelanto de este indicador"]
[]
[]
[null,"Fuente","En relación a los insumos de referencia, estos pudieron obtenerse a través de un ejercicio a nivel nacional de calidad urbana, para lo cual, se establecieron rangos del cálculo de la proporción de habitantes que tiene una participación activa (MinAmbiente & ASOCARS, 2016)."]
[null,null,"La consulta se realiza a través de la revisión de los mecanismos e instancias de participación institucionalizada relacionados con el logro acceso a vivienda y servicios adecuados en los listados de las asociaciones, propuestas, fichas EBI y registros internos de las asociaciones."]
[null,"Metas y rangos de referencia","Valor de referencia","Cuantitativo","Cualitativo"]
[]
[null,null,"No existen propuestas de la comunidad tenidas en cuenta en la formulación de proyectos",0,"Muy malo"]
[]
[null,null,"Si existen propuestas de la comunidad tenidas en cuenta en la formulación de proyectos",1,"Muy bueno"]
[]
[null,null,"Se toma como referencia las proporciones de participación de población activa del Informe de Calidad Ambiental (MinAmbiente & ASOCARS, 2016). "]
[]
[]
[]
[]
[]
[]
[]
[]
[]
[null,null,"INDICADOR: ¿Incorpora en el POT, PDM y demás instrumentos de planeación y administración compromisos claros de mitigación y adaptación al Cambio Climático relacionadas a las INDC de Colombia?"]
[]
[null,"Descripción","Se reconocen los compromisos que adquirió Colombia en la Conferencia de las Partes (COP 21) de la Convención Marco de Naciones Unidas sobre Cambio Climático (CMNUCC), en aras de evitar el aumento de temperatura global por encima de los 2°C, para lo cual, cada país participante acordó sus Contribuciones Previstas Determinadas a Nivel Nacional (INDC, por su sigla en inglés) (García Arbeláez, Barrera, Gómez, & Suárez, 2015)."]
[null,"Ecuación / Variable(s)","Se requiere hacer una evaluación que contraste los POT y los PDM con respecto a las INDC estipuladas que tiene Colombia dado que estos compromisos necesitan de la contribución municipal para el logro nacional (García Arbeláez et al., 2015):"]
[null,"Fuente","Varios de los compromisos, adelantos y estrategias que ha ido implementando Colombia, se encuentran en http://www.minambiente.gov.co/images/cambioclimatico/ pdf/colombia_hacia_la_COP21/ABC_de_los_Compromisos_de_Colombia_para_la_COP21_VF.pdf (García Arbeláez et al., 2015)"]
[null,"Metas y rangos de referencia","Valor de referencia","Cuantitativo","Cualitativo"]
[null,null,"No incorpora en el POT y en el PND compromisos de mitigación y adaptación al cambio climático",0,"Muy malo"]
[null,null,"Incorpora en el POT o el PND compromisos de mitigación y adaptación al cambio climático","0,5","Regular"]
[null,null,"Si incorpora en el POT y en el PND compromisos de mitigación y adaptación al cambio climático",1,"Muy bueno"]
[null,null,"Se estipula de acuerdo a las necesidades de cumplimiento del país en relación a la planeación y en ello, estos dos instrumentos que pueden encaminarlo a nivel municipal."]
[]
[]
[]
[]
[]
[]
[]
[]
[]
[null,null,"INDICADOR: ¿Posee el municipio Plan de Gestión del Riesgo de Desastres Naturales (PGRDN) actualizado y ha respondido este a las condiciones de vulnerabilidad del municipio?"]
[]
[null,"Descripción","Es necesario tener en cuenta la Ley 1523, por la cual se adopta la política nacional de gestión del riesgo de desastres, lo que se entiende como el “proceso social orientado a la formulación, ejecución, seguimiento y evaluación de políticas, estrategias, planes, programas, regulaciones, instrumentos, para el conocimiento y la reducción del riesgo y para el manejo de desastres, con el propósito explícito de contribuir a la seguridad, el bienestar, la calidad de vida de las personas y al desarrollo sostenible” (Congreso de Colombia, 2012). Se tiene en cuenta que “la gestión del riesgo es responsabilidad de todas las autoridades y habitantes del territorio colombiano”, en lo cual, las entidades territoriales deben realizar el Plan de Gestión del Riesgo de Desastres Naturales (PGRDN)."]
[null,"Ecuación / Variable(s)","Se amerita la evaluación del PGRDN vigente o en caso de no estar formulado, dar prioridad a la elaboración e implementación adecuada del mismo que responda a una zonificación adecuada de los escenarios de riesgo, vulnerabilidad y medidas de respuesta."]
[null,"Fuente","Ley 1523 de 2012 (Congreso de Colombia, 2012). http://www.secretariasenado.gov.co/senado/basedoc/ley_1523_2012.html "]
[null,"Metas y rangos de referencia","Valor de referencia","Cuantitativo","Cualitativo"]
[null,null,"No cuenta con Plan de Gestión del Riesgo de Desastres Naturales (PGRDN)",0,"Muy malo"]
[null,null,"Si cuenta con Plan de Gestión del Riesgo de Desastres Naturales (PGRDN)",1,"Muy bueno"]
[null,null,"A partir de las estipulaciones nacionales en relación al riesgo."]
[]
[]
[]
[]
[]
[]
[]
[]
[]
[null,null,"INDICADOR: Proporción de personas que participan activamente en asociaciones comunitarias que trabajan en la reducción riesgo de desastres, mitigación y adaptación al cambio climático"]
[]
[null,"Descripción","Corresponde a la relación entre las personas que participan activamente en asociaciones comunitarias que trabajan para el apoyo de vínculos para desarrollo nacional y regional"]
[null,"Ecuación / Variable(s)"]
[null,null,"                               Proporción de la población que participan activamente en asociaciones comunitarias que trabajan para el apoyo de vínculos para desarrollo nacional y regional"]
[null,null,"                               Personas que participan activamente en asociaciones comunitarias que trabajan para el apoyo de vínculos para desarrollo nacional y regional."]
[null,null,"                              Total de la población del municipio."]
[null,null,"Este diagnóstico debe realizarse de parte de la administración del municipio, de manera que se reconozcan los tipos de asociaciones u organizaciones comunitarias, gremios, entre otros, para identificar la representatividad de esta proporción obtenida."]
[null,"Fuente","En relación a los insumos de referencia, estos pudieron obtenerse a través de un ejercicio a nivel nacional de calidad urbana, para lo cual, se establecieron rangos del cálculo de la proporción de habitantes que tiene una participación activa (MinAmbiente & ASOCARS, 2016)."]
[null,null,"La consulta se realiza a través de la revisión de los mecanismos e instancias de participación institucionalizada relacionados con el logro acceso a vivienda y servicios adecuados en los listados de las asociaciones, propuestas, fichas EBI y registros internos de las asociaciones."]
[null,"Metas y rangos de referencia","Valor de referencia","Cuantitativo","Cualitativo"]
[]
[null,null,"No existen propuestas de la comunidad tenidas en cuenta en la formulación de proyectos",0,"Muy malo"]
[]
[null,null,"Si existen propuestas de la comunidad tenidas en cuenta en la formulación de proyectos",1,"Muy bueno"]
[]
[null,null,"Se toma como referencia las proporciones de participación de población activa del Informe de Calidad Ambiental (MinAmbiente & ASOCARS, 2016). "]
[]
[]
[]
[]
[]
[]
[]
[]
[]
[null,null,"INDICADOR: Índice de Desarrollo Metropolitano (CEPAL, calculado y analizado en relación a las 18 áreas metropolitanas del país)"]
[]
[null,"Descripción","El Área metropolitana, definida como “entidades administrativas de derecho público, formadas por un conjunto de dos o más municipios integrados alrededor de un municipio núcleo, vinculados entre sí por dinámicas e interrelaciones territoriales, ambientales, económicas, sociales, demográficas, culturales y tecnológicas que para la programación de su desarrollo sostenible, humano, ordenamiento territorial y racional, prestación de servicios públicos requieren una administración coordinada” Ley 1625  (MinInterior, 2013). Para esto, se hace necesario resaltar que la Misión Sistema de Ciudades y como tal el CONPES 3819 que formula la política, significan un avance considerable en el refuerzo de los vínculos económicos, sociales y ambientales apuntando a la planeación del desarrollo. Igualmente, se hace evidente la importancia de la planeación de una ciudad integrada y sostenible para la generación de ventajas competitivas que no permitan el aumento de externalidades negativas."]
[null,"Ecuación / Variable(s)","En este caso se hace el estudio únicamente para las Áreas Metropolitanas del país."]
[null,null,"Análisis del resultado obtenido en el Índice de Desarrollo Metropolitano entregado por (Ramírez & Parra-Peña, 2013) para las 18 aglomeraciones principales del país."]
[null,"Fuente","La información relativa al estado del índice de Desarrollo Metropolitano y sesgado por cada escalafón del desarrollo metropolitano espacial de todas las 18 áreas metropolitanas de Colombia (60% de la población):"]
[null,null," https://repositorio.cepal.org/bitstream/handle/11362/4820/1/LCL3610_es.pdf"]
[null,"Metas y rangos de referencia","Valor de referencia","Cuantitativo","Cualitativo"]
[null,null,"Menor a 20 puntos",0,"Muy malo"]
[null,null,"Entre 20 y 40 puntos","0,3","Malo"]
[null,null,"Entre 40 y 60 puntos","0,5","Regular"]
[null,null,"Entre 60 y 80 puntos","0,8","Bueno"]
[null,null,"Mayor a 80 puntos",1,"Muy bueno"]
[null,null,"En relación a lo obtenido en el Índice de Desarrollo Metropolitano ya realizado para Colombia por la CEPAL, cuyos resultados fueron variados y pueden distribuirse en estos rangos porcentuales."]
[]
[]
[]
[]
[]
[]
[]
[]
[]
[null,null,"INDICADOR: Solvencia y sostenibilidad del desempeño fiscal"]
[]
[null,"Descripción","Considera los rangos presentes en el índice de Desempeño Fiscal municipal, el cual fue calificado por el DNP, el cual, a través de la Dirección de Descentralización y Desarrollo Regional hizo la evaluación teniendo en cuenta 6 parámetros arrojando el rango de clasificación, la posición del municipio a nivel nacional"]
[null,"Ecuación / Variable(s)","Calificación del desempeño fiscal: Autofinanciación de los gastos de funcionamiento, respaldo del servicio de la deuda, dependencia de las transferencias de la Nación y las Regalías, generación de recursos propios, magnitud de la inversión y la capacidad de ahorro"]
[null,"Fuente","Para consultar los informes DNP y encontrar la posición del departamento y municipio, se encuentra en: http://dnp.gov.co/programas/desarrollo-territorial/Estudios-Territoriales/Indicadores-y-Mediciones/Paginas/desempeno-fiscal.aspx"]
[null,"Metas y rangos de referencia","Valor de referencia","Cuantitativo","Cualitativo"]
[null,null,"Deterioro (<40)",0,"Muy malo"]
[null,null,"Riesgo (≥40 y < 60)",0.3,"Malo"]
[null,null,"Vulnerable (≥60 y <70)",0.5,"Regular"]
[null,null,"Sostenible (≥70 y <80)",0.8,"Bueno"]
[null,null,"Solvente (≥80)",1,"Muy bueno"]
[null,null,"Rangos establecidos por el (DNP, 2019a)"]
[]
[]
[]
[]
[]
[]
[]
[]
[]
[null,null,"INDICADOR: ¿La participación comunitaria expresada en propuestas viables es tenida en cuenta en la formulación de proyectos  para el apoyo de vínculos para desarrollo nacional y regional?"]
[]
[null,"Descripción","Corresponde a la relación entre las personas que participan activamente en asociaciones comunitarias que trabajan para el apoyo de vínculos para desarrollo nacional y regional"]
[null,"Ecuación / Variable(s)"]
[]
[null,null,"La información propia del municipio en cuanto al adelanto de este indicador"]
[]
[]
[null,"Fuente","En relación a los insumos de referencia, estos pudieron obtenerse a través de un ejercicio a nivel nacional de calidad urbana, para lo cual, se establecieron rangos del cálculo de la proporción de habitantes que tiene una participación activa (MinAmbiente & ASOCARS, 2016)."]
[null,null,"La consulta se realiza a través de la revisión de los mecanismos e instancias de participación institucionalizada relacionados con el logro acceso a vivienda y servicios adecuados en los listados de las asociaciones, propuestas, fichas EBI y registros internos de las asociaciones."]
[null,"Metas y rangos de referencia","Valor de referencia","Cuantitativo","Cualitativo"]
[]
[null,null,"No existen propuestas de la comunidad tenidas en cuenta en la formulación de proyectos",0,"Muy malo"]
[]
[null,null,"Si existen propuestas de la comunidad tenidas en cuenta en la formulación de proyectos",1,"Muy bueno"]
[]
[null,null,"Se toma como referencia las proporciones de participación de población activa del Informe de Calidad Ambiental (MinAmbiente & ASOCARS, 2016). "]
[]
[]
[]
[]
[]
[]
[]
[]
[]
[null,null,"INDICADOR: ¿Están articuladas las redes de participación para la planificación y gestión del territorio?"]
[]
[null,"Descripción","Este indicador busca medir la participación articulada de la población en la gestión pública del municipio, respaldada por el decreto 1499 de 2017 cuyo objeto es dirigir la gestión pública al mejor desempeño institucional, la consecución de resultados para la satisfacción de las necesidades, el goce efectivo de los derechos de los ciudadanos, en el marco de la legalidad y la integridad a partir del Sistema de Gestión consolidado en el Modelo Integrado de Planeación y Gestión, el cual considera los organismos y entidades de los órdenes nacional y territorial de la Rama Ejecutiva del Poder Público."]
[null,null,"En este caso también es importante garantizar la transparencia institucional basada en la rendición de cuentas, la cual según el documento Conpes 3654 del 12 de abril de 2010, señala que “es una expresión de control social, que comprende acciones de petición de información y de explicaciones, así como la evaluación de la gestión, y que busca la transparencia de la gestión de la administración pública para logar la adopción de los principios de Buen Gobierno” (CONPES, DNP, & DAFP, 2010)."]
[null,"Ecuación / Variable(s)","Se revisa el estado del Sistema de Gestión en su correcta aplicación del Modelo Integrado de Planeación y Gestión a través del Comités departamentales, distritales o municipales de Gestión y Desempeño."]
[null,"Fuente","La referencia para este indicador se basa fundamentalmente en el Decreto 1499 de 2017 :  https://www.funcionpublica.gov.co/eva/gestornormativo/norma.php?i=83433"]
[null,null,"El modelo puede ser consultado en Fondo de Garantías de Instituciones Financieras (Fogafín) a través de: https://www.fogafin.gov.co/que-es-fogafin/planes-politicas-y-protocolos/modelo-integrado-de-planeacion-y-gestion"]
[null,"Metas y rangos de referencia","Valor de referencia","Cuantitativo","Cualitativo"]
[null,null,"No posee organizaciones públicas y privadas que trabajan por el cumplimiento de las metas del ODS 11",0,"Muy malo"]
[null,null,"Si posee organizaciones públicas y privadas que trabajan por el cumplimiento de las metas del ODS 11",1,"Muy bueno"]
[null,null,"Tomando como referencia el Conpes 3654 de 2010 y el Decreto 1499 de 2017 y el artículo 270 de la Constitución Política de Colombia."]